"SERVICE_CODE","ORGANISATION_UNIT","EXPENDITURE_CATEGORY","EXPENDITURE_DESCRIPTION","EXPENDITURE_CODE","NARRATIVE","DATE","TRANSATION_CODE","NET_AMOUNT","SUPPLIER_CODE","SUPPLIER_NAME","FROM_DATE","TO_DATE","FINANCIAL_PERIOD_YEAR"
"R&B","CORPORATE TRAINING","EMPLOYEES","TRAINING EXPENSES","1305","P119944-SERVICE-N Collins Emer First Aid Training 24/11",7/12/2022 00:00:00,"269389",189,"BR0069","BRITISH RED CROSS",28/11/2022 00:00:00,25/12/2022 00:00:00,"P09-2023"
"R&B","CORPORATE TRAINING","EMPLOYEES","TRAINING EXPENSES","1305","P119958-SERVICE-L Dennis FAW Training 28/11/22",7/12/2022 00:00:00,"269390",379,"BR0069","BRITISH RED CROSS",28/11/2022 00:00:00,25/12/2022 00:00:00,"P09-2023"
"R&B","CORPORATE TRAINING","EMPLOYEES","TRAINING EXPENSES","1305","P120338-SERVICE-ED&! Training 8 December 22",15/12/2022 00:00:00,"269607",1136.19,"KL0167","KLC EMPLOYMENT LAW CONSULTANTS",28/11/2022 00:00:00,25/12/2022 00:00:00,"P09-2023"
"R&B","CORPORATE TRAINING","EMPLOYEES","TRAINING EXPENSES","1305","P119944-SERVICE-N Collins Emer First Aid Training 24/11",19/12/2022 00:00:00,"269739",189,"BR0069","BRITISH RED CROSS",28/11/2022 00:00:00,25/12/2022 00:00:00,"P09-2023"
"R&B","CORPORATE TRAINING","EMPLOYEES","TRAINING EXPENSES","1305","P119944-SERVICE-N Collins Emer First Aid Training 24/11",19/12/2022 00:00:00,"269743",-189,"BR0069","BRITISH RED CROSS",28/11/2022 00:00:00,25/12/2022 00:00:00,"P09-2023"
"R&B","CORPORATE TRAINING","EMPLOYEES","TRAINING EXPENSES","1305","P120415-SERVICE-ED&I Briefing 14/12/22",21/12/2022 00:00:00,"269834",1137.72,"KL0167","KLC EMPLOYMENT LAW CONSULTANTS",28/11/2022 00:00:00,25/12/2022 00:00:00,"P09-2023"
"P&V","YOUTH AND SCHOOLS","EMPLOYEES","TRAINING EXPENSES","1305","P120100-SERVICE-CLOtC National Conference 2023",7/12/2022 00:00:00,"269402",150,"CO0443","COUNCIL FOR LEARNING OUTSIDE THE CLASSROOM",28/11/2022 00:00:00,25/12/2022 00:00:00,"P09-2023"
"P&V","MYDDELTON HOUSE GARDENS","EMPLOYEES","TRAINING EXPENSES","1305","P119457-SERVICE-Basic Tree Inspection Couse - Gardeners",5/12/2022 00:00:00,"269296",200,"CO0135","CAPEL MANOR COLLEGE",28/11/2022 00:00:00,25/12/2022 00:00:00,"P09-2023"
"R&B","NON DISTRIBUTED COSTS","EMPLOYEES","SUPERANNUATION ADDED YEARS","1310","LONDON PENSIONS FUND AUTHORITY",6/12/2022 00:00:00,"269293",5284.69,"LO0031","LONDON PENSIONS FUND AUTHORITY",28/11/2022 00:00:00,25/12/2022 00:00:00,"P09-2023"
,"LEE VALLEY CARAVAN PARK","EMPLOYEES","CRB CHECKS","1330","DBS ADMIN FEE",7/12/2022 00:00:00,"269401",18,"DD0119","DUE DILIGENCE CHECKING LIMITED",28/11/2022 00:00:00,25/12/2022 00:00:00,"P09-2023"
,"LEE VALLEY CARAVAN PARK","EMPLOYEES","CRB CHECKS","1330","Z MILLER DBS CHECK",7/12/2022 00:00:00,"269401",18,"DD0119","DUE DILIGENCE CHECKING LIMITED",28/11/2022 00:00:00,25/12/2022 00:00:00,"P09-2023"
"P&V","VOLUNTEERS (L&E)","EMPLOYEES","CRB CHECKS","1330","DUE DILIGENCE CHECKING LIMITED",21/12/2022 00:00:00,"269400",18,"DD0119","DUE DILIGENCE CHECKING LIMITED",28/11/2022 00:00:00,25/12/2022 00:00:00,"P09-2023"
"P&V","VOLUNTEERS (L&E)","EMPLOYEES","CRB CHECKS","1330","J WHITEHEAD DBS CHECK",7/12/2022 00:00:00,"269401",18,"DD0119","DUE DILIGENCE CHECKING LIMITED",28/11/2022 00:00:00,25/12/2022 00:00:00,"P09-2023"
"P&V","VOLUNTEERS (L&E)","EMPLOYEES","CRB CHECKS","1330","DBS ADMIN FEE",7/12/2022 00:00:00,"269401",18,"DD0119","DUE DILIGENCE CHECKING LIMITED",28/11/2022 00:00:00,25/12/2022 00:00:00,"P09-2023"
"P&V","VOLUNTEERS (L&E)","EMPLOYEES","CRB CHECKS","1330","DUE DILIGENCE CHECKING LIMITED",21/12/2022 00:00:00,"269596",-18,"DD0119","DUE DILIGENCE CHECKING LIMITED",28/11/2022 00:00:00,25/12/2022 00:00:00,"P09-2023"
"CEO","CHIEF EXECUTIVE","EMPLOYEES","DRIVING LICENCE CHECKS","1335","S DAWSON DRIVING LICENCE CHECK",7/12/2022 00:00:00,"269394",6.25,"FI0288","FIRST ADVANTAGE EUROPE LTD",28/11/2022 00:00:00,25/12/2022 00:00:00,"P09-2023"
"CEO","LEGAL SERVICES","EMPLOYEES","DRIVING LICENCE CHECKS","1335","B FOSTER DRIVING LICENCE CHECK",7/12/2022 00:00:00,"269394",6.25,"FI0288","FIRST ADVANTAGE EUROPE LTD",28/11/2022 00:00:00,25/12/2022 00:00:00,"P09-2023"
"R&B","CORPORATE TRAINING","EMPLOYEES","APPRENTICE LEVY","1390","PAYE",14/12/2022 00:00:00,"269538",1557,"HM0368","HMRC",28/11/2022 00:00:00,25/12/2022 00:00:00,"P09-2023"
"CEO","LVLC SERVICE CHARGE","PREMISES RELATED EXPENDITURE","SCHEDULED GROUND MAINTENANCE","2111","NOVEMBER 2022",19/12/2022 00:00:00,"269413",55.13,"GL0214","GLENDALE GROUNDS MANAGEMENT LIMITED",28/11/2022 00:00:00,25/12/2022 00:00:00,"P09-2023"
"CEO","LVLC SERVICE CHARGE","PREMISES RELATED EXPENDITURE","SCHEDULED GROUND MAINTENANCE","2111","NOVEMBER 2022",19/12/2022 00:00:00,"269413",1511.73,"GL0214","GLENDALE GROUNDS MANAGEMENT LIMITED",28/11/2022 00:00:00,25/12/2022 00:00:00,"P09-2023"
,"LEE VALLEY MARINA SPRINGFIELD","PREMISES RELATED EXPENDITURE","UNSCHEDULED GROUND MAINTENANCE","2112","P119941-SERVICE-2 Willows to front Island pollard to safe",19/12/2022 00:00:00,"269583",795,"PA0222","PARKIN & PARKER TREE SPECIALISTS",28/11/2022 00:00:00,25/12/2022 00:00:00,"P09-2023"
,"LEE VALLEY MARINA SPRINGFIELD","PREMISES RELATED EXPENDITURE","UNSCHEDULED GROUND MAINTENANCE","2112","P120264-SERVICE-To pollard & make safe sycamore tree",19/12/2022 00:00:00,"269584",350,"PA0222","PARKIN & PARKER TREE SPECIALISTS",28/11/2022 00:00:00,25/12/2022 00:00:00,"P09-2023"
"P&V","MYDDELTON HOUSE","PREMISES RELATED EXPENDITURE","CONTRACT CLEANING","2120","P117626-SERVICE-Contract Cleaning",19/12/2022 00:00:00,"269761",2335.32,"BR0632","BRITANNIA SERVICES GROUP LTD",28/11/2022 00:00:00,25/12/2022 00:00:00,"P09-2023"
,"LEE VALLEY WATERWORKS CENTRE","PREMISES RELATED EXPENDITURE","CONTRACT CLEANING","2120","P118242-SERVICE-Cleaning WaterWorks Centre",20/12/2022 00:00:00,"269757",758.4,"BR0632","BRITANNIA SERVICES GROUP LTD",28/11/2022 00:00:00,25/12/2022 00:00:00,"P09-2023"
,"LEE VALLEY CAMPSITE","PREMISES RELATED EXPENDITURE","CONTRACT CLEANING","2120","P120096-SERVICE-Site cleaning November 2022",19/12/2022 00:00:00,"269397",2719,"LI0305","LIMPIAR CLEANING",28/11/2022 00:00:00,25/12/2022 00:00:00,"P09-2023"
,"LEE VALLEY CAMPSITE","PREMISES RELATED EXPENDITURE","CONTRACT CLEANING","2120","P119749-SERVICE-Monthly toilet clean oct-mar23",7/12/2022 00:00:00,"269435",88.25,"IN0012","INITIAL WASHROOM HYGIENE",28/11/2022 00:00:00,25/12/2022 00:00:00,"P09-2023"
,"LEE VALLEY CARAVAN PARK","PREMISES RELATED EXPENDITURE","CONTRACT CLEANING","2120","P120270-SERVICE-Cleaning contract",7/12/2022 00:00:00,"269396",3344,"LI0305","LIMPIAR CLEANING",28/11/2022 00:00:00,25/12/2022 00:00:00,"P09-2023"
,"LEE VALLEY CARAVAN PARK","PREMISES RELATED EXPENDITURE","CONTRACT CLEANING","2120","P120383-SERVICE-Washroom hygiene",19/12/2022 00:00:00,"269603",93.28,"IN0012","INITIAL WASHROOM HYGIENE",28/11/2022 00:00:00,25/12/2022 00:00:00,"P09-2023"
"P&V","NORTH AREA RANGERS","PREMISES RELATED EXPENDITURE","CONTRACT CLEANING","2120","NOVEMBER 2022",19/12/2022 00:00:00,"269413",201.67,"GL0214","GLENDALE GROUNDS MANAGEMENT LIMITED",28/11/2022 00:00:00,25/12/2022 00:00:00,"P09-2023"
"P&V","NORTH AREA RANGERS","PREMISES RELATED EXPENDITURE","CONTRACT CLEANING","2120","P118094-SERVICE-Cleaning",20/12/2022 00:00:00,"269759",359.28,"BR0632","BRITANNIA SERVICES GROUP LTD",28/11/2022 00:00:00,25/12/2022 00:00:00,"P09-2023"
"P&V","GUNPOWDER PARK","PREMISES RELATED EXPENDITURE","CONTRACT CLEANING","2120","NOVEMBER 2022",19/12/2022 00:00:00,"269413",276.13,"GL0214","GLENDALE GROUNDS MANAGEMENT LIMITED",28/11/2022 00:00:00,25/12/2022 00:00:00,"P09-2023"
"P&V","RIVER LEE COUNTRY PARK","PREMISES RELATED EXPENDITURE","CONTRACT CLEANING","2120","NOVEMBER 2022",19/12/2022 00:00:00,"269413",552.26,"GL0214","GLENDALE GROUNDS MANAGEMENT LIMITED",28/11/2022 00:00:00,25/12/2022 00:00:00,"P09-2023"
,"LV LEISURE CENTRE CAMPSITE","PREMISES RELATED EXPENDITURE","CONTRACT CLEANING","2120","P120345-SERVICE-Monthly clean",15/12/2022 00:00:00,"269395",1919,"LI0305","LIMPIAR CLEANING",28/11/2022 00:00:00,25/12/2022 00:00:00,"P09-2023"
"P&V","MYDDLETON HSE HERITAGE CENTRE","PREMISES RELATED EXPENDITURE","CLEANING CONTRACT","2121","P118226-SERVICE-Cleaning Bowles Tea Room (Visitor Centre)",19/12/2022 00:00:00,"269760",778.44,"BR0632","BRITANNIA SERVICES GROUP LTD",28/11/2022 00:00:00,25/12/2022 00:00:00,"P09-2023"
,"LEE VALLEY MARINA STANSTEAD","PREMISES RELATED EXPENDITURE","GM MAIN CONTRACT SCHEDULED","2141","NOVEMBER 2022",19/12/2022 00:00:00,"269413",322.59,"GL0214","GLENDALE GROUNDS MANAGEMENT LIMITED",28/11/2022 00:00:00,25/12/2022 00:00:00,"P09-2023"
,"LEE VALLEY WATERWORKS CENTRE","PREMISES RELATED EXPENDITURE","GM MAIN CONTRACT SCHEDULED","2141","NOVEMBER 2022",19/12/2022 00:00:00,"269413",303.06,"GL0214","GLENDALE GROUNDS MANAGEMENT LIMITED",28/11/2022 00:00:00,25/12/2022 00:00:00,"P09-2023"
,"LEE VALLEY WATERWORKS CENTRE","PREMISES RELATED EXPENDITURE","GM MAIN CONTRACT SCHEDULED","2141","NOVEMBER 2022",19/12/2022 00:00:00,"269413",132.87,"GL0214","GLENDALE GROUNDS MANAGEMENT LIMITED",28/11/2022 00:00:00,25/12/2022 00:00:00,"P09-2023"
,"LEE VALLEY FARM HAYES HILL","PREMISES RELATED EXPENDITURE","GM MAIN CONTRACT SCHEDULED","2141","NOVEMBER 2022",19/12/2022 00:00:00,"269413",74.84,"GL0214","GLENDALE GROUNDS MANAGEMENT LIMITED",28/11/2022 00:00:00,25/12/2022 00:00:00,"P09-2023"
"P&V","EAST INDIA DOCK AND BOW CREEK","PREMISES RELATED EXPENDITURE","GM MAIN CONTRACT SCHEDULED","2141","NOVEMBER 2022",19/12/2022 00:00:00,"269413",474.55,"GL0214","GLENDALE GROUNDS MANAGEMENT LIMITED",28/11/2022 00:00:00,25/12/2022 00:00:00,"P09-2023"
"P&V","EAST INDIA DOCK AND BOW CREEK","PREMISES RELATED EXPENDITURE","GM MAIN CONTRACT SCHEDULED","2141","NOVEMBER 2022",19/12/2022 00:00:00,"269413",424.94,"GL0214","GLENDALE GROUNDS MANAGEMENT LIMITED",28/11/2022 00:00:00,25/12/2022 00:00:00,"P09-2023"
"P&V","NORTH AREA RANGERS","PREMISES RELATED EXPENDITURE","GM MAIN CONTRACT SCHEDULED","2141","NOVEMBER 2022",19/12/2022 00:00:00,"269413",2857.67,"GL0214","GLENDALE GROUNDS MANAGEMENT LIMITED",28/11/2022 00:00:00,25/12/2022 00:00:00,"P09-2023"
"P&V","SOUTH AREA RANGERS","PREMISES RELATED EXPENDITURE","GM MAIN CONTRACT SCHEDULED","2141","NOVEMBER 2022",19/12/2022 00:00:00,"269413",3264.04,"GL0214","GLENDALE GROUNDS MANAGEMENT LIMITED",28/11/2022 00:00:00,25/12/2022 00:00:00,"P09-2023"
"P&V","SOUTH AREA RANGERS","PREMISES RELATED EXPENDITURE","GM MAIN CONTRACT SCHEDULED","2141","NOVEMBER 2022",19/12/2022 00:00:00,"269413",379.64,"GL0214","GLENDALE GROUNDS MANAGEMENT LIMITED",28/11/2022 00:00:00,25/12/2022 00:00:00,"P09-2023"
"P&V","ABBEY GARDENS","PREMISES RELATED EXPENDITURE","GM MAIN CONTRACT SCHEDULED","2141","NOVEMBER 2022",19/12/2022 00:00:00,"269413",1447.59,"GL0214","GLENDALE GROUNDS MANAGEMENT LIMITED",28/11/2022 00:00:00,25/12/2022 00:00:00,"P09-2023"
"P&V","GUNPOWDER PARK","PREMISES RELATED EXPENDITURE","GM MAIN CONTRACT SCHEDULED","2141","NOVEMBER 2022",19/12/2022 00:00:00,"269413",1425.26,"GL0214","GLENDALE GROUNDS MANAGEMENT LIMITED",28/11/2022 00:00:00,25/12/2022 00:00:00,"P09-2023"
"P&V","RIVER LEE COUNTRY PARK","PREMISES RELATED EXPENDITURE","GM MAIN CONTRACT SCHEDULED","2141","NOVEMBER 2022",19/12/2022 00:00:00,"269413",1328.73,"GL0214","GLENDALE GROUNDS MANAGEMENT LIMITED",28/11/2022 00:00:00,25/12/2022 00:00:00,"P09-2023"
"P&V","RIVER LEE COUNTRY PARK","PREMISES RELATED EXPENDITURE","GM MAIN CONTRACT SCHEDULED","2141","NOVEMBER 2022",19/12/2022 00:00:00,"269413",8331.92,"GL0214","GLENDALE GROUNDS MANAGEMENT LIMITED",28/11/2022 00:00:00,25/12/2022 00:00:00,"P09-2023"
,"LEE VALLEY VELOPARK","PREMISES RELATED EXPENDITURE","GM MAIN CONTRACT SCHEDULED","2141","NOVEMBER 2022",19/12/2022 00:00:00,"269413",3609.52,"GL0214","GLENDALE GROUNDS MANAGEMENT LIMITED",28/11/2022 00:00:00,25/12/2022 00:00:00,"P09-2023"
,"LV HOCKEY AND TENNIS CENTRE","PREMISES RELATED EXPENDITURE","GM MAIN CONTRACT SCHEDULED","2141","NOVEMBER 2022",19/12/2022 00:00:00,"269413",2219.56,"GL0214","GLENDALE GROUNDS MANAGEMENT LIMITED",28/11/2022 00:00:00,25/12/2022 00:00:00,"P09-2023"
"P&V","THREE MILLS","PREMISES RELATED EXPENDITURE","GM MAIN CONTRACT SCHEDULED","2141","NOVEMBER 2022",19/12/2022 00:00:00,"269413",811.82,"GL0214","GLENDALE GROUNDS MANAGEMENT LIMITED",28/11/2022 00:00:00,25/12/2022 00:00:00,"P09-2023"
,"LEE VALLEY RIDING CENTRE","PREMISES RELATED EXPENDITURE","GM MAIN CONTRACT SCHEDULED","2141","NOVEMBER 2022",19/12/2022 00:00:00,"269413",247.99,"GL0214","GLENDALE GROUNDS MANAGEMENT LIMITED",28/11/2022 00:00:00,25/12/2022 00:00:00,"P09-2023"
,"LEE VALLEY ICE CENTRE","PREMISES RELATED EXPENDITURE","GM MAIN CONTRACT SCHEDULED","2141","NOVEMBER 2022",19/12/2022 00:00:00,"269413",167.98,"GL0214","GLENDALE GROUNDS MANAGEMENT LIMITED",28/11/2022 00:00:00,25/12/2022 00:00:00,"P09-2023"
"P&V","FORMER LV LIDO SITE","PREMISES RELATED EXPENDITURE","GM MAIN CONTRACT SCHEDULED","2141","NOVEMBER 2022",19/12/2022 00:00:00,"269413",556.1,"GL0214","GLENDALE GROUNDS MANAGEMENT LIMITED",28/11/2022 00:00:00,25/12/2022 00:00:00,"P09-2023"
,"LEE VALLEY ATHLETICS CENTRE","PREMISES RELATED EXPENDITURE","GM MAIN CONTRACT SCHEDULED","2141","NOVEMBER 2022",19/12/2022 00:00:00,"269413",333.7,"GL0214","GLENDALE GROUNDS MANAGEMENT LIMITED",28/11/2022 00:00:00,25/12/2022 00:00:00,"P09-2023"
,"LEE VALLEY WHITE WATER CENTRE","PREMISES RELATED EXPENDITURE","GM MAIN CONTRACT SCHEDULED","2141","NOVEMBER 2022",19/12/2022 00:00:00,"269413",1325.68,"GL0214","GLENDALE GROUNDS MANAGEMENT LIMITED",28/11/2022 00:00:00,25/12/2022 00:00:00,"P09-2023"
,"LEE VALLEY WATERWORKS CENTRE","PREMISES RELATED EXPENDITURE","GM HORTICULTURE SCHEDULED","2143","NOVEMBER 2022",19/12/2022 00:00:00,"269413",84.97,"GL0214","GLENDALE GROUNDS MANAGEMENT LIMITED",28/11/2022 00:00:00,25/12/2022 00:00:00,"P09-2023"
"P&V","NORTH AREA RANGERS","PREMISES RELATED EXPENDITURE","GM HORTICULTURE SCHEDULED","2143","NOVEMBER 2022",19/12/2022 00:00:00,"269413",126.34,"GL0214","GLENDALE GROUNDS MANAGEMENT LIMITED",28/11/2022 00:00:00,25/12/2022 00:00:00,"P09-2023"
"P&V","SOUTH AREA RANGERS","PREMISES RELATED EXPENDITURE","GM HORTICULTURE SCHEDULED","2143","NOVEMBER 2022",19/12/2022 00:00:00,"269413",72.43,"GL0214","GLENDALE GROUNDS MANAGEMENT LIMITED",28/11/2022 00:00:00,25/12/2022 00:00:00,"P09-2023"
"P&V","ABBEY GARDENS","PREMISES RELATED EXPENDITURE","GM HORTICULTURE SCHEDULED","2143","NOVEMBER 2022",19/12/2022 00:00:00,"269413",987.1,"GL0214","GLENDALE GROUNDS MANAGEMENT LIMITED",28/11/2022 00:00:00,25/12/2022 00:00:00,"P09-2023"
"P&V","GUNPOWDER PARK","PREMISES RELATED EXPENDITURE","GM HORTICULTURE SCHEDULED","2143","NOVEMBER 2022",19/12/2022 00:00:00,"269413",129.58,"GL0214","GLENDALE GROUNDS MANAGEMENT LIMITED",28/11/2022 00:00:00,25/12/2022 00:00:00,"P09-2023"
"P&V","RIVER LEE COUNTRY PARK","PREMISES RELATED EXPENDITURE","GM HORTICULTURE SCHEDULED","2143","NOVEMBER 2022",19/12/2022 00:00:00,"269413",67.24,"GL0214","GLENDALE GROUNDS MANAGEMENT LIMITED",28/11/2022 00:00:00,25/12/2022 00:00:00,"P09-2023"
,"LEE VALLEY VELOPARK","PREMISES RELATED EXPENDITURE","GM HORTICULTURE SCHEDULED","2143","NOVEMBER 2022",19/12/2022 00:00:00,"269413",576.37,"GL0214","GLENDALE GROUNDS MANAGEMENT LIMITED",28/11/2022 00:00:00,25/12/2022 00:00:00,"P09-2023"
,"LV HOCKEY AND TENNIS CENTRE","PREMISES RELATED EXPENDITURE","GM HORTICULTURE SCHEDULED","2143","NOVEMBER 2022",19/12/2022 00:00:00,"269413",830.01,"GL0214","GLENDALE GROUNDS MANAGEMENT LIMITED",28/11/2022 00:00:00,25/12/2022 00:00:00,"P09-2023"
"P&V","THREE MILLS","PREMISES RELATED EXPENDITURE","GM HORTICULTURE SCHEDULED","2143","NOVEMBER 2022",19/12/2022 00:00:00,"269413",26.94,"GL0214","GLENDALE GROUNDS MANAGEMENT LIMITED",28/11/2022 00:00:00,25/12/2022 00:00:00,"P09-2023"
,"LEE VALLEY RIDING CENTRE","PREMISES RELATED EXPENDITURE","GM HORTICULTURE SCHEDULED","2143","NOVEMBER 2022",19/12/2022 00:00:00,"269413",6.73,"GL0214","GLENDALE GROUNDS MANAGEMENT LIMITED",28/11/2022 00:00:00,25/12/2022 00:00:00,"P09-2023"
"P&V","FORMER LV LIDO SITE","PREMISES RELATED EXPENDITURE","GM HORTICULTURE SCHEDULED","2143","NOVEMBER 2022",19/12/2022 00:00:00,"269413",6.42,"GL0214","GLENDALE GROUNDS MANAGEMENT LIMITED",28/11/2022 00:00:00,25/12/2022 00:00:00,"P09-2023"
,"LEE VALLEY WHITE WATER CENTRE","PREMISES RELATED EXPENDITURE","GM HORTICULTURE SCHEDULED","2143","NOVEMBER 2022",19/12/2022 00:00:00,"269413",14.71,"GL0214","GLENDALE GROUNDS MANAGEMENT LIMITED",28/11/2022 00:00:00,25/12/2022 00:00:00,"P09-2023"
"P&V","RIVER LEE COUNTRY PARK","PREMISES RELATED EXPENDITURE","GM ARBORICULTURE UNSCHEDULED","2146","P119563-SERVICE-Tree Works at Cornmill Meadows - Tree Park",20/12/2022 00:00:00,"269785",925,"VE0004","PRINCIPAL TREES LTD",28/11/2022 00:00:00,25/12/2022 00:00:00,"P09-2023"
"P&V","RIVER LEE COUNTRY PARK","PREMISES RELATED EXPENDITURE","GM ARBORICULTURE UNSCHEDULED","2146","P119969-SERVICE-Survey Poplars Trees at Whitewater Centre Fro",20/12/2022 00:00:00,"269786",460,"VE0004","PRINCIPAL TREES LTD",28/11/2022 00:00:00,25/12/2022 00:00:00,"P09-2023"
"P&V","SOUTH AREA RANGERS","PREMISES RELATED EXPENDITURE","HABITAT MANAGEMENT WORKS","2149","P117703-SERVICE-Treat Invasive Species adjacent to Pymmes Bro",5/12/2022 00:00:00,"269203",325,"GO0044","S.H.GOSS & CO LTD",28/11/2022 00:00:00,25/12/2022 00:00:00,"P09-2023"
"P&V","SOUTH AREA RANGERS","PREMISES RELATED EXPENDITURE","HABITAT MANAGEMENT WORKS","2149","P120291-SERVICE-Scrub Bramble Clearance at Tottenham Marsh",14/12/2022 00:00:00,"269553",3375,"MA0002","GTM RURAL  ENTERPRISES LIMITED",28/11/2022 00:00:00,25/12/2022 00:00:00,"P09-2023"
"P&V","SOUTH AREA RANGERS","PREMISES RELATED EXPENDITURE","HABITAT MANAGEMENT WORKS","2149","P119532-SERVICE-Tree Works at  Ferry Lane, Tottenham Marshes",20/12/2022 00:00:00,"269784",2850,"VE0004","PRINCIPAL TREES LTD",28/11/2022 00:00:00,25/12/2022 00:00:00,"P09-2023"
"P&V","GUNPOWDER PARK","PREMISES RELATED EXPENDITURE","HABITAT MANAGEMENT WORKS","2149","P119814-SERVICE-Cut & Collect at Rammey Marsh",5/12/2022 00:00:00,"269343",3500,"MA0002","GTM RURAL  ENTERPRISES LIMITED",28/11/2022 00:00:00,25/12/2022 00:00:00,"P09-2023"
"P&V","GUNPOWDER PARK","PREMISES RELATED EXPENDITURE","HABITAT MANAGEMENT WORKS","2149","P118961-SERVICE-Japanese Knotweed Spraying - Rammey Marsh",7/12/2022 00:00:00,"269405",225,"GO0044","S.H.GOSS & CO LTD",28/11/2022 00:00:00,25/12/2022 00:00:00,"P09-2023"
,"LEE VALLEY MARINA SPRINGFIELD","PREMISES RELATED EXPENDITURE","GENERAL WASTE","2211","P120302-SERVICE-General waste & recyling Nov 22,Dec 22,Jan 23",14/12/2022 00:00:00,"269377",1356.3,"CL0037","VEOLIA ES (UK) LTD",28/11/2022 00:00:00,25/12/2022 00:00:00,"P09-2023"
,"LEE VALLEY MARINA STANSTEAD","PREMISES RELATED EXPENDITURE","GENERAL WASTE","2211","P117691-SERVICE-Annual useage Veolia -bins 4 Rye and Stan Mar",30/11/2022 00:00:00,"269197",818,"CL0037","VEOLIA ES (UK) LTD",28/11/2022 00:00:00,25/12/2022 00:00:00,"P09-2023"
,"LEE VALLEY MARINA STANSTEAD","PREMISES RELATED EXPENDITURE","GENERAL WASTE","2211","P117691-SERVICE-Annual useage Veolia -bins 4 Rye and Stan Mar",30/11/2022 00:00:00,"269198",-818,"CL0037","VEOLIA ES (UK) LTD",28/11/2022 00:00:00,25/12/2022 00:00:00,"P09-2023"
,"LEE VALLEY MARINA STANSTEAD","PREMISES RELATED EXPENDITURE","GENERAL WASTE","2211","P117691-SERVICE-Annual useage Veolia -bins 4 Rye and Stan Mar",14/12/2022 00:00:00,"269378",538.33,"CL0037","VEOLIA ES (UK) LTD",28/11/2022 00:00:00,25/12/2022 00:00:00,"P09-2023"
,"LEE VALLEY MARINA STANSTEAD","PREMISES RELATED EXPENDITURE","GENERAL WASTE","2211","P117691-SERVICE-Annual useage Veolia -bins 4 Rye and Stan Mar",14/12/2022 00:00:00,"269380",255.3,"CL0037","VEOLIA ES (UK) LTD",28/11/2022 00:00:00,25/12/2022 00:00:00,"P09-2023"
,"LEE VALLEY MARINA STANSTEAD","PREMISES RELATED EXPENDITURE","GENERAL WASTE","2211","P117691-SERVICE-Annual useage Veolia -bins 4 Rye and Stan Mar",14/12/2022 00:00:00,"269383",13.47,"CL0037","VEOLIA ES (UK) LTD",28/11/2022 00:00:00,25/12/2022 00:00:00,"P09-2023"
,"LEE VALLEY CAMPSITE","PREMISES RELATED EXPENDITURE","GENERAL WASTE","2211","P119752-SERVICE-Extra skip site tidy",30/11/2022 00:00:00,"269196",133,"CL0037","VEOLIA ES (UK) LTD",28/11/2022 00:00:00,25/12/2022 00:00:00,"P09-2023"
,"LEE VALLEY CAMPSITE","PREMISES RELATED EXPENDITURE","GENERAL WASTE","2211","P119752-SERVICE-Extra skip site tidy",30/11/2022 00:00:00,"269198",-133,"CL0037","VEOLIA ES (UK) LTD",28/11/2022 00:00:00,25/12/2022 00:00:00,"P09-2023"
,"LEE VALLEY CAMPSITE","PREMISES RELATED EXPENDITURE","GENERAL WASTE","2211","P119821-SERVICE-October empty",14/12/2022 00:00:00,"269381",1.52,"CL0037","VEOLIA ES (UK) LTD",28/11/2022 00:00:00,25/12/2022 00:00:00,"P09-2023"
,"LEE VALLEY CAMPSITE","PREMISES RELATED EXPENDITURE","GENERAL WASTE","2211","P119821-SERVICE-November empty",14/12/2022 00:00:00,"269381",637.49,"CL0037","VEOLIA ES (UK) LTD",28/11/2022 00:00:00,25/12/2022 00:00:00,"P09-2023"
,"LEE VALLEY CARAVAN PARK","PREMISES RELATED EXPENDITURE","GENERAL WASTE","2211","P120377-SERVICE-Waste collection",19/12/2022 00:00:00,"269382",1926.93,"CL0037","VEOLIA ES (UK) LTD",28/11/2022 00:00:00,25/12/2022 00:00:00,"P09-2023"
"P&V","SOUTH AREA RANGERS","PREMISES RELATED EXPENDITURE","GENERAL WASTE","2211","P119545-SERVICE-Skip at WaterWorks Centre",15/12/2022 00:00:00,"269586",308,"GB0239","GBN SERVICES LTD",28/11/2022 00:00:00,25/12/2022 00:00:00,"P09-2023"
"P&V","RIVER LEE COUNTRY PARK","PREMISES RELATED EXPENDITURE","GENERAL WASTE","2211","P119789-SERVICE-12yd General Rubbish Skip at Holyfield Hall F",14/12/2022 00:00:00,"269425",308,"GB0239","GBN SERVICES LTD",28/11/2022 00:00:00,25/12/2022 00:00:00,"P09-2023"
,"LV LEISURE CENTRE CAMPSITE","PREMISES RELATED EXPENDITURE","GENERAL WASTE","2211","P120343-SERVICE-Sanitary waste",15/12/2022 00:00:00,"269351",157.48,"PE0015","PHS GROUP PLC",28/11/2022 00:00:00,25/12/2022 00:00:00,"P09-2023"
,"LV LEISURE CENTRE CAMPSITE","PREMISES RELATED EXPENDITURE","GENERAL WASTE","2211","P120344-SERVICE-Skip hire",15/12/2022 00:00:00,"269379",50.13,"CL0037","VEOLIA ES (UK) LTD",28/11/2022 00:00:00,25/12/2022 00:00:00,"P09-2023"
,"LV LEISURE CENTRE CAMPSITE","PREMISES RELATED EXPENDITURE","GENERAL WASTE","2211","P120350-SERVICE-recycling empty",15/12/2022 00:00:00,"269450",402.95,"BY0049","BYWATERS (LEYTON) LTD",28/11/2022 00:00:00,25/12/2022 00:00:00,"P09-2023"
,"LV LEISURE CENTRE CAMPSITE","PREMISES RELATED EXPENDITURE","GENERAL WASTE","2211","P120354-SERVICE-Sanitary waste",15/12/2022 00:00:00,"269559",157.48,"PE0015","PHS GROUP PLC",28/11/2022 00:00:00,25/12/2022 00:00:00,"P09-2023"
"P&V","MYDDELTON HOUSE","PREMISES RELATED EXPENDITURE","RECYCLING","2214","P119281-SERVICE-Recycling",14/12/2022 00:00:00,"269426",203.17,"CA0341","F & R CAWLEY LTD",28/11/2022 00:00:00,25/12/2022 00:00:00,"P09-2023"
"P&V","MYDDELTON HOUSE","PREMISES RELATED EXPENDITURE","BUILDING SERVICE AGREEMENTS","2220","P119975-SERVICE-Legionella Service Contract",5/12/2022 00:00:00,"269313",726,"JA0177","JASUN ENVIROCARE PLC",28/11/2022 00:00:00,25/12/2022 00:00:00,"P09-2023"
"P&V","MYDDELTON HOUSE","PREMISES RELATED EXPENDITURE","BUILDING SERVICE AGREEMENTS","2220","P120099-SERVICE-Call Out for Leaking Kitchen Waste Pipe at My",5/12/2022 00:00:00,"269315",80,"GI0137","R & P GIBBS LIMITED",28/11/2022 00:00:00,25/12/2022 00:00:00,"P09-2023"
"P&V","MYDDELTON HOUSE","PREMISES RELATED EXPENDITURE","BUILDING SERVICE AGREEMENTS","2220","P120418-SERVICE-Work on Intruder Alarm 06/12/22",21/12/2022 00:00:00,"269770",503.35,"AD0015","ADT FIRE & SECURITY PLC",28/11/2022 00:00:00,25/12/2022 00:00:00,"P09-2023"
,"LEE VALLEY WATERWORKS CENTRE","PREMISES RELATED EXPENDITURE","BUILDING SERVICE AGREEMENTS","2220","P120365-SERVICE-Engineering Service to Carry out PPM - Nov 22",15/12/2022 00:00:00,"269608",75.98,"CO0199","EQUANS FM LIMITED (frmlyENGIE FM LIMITED)",28/11/2022 00:00:00,25/12/2022 00:00:00,"P09-2023"
,"LEE VALLEY WATERWORKS CENTRE","PREMISES RELATED EXPENDITURE","BUILDING SERVICE AGREEMENTS","2220","P120365-SERVICE-Engineering Service to Carry out PPM - Oct 22",15/12/2022 00:00:00,"269609",135.42,"CO0199","EQUANS FM LIMITED (frmlyENGIE FM LIMITED)",28/11/2022 00:00:00,25/12/2022 00:00:00,"P09-2023"
,"LEE VALLEY WATERWORKS CENTRE","PREMISES RELATED EXPENDITURE","BUILDING SERVICE AGREEMENTS","2220","P120366-SERVICE-Water Sampling - Nov 2022 - WWK's",15/12/2022 00:00:00,"269610",167.28,"CO0199","EQUANS FM LIMITED (frmlyENGIE FM LIMITED)",28/11/2022 00:00:00,25/12/2022 00:00:00,"P09-2023"
,"LEE VALLEY WATERWORKS CENTRE","PREMISES RELATED EXPENDITURE","BUILDING SERVICE AGREEMENTS","2220","P120367-SERVICE-Fire Alarm Services - Nov 2022 - WWK's",15/12/2022 00:00:00,"269611",244.21,"CO0199","EQUANS FM LIMITED (frmlyENGIE FM LIMITED)",28/11/2022 00:00:00,25/12/2022 00:00:00,"P09-2023"
"P&V","WILDLIFE DISCOVERY CENTRE","PREMISES RELATED EXPENDITURE","BUILDING SERVICE AGREEMENTS","2220","P120294-SERVICE-Reinstall Tern Raft Camera with Fibre Optic T",14/12/2022 00:00:00,"269444",750,"WI0222","WILDLIFE WINDOWS LIMITED",28/11/2022 00:00:00,25/12/2022 00:00:00,"P09-2023"
"P&V","GUNPOWDER PARK","PREMISES RELATED EXPENDITURE","BUILDING SERVICE AGREEMENTS","2220","P117222-SERVICE-Sanitary Disposal - Gunpowder Park - Public T",15/12/2022 00:00:00,"269593",14.3,"PE0015","PHS GROUP PLC",28/11/2022 00:00:00,25/12/2022 00:00:00,"P09-2023"
"P&V","RIVER LEE COUNTRY PARK","PREMISES RELATED EXPENDITURE","BUILDING SERVICE AGREEMENTS","2220","P117224-SERVICE-Sanitary Disposal - Fishers Green Toilets",15/12/2022 00:00:00,"269592",10.07,"PE0015","PHS GROUP PLC",28/11/2022 00:00:00,25/12/2022 00:00:00,"P09-2023"
"P&V","MYDDELTON HOUSE","PREMISES RELATED EXPENDITURE","BUILDING REPAIRS & MAINTENANCE","2222","P120419-SERVICE-Car Park Flood Lights",21/12/2022 00:00:00,"269803",130,"BR0018","BRADSHAW ELECTRICAL LIMITED",28/11/2022 00:00:00,25/12/2022 00:00:00,"P09-2023"
"P&V","MYDDELTON HOUSE","PREMISES RELATED EXPENDITURE","BUILDING REPAIRS & MAINTENANCE","2222","P120420-SERVICE-Myddelton House Boiler Services",21/12/2022 00:00:00,"269815",505,"GI0137","R & P GIBBS LIMITED",28/11/2022 00:00:00,25/12/2022 00:00:00,"P09-2023"
"P&V","MYDDELTON HOUSE","PREMISES RELATED EXPENDITURE","BUILDING REPAIRS & MAINTENANCE","2222","P120425-SERVICE-Emergency Lighting Remedial Works",21/12/2022 00:00:00,"269828",1040,"BR0018","BRADSHAW ELECTRICAL LIMITED",28/11/2022 00:00:00,25/12/2022 00:00:00,"P09-2023"
"CEO","RESIDENTIAL ACCOMMODATION","PREMISES RELATED EXPENDITURE","BUILDING REPAIRS & MAINTENANCE","2222","P120298-SERVICE-Maintenance",14/12/2022 00:00:00,"269330",75,"CA0165","CASTLES",28/11/2022 00:00:00,25/12/2022 00:00:00,"P09-2023"
"CEO","RESIDENTIAL ACCOMMODATION","PREMISES RELATED EXPENDITURE","BUILDING REPAIRS & MAINTENANCE","2222","P120298-SERVICE-Maintenance",14/12/2022 00:00:00,"269344",95,"CA0165","CASTLES",28/11/2022 00:00:00,25/12/2022 00:00:00,"P09-2023"
"CEO","RESIDENTIAL ACCOMMODATION","PREMISES RELATED EXPENDITURE","BUILDING REPAIRS & MAINTENANCE","2222","P120298-SERVICE-Maintenance",14/12/2022 00:00:00,"269428",291.67,"CA0165","CASTLES",28/11/2022 00:00:00,25/12/2022 00:00:00,"P09-2023"
"CEO","RESIDENTIAL ACCOMMODATION","PREMISES RELATED EXPENDITURE","BUILDING REPAIRS & MAINTENANCE","2222","P120298-SERVICE-Maintenance",19/12/2022 00:00:00,"269548",458.33,"CA0165","CASTLES",28/11/2022 00:00:00,25/12/2022 00:00:00,"P09-2023"
"CEO","COMMERCIAL ACCOMMODATION","PREMISES RELATED EXPENDITURE","BUILDING REPAIRS & MAINTENANCE","2222","P119847-SERVICE-Car Parking Signs for New Tennant at Abercrom",14/12/2022 00:00:00,"269111",285,"SI0024","SIGNS EXPRESS (HARLOW)",28/11/2022 00:00:00,25/12/2022 00:00:00,"P09-2023"
,"LEE VALLEY MARINA SPRINGFIELD","PREMISES RELATED EXPENDITURE","BUILDING REPAIRS & MAINTENANCE","2222","P120025-SERVICE-Investigate power failure to clubhouse & repa",6/12/2022 00:00:00,"268954",130,"BR0018","BRADSHAW ELECTRICAL LIMITED",28/11/2022 00:00:00,25/12/2022 00:00:00,"P09-2023"
,"LEE VALLEY MARINA SPRINGFIELD","PREMISES RELATED EXPENDITURE","BUILDING REPAIRS & MAINTENANCE","2222","P120107-SERVICE-To carry out P.A testing at Springfield",6/12/2022 00:00:00,"269286",612,"BR0018","BRADSHAW ELECTRICAL LIMITED",28/11/2022 00:00:00,25/12/2022 00:00:00,"P09-2023"
,"LEE VALLEY MARINA SPRINGFIELD","PREMISES RELATED EXPENDITURE","BUILDING REPAIRS & MAINTENANCE","2222","P120026-SERVICE-To replace camera on pole overlooking chicane",14/12/2022 00:00:00,"269579",230,"DE0013","DENNIS SECURITY CENTRE",28/11/2022 00:00:00,25/12/2022 00:00:00,"P09-2023"
,"LEE VALLEY MARINA SPRINGFIELD","PREMISES RELATED EXPENDITURE","BUILDING REPAIRS & MAINTENANCE","2222","P120385-SERVICE-Annual alarm service for chandlery",19/12/2022 00:00:00,"269587",210.05,"CH0088","CHUBB FIRE & SECURITY",28/11/2022 00:00:00,25/12/2022 00:00:00,"P09-2023"
,"LEE VALLEY MARINA SPRINGFIELD","PREMISES RELATED EXPENDITURE","BUILDING REPAIRS & MAINTENANCE","2222","P119044-SERVICE-Dec cctv maintenance & fix fault on camera 15",19/12/2022 00:00:00,"269606",60,"DE0013","DENNIS SECURITY CENTRE",28/11/2022 00:00:00,25/12/2022 00:00:00,"P09-2023"
,"LEE VALLEY MARINA SPRINGFIELD","PREMISES RELATED EXPENDITURE","BUILDING REPAIRS & MAINTENANCE","2222","P119921-SERVICE-Replace faulty lobby light & clubhouse fan",20/12/2022 00:00:00,"269800",315,"BR0018","BRADSHAW ELECTRICAL LIMITED",28/11/2022 00:00:00,25/12/2022 00:00:00,"P09-2023"
,"LEE VALLEY MARINA STANSTEAD","PREMISES RELATED EXPENDITURE","BUILDING REPAIRS & MAINTENANCE","2222","P120151-SERVICE-kitchen tube lights and starters",5/12/2022 00:00:00,"269134",16.52,"SC0057","SCREWFIX DIRECT LTD",28/11/2022 00:00:00,25/12/2022 00:00:00,"P09-2023"
,"LEE VALLEY MARINA STANSTEAD","PREMISES RELATED EXPENDITURE","BUILDING REPAIRS & MAINTENANCE","2222","P120071-SERVICE-PAT Testing 2022",7/12/2022 00:00:00,"269345",236.97,"UK0070","UK SAFETY MANAGEMENT LTD",28/11/2022 00:00:00,25/12/2022 00:00:00,"P09-2023"
"P&V","WILDLIFE DISCOVERY CENTRE","PREMISES RELATED EXPENDITURE","BUILDING REPAIRS & MAINTENANCE","2222","P120056-SERVICE-PAT Testing at Wildlife Discovery Centre",5/12/2022 00:00:00,"269341",87,"BR0018","BRADSHAW ELECTRICAL LIMITED",28/11/2022 00:00:00,25/12/2022 00:00:00,"P09-2023"
"P&V","WILDLIFE DISCOVERY CENTRE","PREMISES RELATED EXPENDITURE","BUILDING REPAIRS & MAINTENANCE","2222","P120164-SERVICE-Fire Extinguisher Inspection Wildlife Discove",21/12/2022 00:00:00,"269832",109.59,"TJ0009","T.J.FIRE & SECURITY",28/11/2022 00:00:00,25/12/2022 00:00:00,"P09-2023"
,"LV LEISURE CENTRE CAMPSITE","PREMISES RELATED EXPENDITURE","BUILDING REPAIRS & MAINTENANCE","2222","P120098-SERVICE-Campsite and greenkeepers fire equipment",5/12/2022 00:00:00,"269194",214,"RV0035","RVTV SECURITY GROUP LTD",28/11/2022 00:00:00,25/12/2022 00:00:00,"P09-2023"
,"LV LEISURE CENTRE CAMPSITE","PREMISES RELATED EXPENDITURE","BUILDING REPAIRS & MAINTENANCE","2222","P120251-SERVICE-Pump unit quote",6/12/2022 00:00:00,"269336",392.4,"FY0056","FYFE WILSON LTD",28/11/2022 00:00:00,25/12/2022 00:00:00,"P09-2023"
,"LV LEISURE CENTRE CAMPSITE","PREMISES RELATED EXPENDITURE","BUILDING REPAIRS & MAINTENANCE","2222","P120250-SERVICE-Cleaning suppluies",6/12/2022 00:00:00,"269342",240.54,"HY0043","HYGIENE SYSTEMS LTD",28/11/2022 00:00:00,25/12/2022 00:00:00,"P09-2023"
"CEO","LVLC SERVICE CHARGE","PREMISES RELATED EXPENDITURE","BUILDING REPAIRS & MAINTENANCE","2222","P117653-SERVICE-Contract Sweep",5/12/2022 00:00:00,"269155",150,"SE0374","SELECT SWEEPER HIRE LTD",28/11/2022 00:00:00,25/12/2022 00:00:00,"P09-2023"
"P&V","ABBEY GARDENS","SUPPLIES AND SERVICES","FENCES/GATES ETC.","2231","P120117-SERVICE-Remove/Dispose Bollards - Tree Park",7/12/2022 00:00:00,"269324",950,"JO0019","R G JOYCE",28/11/2022 00:00:00,25/12/2022 00:00:00,"P09-2023"
"P&V","GUNPOWDER PARK","SUPPLIES AND SERVICES","FENCES/GATES ETC.","2231","P119738-SERVICE-Remove and Replace Fence at Rammey",20/12/2022 00:00:00,"269756",2450,"BU0090","BUSH WHEELER SERVICES LTD",28/11/2022 00:00:00,25/12/2022 00:00:00,"P09-2023"
"P&V","RIVER LEE COUNTRY PARK","SUPPLIES AND SERVICES","FENCES/GATES ETC.","2231","P119879-SERVICE-Install Gate at ESSA Track",30/11/2022 00:00:00,"269213",950,"JO0019","R G JOYCE",28/11/2022 00:00:00,25/12/2022 00:00:00,"P09-2023"
"P&V","RIVER LEE COUNTRY PARK","SUPPLIES AND SERVICES","FENCES/GATES ETC.","2231","P120118-SERVICE-Remove Rotten Gate at Hooks Marsh Car Park",20/12/2022 00:00:00,"269441",200,"JO0019","R G JOYCE",28/11/2022 00:00:00,25/12/2022 00:00:00,"P09-2023"
"CEO","COMMERCIAL ACCOMMODATION","PREMISES RELATED EXPENDITURE","EAST HALE ALLOTMENTS","2261","P117652-SERVICE-Allotment Bins",14/12/2022 00:00:00,"269384",126.17,"CL0037","VEOLIA ES (UK) LTD",28/11/2022 00:00:00,25/12/2022 00:00:00,"P09-2023"
"CEO","RESIDENTIAL ACCOMMODATION","PREMISES RELATED EXPENDITURE","ENERGY COSTS (ELECTRICITY)","2332","JUNE-AUGUST 2020",14/12/2022 00:00:00,"251902",522.45,"NP0123","NPOWER LIMITED",28/11/2022 00:00:00,25/12/2022 00:00:00,"P09-2023"
"CEO","RESIDENTIAL ACCOMMODATION","PREMISES RELATED EXPENDITURE","ENERGY COSTS (ELECTRICITY)","2332","SEPTEMBER 2020",14/12/2022 00:00:00,"251903",170.3,"NP0123","NPOWER LIMITED",28/11/2022 00:00:00,25/12/2022 00:00:00,"P09-2023"
"CEO","RESIDENTIAL ACCOMMODATION","PREMISES RELATED EXPENDITURE","ENERGY COSTS (ELECTRICITY)","2332","OCTOBER 2020 - NOVEMBER 2020",7/12/2022 00:00:00,"251904",460.26,"NP0123","NPOWER LIMITED",28/11/2022 00:00:00,25/12/2022 00:00:00,"P09-2023"
"CEO","RESIDENTIAL ACCOMMODATION","PREMISES RELATED EXPENDITURE","ENERGY COSTS (ELECTRICITY)","2332","JUNE - SEPTEMBER 2022",19/12/2022 00:00:00,"268242",2348.17,"EO0398","E-ON NEXT ENERGY LTD",28/11/2022 00:00:00,25/12/2022 00:00:00,"P09-2023"
"CEO","RESIDENTIAL ACCOMMODATION","PREMISES RELATED EXPENDITURE","ENERGY COSTS (ELECTRICITY)","2332","DEC 2020 - FEB 2021",7/12/2022 00:00:00,"269365",-280.04,"NP0123","NPOWER LIMITED",28/11/2022 00:00:00,25/12/2022 00:00:00,"P09-2023"
"CEO","RESIDENTIAL ACCOMMODATION","PREMISES RELATED EXPENDITURE","ENERGY COSTS (ELECTRICITY)","2332","OCT 2020 - NOV 2020",7/12/2022 00:00:00,"269367",-460.26,"NP0123","NPOWER LIMITED",28/11/2022 00:00:00,25/12/2022 00:00:00,"P09-2023"
"CEO","RESIDENTIAL ACCOMMODATION","PREMISES RELATED EXPENDITURE","ENERGY COSTS (ELECTRICITY)","2332","OCTOBER 2020",7/12/2022 00:00:00,"269416",219,"NP0123","NPOWER LIMITED",28/11/2022 00:00:00,25/12/2022 00:00:00,"P09-2023"
"CEO","RESIDENTIAL ACCOMMODATION","PREMISES RELATED EXPENDITURE","ENERGY COSTS (ELECTRICITY)","2332","OCTOBER 2020",7/12/2022 00:00:00,"269417",-219,"NP0123","NPOWER LIMITED",28/11/2022 00:00:00,25/12/2022 00:00:00,"P09-2023"
"CEO","RESIDENTIAL ACCOMMODATION","PREMISES RELATED EXPENDITURE","ENERGY COSTS (ELECTRICITY)","2332","OCTOBER 2020",7/12/2022 00:00:00,"269418",74.73,"NP0123","NPOWER LIMITED",28/11/2022 00:00:00,25/12/2022 00:00:00,"P09-2023"
"CEO","RESIDENTIAL ACCOMMODATION","PREMISES RELATED EXPENDITURE","ENERGY COSTS (ELECTRICITY)","2332","JUNE 2020-AUG 2020",14/12/2022 00:00:00,"269447",-522.45,"NP0123","NPOWER LIMITED",28/11/2022 00:00:00,25/12/2022 00:00:00,"P09-2023"
"CEO","RESIDENTIAL ACCOMMODATION","PREMISES RELATED EXPENDITURE","ENERGY COSTS (ELECTRICITY)","2332","SEPTEMBER 2020",14/12/2022 00:00:00,"269448",-170.3,"NP0123","NPOWER LIMITED",28/11/2022 00:00:00,25/12/2022 00:00:00,"P09-2023"
"CEO","RESIDENTIAL ACCOMMODATION","PREMISES RELATED EXPENDITURE","ENERGY COSTS (ELECTRICITY)","2332","17/11/22 - 30/11/22",19/12/2022 00:00:00,"269542",23.33,"EO0398","E-ON NEXT ENERGY LTD",28/11/2022 00:00:00,25/12/2022 00:00:00,"P09-2023"
"CEO","RESIDENTIAL ACCOMMODATION","PREMISES RELATED EXPENDITURE","ENERGY COSTS (ELECTRICITY)","2332","16/11/22 - 30/11/22",19/12/2022 00:00:00,"269772",90.57,"EO0398","E-ON NEXT ENERGY LTD",28/11/2022 00:00:00,25/12/2022 00:00:00,"P09-2023"
"CEO","RESIDENTIAL ACCOMMODATION","PREMISES RELATED EXPENDITURE","ENERGY COSTS (ELECTRICITY)","2332","JUINE - SEPTEMBER 2022",19/12/2022 00:00:00,"269788",-2348.17,"EO0398","E-ON NEXT ENERGY LTD",28/11/2022 00:00:00,25/12/2022 00:00:00,"P09-2023"
"CEO","COMMERCIAL ACCOMMODATION","PREMISES RELATED EXPENDITURE","ENERGY COSTS (ELECTRICITY)","2332","17/11/22 - 30/11/22",19/12/2022 00:00:00,"269769",16.63,"EO0398","E-ON NEXT ENERGY LTD",28/11/2022 00:00:00,25/12/2022 00:00:00,"P09-2023"
"P&V","LEE VALLEY FARM HOLYFIELDHALL","PREMISES RELATED EXPENDITURE","ENERGY COSTS (ELECTRICITY)","2332","MARCH 2022 - MAY 2022",5/12/2022 00:00:00,"264274",304.46,"KE0007","KENT COUNTY COUNCIL (KCS)",28/11/2022 00:00:00,25/12/2022 00:00:00,"P09-2023"
"P&V","CAR PARK INCOME","PREMISES RELATED EXPENDITURE","ENERGY COSTS (ELECTRICITY)","2332","NOVEMBER 2022",20/12/2022 00:00:00,"269763",31.96,"NP0123","NPOWER LIMITED",28/11/2022 00:00:00,25/12/2022 00:00:00,"P09-2023"
"P&V","CAR PARK INCOME","PREMISES RELATED EXPENDITURE","ENERGY COSTS (ELECTRICITY)","2332","NOVEMBER 2022",20/12/2022 00:00:00,"269764",48.15,"NP0123","NPOWER LIMITED",28/11/2022 00:00:00,25/12/2022 00:00:00,"P09-2023"
,"LEE VALLEY VELOPARK","PREMISES RELATED EXPENDITURE","ENERGY COSTS (ELECTRICITY)","2332","19-08-22 - 18/11/22",20/12/2022 00:00:00,"269356",0.18,"ED0321","EDF ENERGY CUSTOMERS PLC",28/11/2022 00:00:00,25/12/2022 00:00:00,"P09-2023"
,"LEE VALLEY VELOPARK","PREMISES RELATED EXPENDITURE","ENERGY COSTS (ELECTRICITY)","2332","19-08-22 - 18/11/22",20/12/2022 00:00:00,"269356",16.26,"ED0321","EDF ENERGY CUSTOMERS PLC",28/11/2022 00:00:00,25/12/2022 00:00:00,"P09-2023"
,"LEE VALLEY VELOPARK","PREMISES RELATED EXPENDITURE","ENERGY COSTS (ELECTRICITY)","2332","05/09/21 - 04/12/21",20/12/2022 00:00:00,"269774",-474.2,"ED0321","EDF ENERGY CUSTOMERS PLC",28/11/2022 00:00:00,25/12/2022 00:00:00,"P09-2023"
,"LEE VALLEY VELOPARK","PREMISES RELATED EXPENDITURE","ENERGY COSTS (ELECTRICITY)","2332","05/12/21 - 04/03/22",20/12/2022 00:00:00,"269775",-732.29,"ED0321","EDF ENERGY CUSTOMERS PLC",28/11/2022 00:00:00,25/12/2022 00:00:00,"P09-2023"
,"LEE VALLEY VELOPARK","PREMISES RELATED EXPENDITURE","ENERGY COSTS (ELECTRICITY)","2332","05/03/22 - 04/06/22",20/12/2022 00:00:00,"269776",-2.84,"ED0321","EDF ENERGY CUSTOMERS PLC",28/11/2022 00:00:00,25/12/2022 00:00:00,"P09-2023"
,"LEE VALLEY VELOPARK","PREMISES RELATED EXPENDITURE","ENERGY COSTS (ELECTRICITY)","2332","05/03/22 - 04/06/22",20/12/2022 00:00:00,"269776",-768.88,"ED0321","EDF ENERGY CUSTOMERS PLC",28/11/2022 00:00:00,25/12/2022 00:00:00,"P09-2023"
,"LEE VALLEY VELOPARK","PREMISES RELATED EXPENDITURE","ENERGY COSTS (ELECTRICITY)","2332","05/06/22 - 04/09/22",20/12/2022 00:00:00,"269777",-2.99,"ED0321","EDF ENERGY CUSTOMERS PLC",28/11/2022 00:00:00,25/12/2022 00:00:00,"P09-2023"
,"LEE VALLEY VELOPARK","PREMISES RELATED EXPENDITURE","ENERGY COSTS (ELECTRICITY)","2332","05/06/22 - 04/09/22",20/12/2022 00:00:00,"269777",-652.11,"ED0321","EDF ENERGY CUSTOMERS PLC",28/11/2022 00:00:00,25/12/2022 00:00:00,"P09-2023"
,"LEE VALLEY VELOPARK","PREMISES RELATED EXPENDITURE","ENERGY COSTS (ELECTRICITY)","2332","05/09/21 - 17/09/21",20/12/2022 00:00:00,"269778",0.56,"ED0321","EDF ENERGY CUSTOMERS PLC",28/11/2022 00:00:00,25/12/2022 00:00:00,"P09-2023"
,"LEE VALLEY VELOPARK","PREMISES RELATED EXPENDITURE","ENERGY COSTS (ELECTRICITY)","2332","05/09/21 - 17/09/21",20/12/2022 00:00:00,"269778",12.61,"ED0321","EDF ENERGY CUSTOMERS PLC",28/11/2022 00:00:00,25/12/2022 00:00:00,"P09-2023"
,"LEE VALLEY RIDING CENTRE","PREMISES RELATED EXPENDITURE","ENERGY COSTS (ELECTRICITY)","2332","MARCH 2021 - MAY 2021",7/12/2022 00:00:00,"269366",-286.19,"NP0123","NPOWER LIMITED",28/11/2022 00:00:00,25/12/2022 00:00:00,"P09-2023"
,"LEE VALLEY RIDING CENTRE","PREMISES RELATED EXPENDITURE","ENERGY COSTS (ELECTRICITY)","2332","JUNE 2021 - AUGUST 2021",7/12/2022 00:00:00,"269368",-286.02,"NP0123","NPOWER LIMITED",28/11/2022 00:00:00,25/12/2022 00:00:00,"P09-2023"
,"LV LEISURE CENTRE CAMPSITE","PREMISES RELATED EXPENDITURE","ENERGY COSTS (ELECTRICITY)","2332","OCTOBER 2022",5/12/2022 00:00:00,"269161",10357.29,"NP0123","NPOWER LIMITED",28/11/2022 00:00:00,25/12/2022 00:00:00,"P09-2023"
"P&V","MYDDELTON HOUSE","PREMISES RELATED EXPENDITURE","ENERGY COSTS (GAS)","2333","OCTOBER 2022",14/12/2022 00:00:00,"269529",855.12,"KE0007","KENT COUNTY COUNCIL (KCS)",28/11/2022 00:00:00,25/12/2022 00:00:00,"P09-2023"
"P&V","MYDDELTON HOUSE","PREMISES RELATED EXPENDITURE","ENERGY COSTS (GAS)","2333","NOVEMBER 2022",19/12/2022 00:00:00,"269758",1340.91,"KE0007","KENT COUNTY COUNCIL (KCS)",28/11/2022 00:00:00,25/12/2022 00:00:00,"P09-2023"
"CEO","COMMERCIAL ACCOMMODATION","PREMISES RELATED EXPENDITURE","ENERGY COSTS (GAS)","2333","18TH OCTOBER - 17TH NOVEMBER",5/12/2022 00:00:00,"269000",9.9,"BR0654","BRITISH GAS TRADING LTD",28/11/2022 00:00:00,25/12/2022 00:00:00,"P09-2023"
,"LEE VALLEY MARINA SPRINGFIELD","PREMISES RELATED EXPENDITURE","ENERGY COSTS (GAS)","2333","OCTOBER 2022",14/12/2022 00:00:00,"269535",587.99,"KE0007","KENT COUNTY COUNCIL (KCS)",28/11/2022 00:00:00,25/12/2022 00:00:00,"P09-2023"
,"LEE VALLEY MARINA SPRINGFIELD","PREMISES RELATED EXPENDITURE","ENERGY COSTS (GAS)","2333","NOVEMBER 2022",19/12/2022 00:00:00,"269730",887.35,"KE0007","KENT COUNTY COUNCIL (KCS)",28/11/2022 00:00:00,25/12/2022 00:00:00,"P09-2023"
,"LEE VALLEY MARINA STANSTEAD","PREMISES RELATED EXPENDITURE","ENERGY COSTS (GAS)","2333","OCTOBER 2022",14/12/2022 00:00:00,"269530",124.23,"KE0007","KENT COUNTY COUNCIL (KCS)",28/11/2022 00:00:00,25/12/2022 00:00:00,"P09-2023"
,"LEE VALLEY MARINA STANSTEAD","PREMISES RELATED EXPENDITURE","ENERGY COSTS (GAS)","2333","OCTOBER 2022",14/12/2022 00:00:00,"269531",175.24,"KE0007","KENT COUNTY COUNCIL (KCS)",28/11/2022 00:00:00,25/12/2022 00:00:00,"P09-2023"
,"LEE VALLEY MARINA STANSTEAD","PREMISES RELATED EXPENDITURE","ENERGY COSTS (GAS)","2333","NOVEMBER 2022",21/12/2022 00:00:00,"269731",196.79,"KE0007","KENT COUNTY COUNCIL (KCS)",28/11/2022 00:00:00,25/12/2022 00:00:00,"P09-2023"
,"LEE VALLEY MARINA STANSTEAD","PREMISES RELATED EXPENDITURE","ENERGY COSTS (GAS)","2333","NOVEMBER 2022",21/12/2022 00:00:00,"269732",340.86,"KE0007","KENT COUNTY COUNCIL (KCS)",28/11/2022 00:00:00,25/12/2022 00:00:00,"P09-2023"
,"LEE VALLEY WATERWORKS CENTRE","PREMISES RELATED EXPENDITURE","ENERGY COSTS (GAS)","2333","OCTOBER 2022",19/12/2022 00:00:00,"269532",753.94,"KE0007","KENT COUNTY COUNCIL (KCS)",28/11/2022 00:00:00,25/12/2022 00:00:00,"P09-2023"
,"LEE VALLEY WATERWORKS CENTRE","PREMISES RELATED EXPENDITURE","ENERGY COSTS (GAS)","2333","NOVEMBER 2022",19/12/2022 00:00:00,"269729",913.72,"KE0007","KENT COUNTY COUNCIL (KCS)",28/11/2022 00:00:00,25/12/2022 00:00:00,"P09-2023"
,"LEE VALLEY CAMPSITE","PREMISES RELATED EXPENDITURE","ENERGY COSTS (GAS)","2333","OCTOBER 2022",14/12/2022 00:00:00,"269533",744.63,"KE0007","KENT COUNTY COUNCIL (KCS)",28/11/2022 00:00:00,25/12/2022 00:00:00,"P09-2023"
,"LEE VALLEY CAMPSITE","PREMISES RELATED EXPENDITURE","ENERGY COSTS (GAS)","2333","NOVEMBER 2022",19/12/2022 00:00:00,"269733",1096.69,"KE0007","KENT COUNTY COUNCIL (KCS)",28/11/2022 00:00:00,25/12/2022 00:00:00,"P09-2023"
,"LEE VALLEY CARAVAN PARK","PREMISES RELATED EXPENDITURE","ENERGY COSTS (GAS)","2333","P120263-SERVICE-Gas delivery",7/12/2022 00:00:00,"269320",6982.89,"AV0327","AVANTI GAS LIMITED",28/11/2022 00:00:00,25/12/2022 00:00:00,"P09-2023"
,"LEE VALLEY CARAVAN PARK","PREMISES RELATED EXPENDITURE","ENERGY COSTS (GAS)","2333","P120378-SERVICE-Gas delivery",19/12/2022 00:00:00,"269427",639.65,"AV0327","AVANTI GAS LIMITED",28/11/2022 00:00:00,25/12/2022 00:00:00,"P09-2023"
,"LEE VALLEY CARAVAN PARK","PREMISES RELATED EXPENDITURE","ENERGY COSTS (GAS)","2333","P120411-SERVICE-Gas delivery",21/12/2022 00:00:00,"269822",8579.7,"AV0327","AVANTI GAS LIMITED",28/11/2022 00:00:00,25/12/2022 00:00:00,"P09-2023"
"P&V","GUNPOWDER PARK","PREMISES RELATED EXPENDITURE","ENERGY COSTS (GAS)","2333","OCTOBER 2022",19/12/2022 00:00:00,"269613",53.59,"KE0007","KENT COUNTY COUNCIL (KCS)",28/11/2022 00:00:00,25/12/2022 00:00:00,"P09-2023"
"P&V","GUNPOWDER PARK","PREMISES RELATED EXPENDITURE","ENERGY COSTS (GAS)","2333","NOVEMBER 2022",20/12/2022 00:00:00,"269745",69.47,"KE0007","KENT COUNTY COUNCIL (KCS)",28/11/2022 00:00:00,25/12/2022 00:00:00,"P09-2023"
,"LV LEISURE CENTRE CAMPSITE","PREMISES RELATED EXPENDITURE","ENERGY COSTS (GAS)","2333","OCTOBER 2022",14/12/2022 00:00:00,"269534",3571.93,"KE0007","KENT COUNTY COUNCIL (KCS)",28/11/2022 00:00:00,25/12/2022 00:00:00,"P09-2023"
,"LEE VALLEY MARINA SPRINGFIELD","PREMISES RELATED EXPENDITURE","RENT (EXTERNAL)","2442","RENT - DECEMBER 2022 - FEBRUARY 2023",5/12/2022 00:00:00,"269127",2618.75,"TH0020","THAMES WATER UTILITIES LIMITED",28/11/2022 00:00:00,25/12/2022 00:00:00,"P09-2023"
"P&V","KING GEORGE RESERVOIR SOUTH","PREMISES RELATED EXPENDITURE","RENT (EXTERNAL)","2442","RENT JANUARY2023 - MARCH 2023",19/12/2022 00:00:00,"269598",3375,"TH0020","THAMES WATER UTILITIES LIMITED",28/11/2022 00:00:00,25/12/2022 00:00:00,"P09-2023"
"P&V","NORTH AREA RANGERS","PREMISES RELATED EXPENDITURE","RENT (EXTERNAL)","2442","ROYDON PARISH COUNCIL",14/12/2022 00:00:00,"269569",1077.48,"RO0025","ROYDON PARISH COUNCIL",28/11/2022 00:00:00,25/12/2022 00:00:00,"P09-2023"
"P&V","NORTH AREA RANGERS","PREMISES RELATED EXPENDITURE","RENT (EXTERNAL)","2442","ROYDON PARISH COUNCIL",14/12/2022 00:00:00,"269570",1077.48,"RO0025","ROYDON PARISH COUNCIL",28/11/2022 00:00:00,25/12/2022 00:00:00,"P09-2023"
"CEO","RESIDENTIAL ACCOMMODATION","PREMISES RELATED EXPENDITURE","PROPERTY MANAGEMT/LETTING FEES","2447","P120252-SERVICE-Landlord Warranty - 2 Connaught Close",14/12/2022 00:00:00,"269329",357,"CA0165","CASTLES",28/11/2022 00:00:00,25/12/2022 00:00:00,"P09-2023"
"CEO","RESIDENTIAL ACCOMMODATION","PREMISES RELATED EXPENDITURE","PROPERTY MANAGEMT/LETTING FEES","2447","P120252-SERVICE-Landlord Warranty - 2 Connaught Close",14/12/2022 00:00:00,"269347",2100,"CA0165","CASTLES",28/11/2022 00:00:00,25/12/2022 00:00:00,"P09-2023"
"P&V","MYDDELTON HOUSE","PREMISES RELATED EXPENDITURE","WATER","2555","NOVEMBER 2022",19/12/2022 00:00:00,"269768",2421.11,"CA0625","CASTLE WATER LIMITED",28/11/2022 00:00:00,25/12/2022 00:00:00,"P09-2023"
,"LEE VALLEY MARINA SPRINGFIELD","PREMISES RELATED EXPENDITURE","WATER","2555","OCTOBER 2022",7/12/2022 00:00:00,"269306",-1448.88,"CA0625","CASTLE WATER LIMITED",28/11/2022 00:00:00,25/12/2022 00:00:00,"P09-2023"
,"LEE VALLEY MARINA SPRINGFIELD","PREMISES RELATED EXPENDITURE","WATER","2555","OCTOBER 2022",7/12/2022 00:00:00,"269306",-991.63,"CA0625","CASTLE WATER LIMITED",28/11/2022 00:00:00,25/12/2022 00:00:00,"P09-2023"
,"LEE VALLEY MARINA SPRINGFIELD","PREMISES RELATED EXPENDITURE","WATER","2555","OCT 2022 - NOV 2022",7/12/2022 00:00:00,"269307",2365.77,"CA0625","CASTLE WATER LIMITED",28/11/2022 00:00:00,25/12/2022 00:00:00,"P09-2023"
,"LEE VALLEY MARINA SPRINGFIELD","PREMISES RELATED EXPENDITURE","WATER","2555","OCT 2022 - NOV 2022",7/12/2022 00:00:00,"269307",1647.2,"CA0625","CASTLE WATER LIMITED",28/11/2022 00:00:00,25/12/2022 00:00:00,"P09-2023"
,"LEE VALLEY MARINA STANSTEAD","PREMISES RELATED EXPENDITURE","WATER","2555","HANKINS YARD OCT 2022 - MARCH 2023",5/12/2022 00:00:00,"269126",256.65,"CA0625","CASTLE WATER LIMITED",28/11/2022 00:00:00,25/12/2022 00:00:00,"P09-2023"
,"LEE VALLEY MARINA STANSTEAD","PREMISES RELATED EXPENDITURE","WATER","2555","NOVEMBER 2022",14/12/2022 00:00:00,"269373",114.41,"CA0625","CASTLE WATER LIMITED",28/11/2022 00:00:00,25/12/2022 00:00:00,"P09-2023"
,"LEE VALLEY MARINA STANSTEAD","PREMISES RELATED EXPENDITURE","WATER","2555","NOVEMBER 2022",14/12/2022 00:00:00,"269373",106.57,"CA0625","CASTLE WATER LIMITED",28/11/2022 00:00:00,25/12/2022 00:00:00,"P09-2023"
,"LEE VALLEY WATERWORKS CENTRE","PREMISES RELATED EXPENDITURE","WATER","2555","NOVEMBER 2022",7/12/2022 00:00:00,"269371",97.26,"CA0625","CASTLE WATER LIMITED",28/11/2022 00:00:00,25/12/2022 00:00:00,"P09-2023"
"P&V","LEE VALLEY FARM HOLYFIELDHALL","PREMISES RELATED EXPENDITURE","WATER","2555","1ST OCTOBER 2022 - 31ST MARCH 2023",6/12/2022 00:00:00,"269206",2304.17,"CA0625","CASTLE WATER LIMITED",28/11/2022 00:00:00,25/12/2022 00:00:00,"P09-2023"
,"LEE VALLEY CAMPSITE","PREMISES RELATED EXPENDITURE","WATER","2555","NOVEMBER 2022",7/12/2022 00:00:00,"269370",3173.16,"CA0625","CASTLE WATER LIMITED",28/11/2022 00:00:00,25/12/2022 00:00:00,"P09-2023"
,"LEE VALLEY CARAVAN PARK","PREMISES RELATED EXPENDITURE","WATER","2555","NOVEMBER 2022",7/12/2022 00:00:00,"269372",2656.56,"CA0625","CASTLE WATER LIMITED",28/11/2022 00:00:00,25/12/2022 00:00:00,"P09-2023"
,"LEE VALLEY CARAVAN PARK","PREMISES RELATED EXPENDITURE","WATER","2555","NOVEMBER 2022",7/12/2022 00:00:00,"269372",1745.69,"CA0625","CASTLE WATER LIMITED",28/11/2022 00:00:00,25/12/2022 00:00:00,"P09-2023"
"P&V","EAST INDIA DOCK AND BOW CREEK","PREMISES RELATED EXPENDITURE","WATER","2555","ENVIRONMENT AGENCY",30/11/2022 00:00:00,"269156",538,"EN0024","ENVIRONMENT AGENCY",28/11/2022 00:00:00,25/12/2022 00:00:00,"P09-2023"
"P&V","RIVER LEE COUNTRY PARK","PREMISES RELATED EXPENDITURE","WATER","2555","ENVIRONMENT AGENCY",30/11/2022 00:00:00,"269156",102,"EN0024","ENVIRONMENT AGENCY",28/11/2022 00:00:00,25/12/2022 00:00:00,"P09-2023"
,"LV LEISURE CENTRE CAMPSITE","PREMISES RELATED EXPENDITURE","WATER","2555","NOVEMBER 2022",5/12/2022 00:00:00,"269153",1.71,"CA0625","CASTLE WATER LIMITED",28/11/2022 00:00:00,25/12/2022 00:00:00,"P09-2023"
,"LV LEISURE CENTRE CAMPSITE","PREMISES RELATED EXPENDITURE","WATER","2555","NOVEMBER 2022",5/12/2022 00:00:00,"269153",325.43,"CA0625","CASTLE WATER LIMITED",28/11/2022 00:00:00,25/12/2022 00:00:00,"P09-2023"
,"LV LEISURE CENTRE CAMPSITE","PREMISES RELATED EXPENDITURE","WATER","2555","NOVEMBER 2022",14/12/2022 00:00:00,"269445",32.14,"CA0625","CASTLE WATER LIMITED",28/11/2022 00:00:00,25/12/2022 00:00:00,"P09-2023"
,"LV LEISURE CENTRE CAMPSITE","PREMISES RELATED EXPENDITURE","WATER","2555","NOVEMBER 2022",14/12/2022 00:00:00,"269445",32.49,"CA0625","CASTLE WATER LIMITED",28/11/2022 00:00:00,25/12/2022 00:00:00,"P09-2023"
,"LEE VALLEY WHITE WATER CENTRE","PREMISES RELATED EXPENDITURE","WATER","2555","ENVIRONMENT AGENCY",7/12/2022 00:00:00,"269158",538,"EN0024","ENVIRONMENT AGENCY",28/11/2022 00:00:00,25/12/2022 00:00:00,"P09-2023"
"P&V","MYDDELTON HOUSE","PREMISES RELATED EXPENDITURE","CLEANING & DOMESTIC SUPPLIES","2666","P120229-SERVICE-H5248 Refuse Sacks Medium Duty 9.43 x 3",15/12/2022 00:00:00,"269573",29.25,"HY0043","HYGIENE SYSTEMS LTD",28/11/2022 00:00:00,25/12/2022 00:00:00,"P09-2023"
,"LEE VALLEY MARINA SPRINGFIELD","PREMISES RELATED EXPENDITURE","CLEANING & DOMESTIC SUPPLIES","2666","P120027-SERVICE-To supply items as requested",6/12/2022 00:00:00,"268987",335.58,"HY0043","HYGIENE SYSTEMS LTD",28/11/2022 00:00:00,25/12/2022 00:00:00,"P09-2023"
,"LEE VALLEY MARINA SPRINGFIELD","PREMISES RELATED EXPENDITURE","CLEANING & DOMESTIC SUPPLIES","2666","P120027-SERVICE-To supply items as requested",6/12/2022 00:00:00,"269192",60.98,"HY0043","HYGIENE SYSTEMS LTD",28/11/2022 00:00:00,25/12/2022 00:00:00,"P09-2023"
,"LEE VALLEY MARINA SPRINGFIELD","PREMISES RELATED EXPENDITURE","CLEANING & DOMESTIC SUPPLIES","2666","P119940-SERVICE-Site cleaning Oct,Nov,Dec,Jan",14/12/2022 00:00:00,"269434",972.31,"MA0015","MAYFAIR CLEANING COMPANY LIMITED",28/11/2022 00:00:00,25/12/2022 00:00:00,"P09-2023"
,"LEE VALLEY CAMPSITE","PREMISES RELATED EXPENDITURE","CLEANING & DOMESTIC SUPPLIES","2666","P119818-SERVICE-Site cleaning materials",5/12/2022 00:00:00,"268512",303.85,"HY0043","HYGIENE SYSTEMS LTD",28/11/2022 00:00:00,25/12/2022 00:00:00,"P09-2023"
,"LEE VALLEY CAMPSITE","PREMISES RELATED EXPENDITURE","CLEANING & DOMESTIC SUPPLIES","2666","P120105-SERVICE-Urinal blocks",5/12/2022 00:00:00,"269116",38.19,"HY0043","HYGIENE SYSTEMS LTD",28/11/2022 00:00:00,25/12/2022 00:00:00,"P09-2023"
,"LEE VALLEY CAMPSITE","PREMISES RELATED EXPENDITURE","CLEANING & DOMESTIC SUPPLIES","2666","P120105-SERVICE-Whisper gold luxury toilet rolls",5/12/2022 00:00:00,"269116",34.04,"HY0043","HYGIENE SYSTEMS LTD",28/11/2022 00:00:00,25/12/2022 00:00:00,"P09-2023"
,"LEE VALLEY CAMPSITE","PREMISES RELATED EXPENDITURE","CLEANING & DOMESTIC SUPPLIES","2666","P120105-SERVICE-Toilet cistern blocks",5/12/2022 00:00:00,"269116",38.19,"HY0043","HYGIENE SYSTEMS LTD",28/11/2022 00:00:00,25/12/2022 00:00:00,"P09-2023"
,"LEE VALLEY CAMPSITE","PREMISES RELATED EXPENDITURE","CLEANING & DOMESTIC SUPPLIES","2666","P120105-SERVICE-15kg heavy duty black sacks x5",5/12/2022 00:00:00,"269116",61.35,"HY0043","HYGIENE SYSTEMS LTD",28/11/2022 00:00:00,25/12/2022 00:00:00,"P09-2023"
,"LEE VALLEY CAMPSITE","PREMISES RELATED EXPENDITURE","CLEANING & DOMESTIC SUPPLIES","2666","P120105-SERVICE-30kg heavy duty black sacks x10",5/12/2022 00:00:00,"269116",174.37,"HY0043","HYGIENE SYSTEMS LTD",28/11/2022 00:00:00,25/12/2022 00:00:00,"P09-2023"
,"LEE VALLEY CAMPSITE","PREMISES RELATED EXPENDITURE","CLEANING & DOMESTIC SUPPLIES","2666","P120105-SERVICE-P Wave x5",5/12/2022 00:00:00,"269116",146.15,"HY0043","HYGIENE SYSTEMS LTD",28/11/2022 00:00:00,25/12/2022 00:00:00,"P09-2023"
,"LV LEISURE CENTRE CAMPSITE","PREMISES RELATED EXPENDITURE","CLEANING & DOMESTIC SUPPLIES","2666","P120171-SERVICE-Cleaning supplies",5/12/2022 00:00:00,"269288",247.22,"HY0043","HYGIENE SYSTEMS LTD",28/11/2022 00:00:00,25/12/2022 00:00:00,"P09-2023"
,"LV LEISURE CENTRE CAMPSITE","PREMISES RELATED EXPENDITURE","CLEANING & DOMESTIC SUPPLIES","2666","P120171-SERVICE-Cleaning supplies",19/12/2022 00:00:00,"269605",74.58,"HY0043","HYGIENE SYSTEMS LTD",28/11/2022 00:00:00,25/12/2022 00:00:00,"P09-2023"
"P&V","LEE VALLEY FARM HOLYFIELDHALL","TRANSPORT RELATED EXPENDITURE","TRANSPORT RUNNING EXPENSES","3333","P119557-SERVICE-Parts",14/12/2022 00:00:00,"269387",229.69,"RW0257","R. W. CRAWFORD AGRICULTURAL MACHINERY LTD",28/11/2022 00:00:00,25/12/2022 00:00:00,"P09-2023"
"P&V","LEE VALLEY FARM HOLYFIELDHALL","TRANSPORT RELATED EXPENDITURE","TRANSPORT RUNNING EXPENSES","3333","P117597-SERVICE-Hose Repairs/Sundries",14/12/2022 00:00:00,"269391",34.44,"HU0003","ALLIANCE AUTOMOTIVE UK CV LIMITED T/A",28/11/2022 00:00:00,25/12/2022 00:00:00,"P09-2023"
"P&V","LEE VALLEY FARM HOLYFIELDHALL","TRANSPORT RELATED EXPENDITURE","TRANSPORT RUNNING EXPENSES","3333","P117597-SERVICE-Hose Repairs/Sundries",14/12/2022 00:00:00,"269433",241.09,"HU0003","ALLIANCE AUTOMOTIVE UK CV LIMITED T/A",28/11/2022 00:00:00,25/12/2022 00:00:00,"P09-2023"
"P&V","LEE VALLEY FARM HOLYFIELDHALL","TRANSPORT RELATED EXPENDITURE","TRANSPORT RUNNING EXPENSES","3333","P117597-SERVICE-Hose Repairs/Sundries",19/12/2022 00:00:00,"269526",20.55,"HU0003","ALLIANCE AUTOMOTIVE UK CV LIMITED T/A",28/11/2022 00:00:00,25/12/2022 00:00:00,"P09-2023"
"P&V","LEE VALLEY FARM HOLYFIELDHALL","TRANSPORT RELATED EXPENDITURE","TRANSPORT RUNNING EXPENSES","3333","P117597-SERVICE-Hose Repairs/Sundries",19/12/2022 00:00:00,"269563",57.98,"HU0003","ALLIANCE AUTOMOTIVE UK CV LIMITED T/A",28/11/2022 00:00:00,25/12/2022 00:00:00,"P09-2023"
,"LEE VALLEY CARAVAN PARK","TRANSPORT RELATED EXPENDITURE","TRANSPORT RUNNING EXPENSES","3333","P119500-SERVICE-Transport P Pods Dobbs",6/12/2022 00:00:00,"268540",8780.6,"LO0459","LONDON LODGES UK",28/11/2022 00:00:00,25/12/2022 00:00:00,"P09-2023"
,"LEE VALLEY CARAVAN PARK","TRANSPORT RELATED EXPENDITURE","TRANSPORT RUNNING EXPENSES","3333","P119500-SERVICE-Ext Funds transporter waiting time",6/12/2022 00:00:00,"268540",900,"LO0459","LONDON LODGES UK",28/11/2022 00:00:00,25/12/2022 00:00:00,"P09-2023"
,"LV LEISURE CENTRE CAMPSITE","TRANSPORT RELATED EXPENDITURE","TRANSPORT RUNNING EXPENSES","3333","P120066-SERVICE-Utility Hire",19/12/2022 00:00:00,"269337",1232,"CA0698","CAMBRIDGE GOLF COMPANY",28/11/2022 00:00:00,25/12/2022 00:00:00,"P09-2023"
"P&V","FISHERIES MANAGEMENT","TRANSPORT RELATED EXPENDITURE","VEHICLE FUEL","3335","ALLSTAR BUSINESS SOLUTIONS LTD",6/12/2022 00:00:00,"269322",88.99,"AR0035","ALLSTAR BUSINESS SOLUTIONS LTD",28/11/2022 00:00:00,25/12/2022 00:00:00,"P09-2023"
,"LEE VALLEY MARINA STANSTEAD","TRANSPORT RELATED EXPENDITURE","VEHICLE FUEL","3335","P120199-SERVICE-white diesel barrel refill",5/12/2022 00:00:00,"269301",362.4,"SP0543","SPEEDY FUELS LIMITED",28/11/2022 00:00:00,25/12/2022 00:00:00,"P09-2023"
,"LEE VALLEY MARINA STANSTEAD","TRANSPORT RELATED EXPENDITURE","VEHICLE FUEL","3335","ALLSTAR BUSINESS SOLUTIONS LTD",6/12/2022 00:00:00,"269322",78.71,"AR0035","ALLSTAR BUSINESS SOLUTIONS LTD",28/11/2022 00:00:00,25/12/2022 00:00:00,"P09-2023"
"P&V","LEE VALLEY FARM HOLYFIELDHALL","TRANSPORT RELATED EXPENDITURE","VEHICLE FUEL","3335","ALLSTAR BUSINESS SOLUTIONS LTD",6/12/2022 00:00:00,"269322",86.27,"AR0035","ALLSTAR BUSINESS SOLUTIONS LTD",28/11/2022 00:00:00,25/12/2022 00:00:00,"P09-2023"
,"LEE VALLEY CAMPSITE","TRANSPORT RELATED EXPENDITURE","VEHICLE FUEL","3335","ALLSTAR BUSINESS SOLUTIONS LTD",6/12/2022 00:00:00,"269322",104.61,"AR0035","ALLSTAR BUSINESS SOLUTIONS LTD",28/11/2022 00:00:00,25/12/2022 00:00:00,"P09-2023"
,"LEE VALLEY CARAVAN PARK","TRANSPORT RELATED EXPENDITURE","VEHICLE FUEL","3335","ALLSTAR BUSINESS SOLUTIONS LTD",6/12/2022 00:00:00,"269322",149.02,"AR0035","ALLSTAR BUSINESS SOLUTIONS LTD",28/11/2022 00:00:00,25/12/2022 00:00:00,"P09-2023"
"P&V","SOUTH AREA RANGERS","TRANSPORT RELATED EXPENDITURE","VEHICLE FUEL","3335","ALLSTAR BUSINESS SOLUTIONS LTD",6/12/2022 00:00:00,"269322",484.62,"AR0035","ALLSTAR BUSINESS SOLUTIONS LTD",28/11/2022 00:00:00,25/12/2022 00:00:00,"P09-2023"
"P&V","RIVER LEE COUNTRY PARK","TRANSPORT RELATED EXPENDITURE","VEHICLE FUEL","3335","ALLSTAR BUSINESS SOLUTIONS LTD",6/12/2022 00:00:00,"269322",64.79,"AR0035","ALLSTAR BUSINESS SOLUTIONS LTD",28/11/2022 00:00:00,25/12/2022 00:00:00,"P09-2023"
"P&V","RIVER LEE COUNTRY PARK","TRANSPORT RELATED EXPENDITURE","VEHICLE FUEL","3335","ALLSTAR BUSINESS SOLUTIONS LTD",6/12/2022 00:00:00,"269322",380.11,"AR0035","ALLSTAR BUSINESS SOLUTIONS LTD",28/11/2022 00:00:00,25/12/2022 00:00:00,"P09-2023"
"P&V","NORTH AREA RANGERS","TRANSPORT RELATED EXPENDITURE","VEHICLE REPAIRS & MAINTENANCE","3338","P120052-SERVICE-Service and MOT - GD65UTK",19/12/2022 00:00:00,"269737",190.5,"AB0153","ABBEY SERVICE CENTRE",28/11/2022 00:00:00,25/12/2022 00:00:00,"P09-2023"
"P&V","NORTH AREA RANGERS","TRANSPORT RELATED EXPENDITURE","VEHICLE REPAIRS & MAINTENANCE","3338","P120052-SERVICE-MOT - GD65UTK",19/12/2022 00:00:00,"269737",45,"AB0153","ABBEY SERVICE CENTRE",28/11/2022 00:00:00,25/12/2022 00:00:00,"P09-2023"
"P&V","NORTH AREA RANGERS","TRANSPORT RELATED EXPENDITURE","VEHICLE REPAIRS & MAINTENANCE","3338","P120052-SERVICE-Service and MOT - GD65UTF",19/12/2022 00:00:00,"269738",215.5,"AB0153","ABBEY SERVICE CENTRE",28/11/2022 00:00:00,25/12/2022 00:00:00,"P09-2023"
"P&V","NORTH AREA RANGERS","TRANSPORT RELATED EXPENDITURE","VEHICLE REPAIRS & MAINTENANCE","3338","P120052-SERVICE-MOT - GD65UTF",19/12/2022 00:00:00,"269738",45,"AB0153","ABBEY SERVICE CENTRE",28/11/2022 00:00:00,25/12/2022 00:00:00,"P09-2023"
"P&V","RIVER LEE COUNTRY PARK","TRANSPORT RELATED EXPENDITURE","VEHICLE REPAIRS & MAINTENANCE","3338","P120144-SERVICE-MOT & Service - GK65 MRO",21/12/2022 00:00:00,"269829",207,"AB0153","ABBEY SERVICE CENTRE",28/11/2022 00:00:00,25/12/2022 00:00:00,"P09-2023"
"P&V","RIVER LEE COUNTRY PARK","TRANSPORT RELATED EXPENDITURE","VEHICLE REPAIRS & MAINTENANCE","3338","P120144-SERVICE-MOT - GK65 MRO",21/12/2022 00:00:00,"269829",45,"AB0153","ABBEY SERVICE CENTRE",28/11/2022 00:00:00,25/12/2022 00:00:00,"P09-2023"
,"LEE VALLEY MARINA SPRINGFIELD","SUPPLIES AND SERVICES","EQUIPMENT & MATERIALS","4111","P120124-SERVICE-Battery for tractor",14/12/2022 00:00:00,"269543",103.29,"EC0394","MANBAT LTD T/AS",28/11/2022 00:00:00,25/12/2022 00:00:00,"P09-2023"
,"LEE VALLEY MARINA SPRINGFIELD","SUPPLIES AND SERVICES","EQUIPMENT & MATERIALS","4111","P120341-SERVICE-To Supply Grit bin,De icing salt gloves & pic",19/12/2022 00:00:00,"269617",44.08,"SA0008","SAFETEC DIRECT LTD",28/11/2022 00:00:00,25/12/2022 00:00:00,"P09-2023"
,"LEE VALLEY MARINA SPRINGFIELD","SUPPLIES AND SERVICES","EQUIPMENT & MATERIALS","4111","P119843-SERVICE-PPE as requested",20/12/2022 00:00:00,"269814",-22.49,"SA0008","SAFETEC DIRECT LTD",28/11/2022 00:00:00,25/12/2022 00:00:00,"P09-2023"
,"LEE VALLEY MARINA SPRINGFIELD","SUPPLIES AND SERVICES","EQUIPMENT & MATERIALS","4111","P119843-SERVICE-PPE as requested",21/12/2022 00:00:00,"269819",55.99,"SA0008","SAFETEC DIRECT LTD",28/11/2022 00:00:00,25/12/2022 00:00:00,"P09-2023"
,"LEE VALLEY CAMPSITE","SUPPLIES AND SERVICES","EQUIPMENT & MATERIALS","4111","P120149-SERVICE-Door mats Inner Tubes Key Fobs",6/12/2022 00:00:00,"269105",49.92,"AM0406","AMAZON PAYMENTS UK LIMITED",28/11/2022 00:00:00,25/12/2022 00:00:00,"P09-2023"
,"LEE VALLEY CAMPSITE","SUPPLIES AND SERVICES","EQUIPMENT & MATERIALS","4111","P120149-SERVICE-Door mats Inner Tubes Key Fobs",6/12/2022 00:00:00,"269106",58.24,"AM0406","AMAZON PAYMENTS UK LIMITED",28/11/2022 00:00:00,25/12/2022 00:00:00,"P09-2023"
,"LEE VALLEY CAMPSITE","SUPPLIES AND SERVICES","EQUIPMENT & MATERIALS","4111","P120149-SERVICE-Door mats Inner Tubes Key Fobs",6/12/2022 00:00:00,"269107",56.28,"AM0406","AMAZON PAYMENTS UK LIMITED",28/11/2022 00:00:00,25/12/2022 00:00:00,"P09-2023"
,"LEE VALLEY CAMPSITE","SUPPLIES AND SERVICES","EQUIPMENT & MATERIALS","4111","P120149-SERVICE-Door mats Inner Tubes Key Fobs",6/12/2022 00:00:00,"269125",58.24,"AM0406","AMAZON PAYMENTS UK LIMITED",28/11/2022 00:00:00,25/12/2022 00:00:00,"P09-2023"
,"LEE VALLEY CAMPSITE","SUPPLIES AND SERVICES","EQUIPMENT & MATERIALS","4111","P119820-SERVICE-Site repairs/maintenace",5/12/2022 00:00:00,"269182",21.07,"SC0057","SCREWFIX DIRECT LTD",28/11/2022 00:00:00,25/12/2022 00:00:00,"P09-2023"
,"LEE VALLEY CAMPSITE","SUPPLIES AND SERVICES","EQUIPMENT & MATERIALS","4111","P119820-SERVICE-Site repairs/maintenace",5/12/2022 00:00:00,"269183",16.32,"SC0057","SCREWFIX DIRECT LTD",28/11/2022 00:00:00,25/12/2022 00:00:00,"P09-2023"
,"LEE VALLEY CAMPSITE","SUPPLIES AND SERVICES","EQUIPMENT & MATERIALS","4111","P120220-SERVICE-Timber for HH Car park fencing",14/12/2022 00:00:00,"269551",373.98,"LE0012","LEASIDE TIMBER & BUILDERS MERCHANTS LTD",28/11/2022 00:00:00,25/12/2022 00:00:00,"P09-2023"
,"LEE VALLEY CAMPSITE","SUPPLIES AND SERVICES","EQUIPMENT & MATERIALS","4111","P119819-SERVICE-Maintenance/ repairs",19/12/2022 00:00:00,"269601",46.26,"BQ0164","TRADE UK ACCOUNT",28/11/2022 00:00:00,25/12/2022 00:00:00,"P09-2023"
,"LEE VALLEY CAMPSITE","SUPPLIES AND SERVICES","EQUIPMENT & MATERIALS","4111","P120149-SERVICE-Door mats Inner Tubes Key Fobs",19/12/2022 00:00:00,"269742",9.98,"AM0406","AMAZON PAYMENTS UK LIMITED",28/11/2022 00:00:00,25/12/2022 00:00:00,"P09-2023"
,"LEE VALLEY CARAVAN PARK","SUPPLIES AND SERVICES","EQUIPMENT & MATERIALS","4111","P120241-SERVICE-Gloves, paint, lubricant",5/12/2022 00:00:00,"269181",106.61,"SC0057","SCREWFIX DIRECT LTD",28/11/2022 00:00:00,25/12/2022 00:00:00,"P09-2023"
,"LEE VALLEY CARAVAN PARK","SUPPLIES AND SERVICES","EQUIPMENT & MATERIALS","4111","P120261-SERVICE-Security locker",6/12/2022 00:00:00,"269292",95.83,"SC0057","SCREWFIX DIRECT LTD",28/11/2022 00:00:00,25/12/2022 00:00:00,"P09-2023"
,"LEE VALLEY CARAVAN PARK","SUPPLIES AND SERVICES","EQUIPMENT & MATERIALS","4111","P120218-SERVICE-Toasters for Peaky Pods - 376C20",6/12/2022 00:00:00,"269350",41.12,"CU0759","CURRYS BUSINESS",28/11/2022 00:00:00,25/12/2022 00:00:00,"P09-2023"
,"LEE VALLEY CARAVAN PARK","SUPPLIES AND SERVICES","EQUIPMENT & MATERIALS","4111","P120238-SERVICE-Materials for Pecky Pod BBQ Aera",14/12/2022 00:00:00,"269552",175.05,"LE0012","LEASIDE TIMBER & BUILDERS MERCHANTS LTD",28/11/2022 00:00:00,25/12/2022 00:00:00,"P09-2023"
,"LEE VALLEY CARAVAN PARK","SUPPLIES AND SERVICES","EQUIPMENT & MATERIALS","4111","SCREWFIX DIRECT LTD",19/12/2022 00:00:00,"269600",39.99,"SC0057","SCREWFIX DIRECT LTD",28/11/2022 00:00:00,25/12/2022 00:00:00,"P09-2023"
,"LEE VALLEY CARAVAN PARK","SUPPLIES AND SERVICES","EQUIPMENT & MATERIALS","4111","P120380-SERVICE-Insulation, boots, spiral wrap",19/12/2022 00:00:00,"269600",66.33,"SC0057","SCREWFIX DIRECT LTD",28/11/2022 00:00:00,25/12/2022 00:00:00,"P09-2023"
,"LEE VALLEY CARAVAN PARK","SUPPLIES AND SERVICES","EQUIPMENT & MATERIALS","4111","SCREWFIX DIRECT LTD",19/12/2022 00:00:00,"269600",-66.33,"SC0057","SCREWFIX DIRECT LTD",28/11/2022 00:00:00,25/12/2022 00:00:00,"P09-2023"
,"LEE VALLEY CARAVAN PARK","SUPPLIES AND SERVICES","EQUIPMENT & MATERIALS","4111","SCREWFIX DIRECT LTD",19/12/2022 00:00:00,"269600",26.34,"SC0057","SCREWFIX DIRECT LTD",28/11/2022 00:00:00,25/12/2022 00:00:00,"P09-2023"
,"LEE VALLEY CARAVAN PARK","SUPPLIES AND SERVICES","EQUIPMENT & MATERIALS","4111","P119898-SERVICE-Dobbs Weir Supplies Peaky Pod and Camera",19/12/2022 00:00:00,"269744",124.99,"AM0406","AMAZON PAYMENTS UK LIMITED",28/11/2022 00:00:00,25/12/2022 00:00:00,"P09-2023"
,"LEE VALLEY CARAVAN PARK","SUPPLIES AND SERVICES","EQUIPMENT & MATERIALS","4111","P120389-SERVICE-Cotton dust sheet",19/12/2022 00:00:00,"269767",37.48,"SC0057","SCREWFIX DIRECT LTD",28/11/2022 00:00:00,25/12/2022 00:00:00,"P09-2023"
"P&V","NORTH AREA RANGERS","SUPPLIES AND SERVICES","EQUIPMENT & MATERIALS","4111","P117538-SERVICE-Equipment & Materials as and when required",6/12/2022 00:00:00,"269358",11.32,"JE0011","SAINT-GOBAIN BUILDING DISTRIBUTION",28/11/2022 00:00:00,25/12/2022 00:00:00,"P09-2023"
"P&V","WILDLIFE DISCOVERY CENTRE","SUPPLIES AND SERVICES","EQUIPMENT & MATERIALS","4111","P120163-SERVICE-1x Health and Safety Law Poster Style HSE A3",6/12/2022 00:00:00,"269357",9.5,"SE0018","BRADY CORPORATION LIMITED/SETON",28/11/2022 00:00:00,25/12/2022 00:00:00,"P09-2023"
"P&V","WILDLIFE DISCOVERY CENTRE","SUPPLIES AND SERVICES","EQUIPMENT & MATERIALS","4111","P120163-SERVICE-1x Self Adhesive Tab    4TABS",6/12/2022 00:00:00,"269357",1.79,"SE0018","BRADY CORPORATION LIMITED/SETON",28/11/2022 00:00:00,25/12/2022 00:00:00,"P09-2023"
"P&V","WILDLIFE DISCOVERY CENTRE","SUPPLIES AND SERVICES","EQUIPMENT & MATERIALS","4111","P120163-SERVICE-Postage",6/12/2022 00:00:00,"269357",6.95,"SE0018","BRADY CORPORATION LIMITED/SETON",28/11/2022 00:00:00,25/12/2022 00:00:00,"P09-2023"
"P&V","RIVER LEE COUNTRY PARK","SUPPLIES AND SERVICES","EQUIPMENT & MATERIALS","4111","TOOLS & EQUIPMENT",21/12/2022 00:00:00,"269830",12.5,"FI0001","DIRECTOR OF FINANCE - CASH",28/11/2022 00:00:00,25/12/2022 00:00:00,"P09-2023"
"P&V","RIVER LEE COUNTRY PARK","SUPPLIES AND SERVICES","EQUIPMENT & MATERIALS","4111","TOOLS & EQUIPMENT",21/12/2022 00:00:00,"269830",5.83,"FI0001","DIRECTOR OF FINANCE - CASH",28/11/2022 00:00:00,25/12/2022 00:00:00,"P09-2023"
"P&V","RIVER LEE COUNTRY PARK","SUPPLIES AND SERVICES","EQUIPMENT & MATERIALS","4111","TOOLS & EQUIPMENT",21/12/2022 00:00:00,"269830",2,"FI0001","DIRECTOR OF FINANCE - CASH",28/11/2022 00:00:00,25/12/2022 00:00:00,"P09-2023"
"P&V","RIVER LEE COUNTRY PARK","SUPPLIES AND SERVICES","EQUIPMENT & MATERIALS","4111","TOOLS & EQUIPMENT",21/12/2022 00:00:00,"269830",1.29,"FI0001","DIRECTOR OF FINANCE - CASH",28/11/2022 00:00:00,25/12/2022 00:00:00,"P09-2023"
"P&V","RIVER LEE COUNTRY PARK","SUPPLIES AND SERVICES","EQUIPMENT & MATERIALS","4111","TOOLS & EQUIPMENT",21/12/2022 00:00:00,"269830",6.74,"FI0001","DIRECTOR OF FINANCE - CASH",28/11/2022 00:00:00,25/12/2022 00:00:00,"P09-2023"
"P&V","RIVER LEE COUNTRY PARK","SUPPLIES AND SERVICES","EQUIPMENT & MATERIALS","4111","TOOLS & EQUIPMENT",21/12/2022 00:00:00,"269830",8.33,"FI0001","DIRECTOR OF FINANCE - CASH",28/11/2022 00:00:00,25/12/2022 00:00:00,"P09-2023"
,"LV LEISURE CENTRE CAMPSITE","SUPPLIES AND SERVICES","EQUIPMENT & MATERIALS","4111","P120248-SERVICE-/light, batteries",6/12/2022 00:00:00,"269132",-6.33,"BQ0164","TRADE UK ACCOUNT",28/11/2022 00:00:00,25/12/2022 00:00:00,"P09-2023"
,"LV LEISURE CENTRE CAMPSITE","SUPPLIES AND SERVICES","EQUIPMENT & MATERIALS","4111","P120247-SERVICE-Easy fill",6/12/2022 00:00:00,"269133",14.58,"BQ0164","TRADE UK ACCOUNT",28/11/2022 00:00:00,25/12/2022 00:00:00,"P09-2023"
,"LV LEISURE CENTRE CAMPSITE","SUPPLIES AND SERVICES","EQUIPMENT & MATERIALS","4111","P120248-SERVICE-/light, batteries",6/12/2022 00:00:00,"269180",19.66,"BQ0164","TRADE UK ACCOUNT",28/11/2022 00:00:00,25/12/2022 00:00:00,"P09-2023"
,"LV LEISURE CENTRE CAMPSITE","SUPPLIES AND SERVICES","EQUIPMENT & MATERIALS","4111","P119880-SERVICE-EDMONTON TRACTOR PARTS",7/12/2022 00:00:00,"269352",287.64,"DO0027","ERNEST DOE & SONS LTD",28/11/2022 00:00:00,25/12/2022 00:00:00,"P09-2023"
,"LV LEISURE CENTRE CAMPSITE","SUPPLIES AND SERVICES","EQUIPMENT & MATERIALS","4111","P119880-SERVICE-EDMONTON TRACTOR PARTS",7/12/2022 00:00:00,"269353",48.08,"DO0027","ERNEST DOE & SONS LTD",28/11/2022 00:00:00,25/12/2022 00:00:00,"P09-2023"
,"LV LEISURE CENTRE CAMPSITE","SUPPLIES AND SERVICES","EQUIPMENT & MATERIALS","4111","P119880-SERVICE-Air blow gun kit",19/12/2022 00:00:00,"269354",16.67,"DO0027","ERNEST DOE & SONS LTD",28/11/2022 00:00:00,25/12/2022 00:00:00,"P09-2023"
,"LV LEISURE CENTRE CAMPSITE","SUPPLIES AND SERVICES","EQUIPMENT & MATERIALS","4111","P119880-SERVICE-EDMONTON TRACTOR PARTS",19/12/2022 00:00:00,"269355",9.45,"DO0027","ERNEST DOE & SONS LTD",28/11/2022 00:00:00,25/12/2022 00:00:00,"P09-2023"
,"LV LEISURE CENTRE CAMPSITE","SUPPLIES AND SERVICES","EQUIPMENT & MATERIALS","4111","P119880-SERVICE-Oil Seal",19/12/2022 00:00:00,"269355",12.79,"DO0027","ERNEST DOE & SONS LTD",28/11/2022 00:00:00,25/12/2022 00:00:00,"P09-2023"
"P&V","MYDDELTON HOUSE","SUPPLIES AND SERVICES","EQUIPMENT MAINTENANCE","4112","P120327-SERVICE-PAT",15/12/2022 00:00:00,"269566",923.2,"EL0258","ELECTRICO TESTING SERVICES LTD",28/11/2022 00:00:00,25/12/2022 00:00:00,"P09-2023"
,"LEE VALLEY CAMPSITE","SUPPLIES AND SERVICES","EQUIPMENT MAINTENANCE","4112","P118168-SERVICE-Hedge Trimmer & Strimmer service",5/12/2022 00:00:00,"269166",109.58,"AP0245","APS LIMITED",28/11/2022 00:00:00,25/12/2022 00:00:00,"P09-2023"
,"LEE VALLEY CAMPSITE","SUPPLIES AND SERVICES","EQUIPMENT MAINTENANCE","4112","P118296-SERVICE-service pole pruner",5/12/2022 00:00:00,"269172",231.48,"AP0245","APS LIMITED",28/11/2022 00:00:00,25/12/2022 00:00:00,"P09-2023"
,"LEE VALLEY CAMPSITE","SUPPLIES AND SERVICES","EQUIPMENT MAINTENANCE","4112","P119864-SERVICE-Servicing of cycles",5/12/2022 00:00:00,"269318",486.67,"HA0457","HANCOCKS CYCLES",28/11/2022 00:00:00,25/12/2022 00:00:00,"P09-2023"
,"LEE VALLEY CARAVAN PARK","SUPPLIES AND SERVICES","EQUIPMENT MAINTENANCE","4112","CAPSER",5/12/2022 00:00:00,"269309",200,"MO0041","CAPSER",28/11/2022 00:00:00,25/12/2022 00:00:00,"P09-2023"
,"LEE VALLEY CARAVAN PARK","SUPPLIES AND SERVICES","EQUIPMENT MAINTENANCE","4112","P120194-SERVICE-Placing flag poles",5/12/2022 00:00:00,"269309",350,"MO0041","CAPSER",28/11/2022 00:00:00,25/12/2022 00:00:00,"P09-2023"
,"LEE VALLEY CARAVAN PARK","SUPPLIES AND SERVICES","EQUIPMENT MAINTENANCE","4112","CAPSER",5/12/2022 00:00:00,"269309",150,"MO0041","CAPSER",28/11/2022 00:00:00,25/12/2022 00:00:00,"P09-2023"
,"LEE VALLEY CARAVAN PARK","SUPPLIES AND SERVICES","EQUIPMENT MAINTENANCE","4112","CAPSER",5/12/2022 00:00:00,"269309",-350,"MO0041","CAPSER",28/11/2022 00:00:00,25/12/2022 00:00:00,"P09-2023"
,"LEE VALLEY CARAVAN PARK","SUPPLIES AND SERVICES","EQUIPMENT MAINTENANCE","4112","P120409-SERVICE-Replace RCD HH98",21/12/2022 00:00:00,"269805",180,"BR0018","BRADSHAW ELECTRICAL LIMITED",28/11/2022 00:00:00,25/12/2022 00:00:00,"P09-2023"
,"LV LEISURE CENTRE CAMPSITE","SUPPLIES AND SERVICES","EQUIPMENT MAINTENANCE","4112","P120349-SERVICE-timber  grouting etc",15/12/2022 00:00:00,"268909",233.85,"BQ0164","TRADE UK ACCOUNT",28/11/2022 00:00:00,25/12/2022 00:00:00,"P09-2023"
,"LV LEISURE CENTRE CAMPSITE","SUPPLIES AND SERVICES","EQUIPMENT MAINTENANCE","4112","P120346-SERVICE-hammer plugs and nut driver",15/12/2022 00:00:00,"269407",8.69,"BQ0164","TRADE UK ACCOUNT",28/11/2022 00:00:00,25/12/2022 00:00:00,"P09-2023"
,"LV LEISURE CENTRE CAMPSITE","SUPPLIES AND SERVICES","EQUIPMENT MAINTENANCE","4112","P120348-SERVICE-Smooth timber skirt",15/12/2022 00:00:00,"269408",35.36,"BQ0164","TRADE UK ACCOUNT",28/11/2022 00:00:00,25/12/2022 00:00:00,"P09-2023"
,"LV LEISURE CENTRE CAMPSITE","SUPPLIES AND SERVICES","EQUIPMENT MAINTENANCE","4112","P120353-SERVICE-secateurs grout float trowel spacers",15/12/2022 00:00:00,"269562",41.02,"BQ0164","TRADE UK ACCOUNT",28/11/2022 00:00:00,25/12/2022 00:00:00,"P09-2023"
,"LV LEISURE CENTRE CAMPSITE","SUPPLIES AND SERVICES","EQUIPMENT MAINTENANCE","4112","P120352-SERVICE-salt and makita accessories",15/12/2022 00:00:00,"269574",58.64,"SC0057","SCREWFIX DIRECT LTD",28/11/2022 00:00:00,25/12/2022 00:00:00,"P09-2023"
"R&B","INFORMATION TECHNOLOGY","SUPPLIES AND SERVICES","IT CORE SYSTEMS","4113","P120102-SERVICE-National Parks Bundle Renewal 17/11/22-16/11/",5/12/2022 00:00:00,"269304",21960,"ES0361","ESRI (UK) LTD",28/11/2022 00:00:00,25/12/2022 00:00:00,"P09-2023"
"R&B","INFORMATION TECHNOLOGY","SUPPLIES AND SERVICES","IT CORE SYSTEMS","4113","P120262-SERVICE-CIPHR Payroll for up to 330 Employees to Jan",5/12/2022 00:00:00,"269305",569.58,"CI0721","CIPHR",28/11/2022 00:00:00,25/12/2022 00:00:00,"P09-2023"
"R&B","INFORMATION TECHNOLOGY","SUPPLIES AND SERVICES","IT NETWORK & TELECOMS COSTS","4114","P117871-SERVICE-Monthly SIP Apr 22-Mar 23",5/12/2022 00:00:00,"269328",146.19,"FR0131","VOICEFLEX LTD",28/11/2022 00:00:00,25/12/2022 00:00:00,"P09-2023"
"R&B","INFORMATION TECHNOLOGY","SUPPLIES AND SERVICES","IT NETWORK & TELECOMS COSTS","4114","P120334-SERVICE-MPLS for all sites Dec 22",20/12/2022 00:00:00,"269431",9190.86,"PP0200","PPSNET LIMITED",28/11/2022 00:00:00,25/12/2022 00:00:00,"P09-2023"
,"LEE VALLEY CARAVAN PARK","SUPPLIES AND SERVICES","IT NETWORK & TELECOMS COSTS","4114","MY O2",5/12/2022 00:00:00,"269177",60.3,"O20134","MY O2",28/11/2022 00:00:00,25/12/2022 00:00:00,"P09-2023"
"R&B","INFORMATION TECHNOLOGY","SUPPLIES AND SERVICES","IT HARDWARE & SOFTWARE COSTS","4116","P118868-SERVICE-365 Cloud Backup up & Recovery",5/12/2022 00:00:00,"265575",35,"IQ0022","IQUAL",28/11/2022 00:00:00,25/12/2022 00:00:00,"P09-2023"
"R&B","INFORMATION TECHNOLOGY","SUPPLIES AND SERVICES","IT HARDWARE & SOFTWARE COSTS","4116","P118868-SERVICE-Datto RMM Device Licence",5/12/2022 00:00:00,"265575",418,"IQ0022","IQUAL",28/11/2022 00:00:00,25/12/2022 00:00:00,"P09-2023"
"R&B","INFORMATION TECHNOLOGY","SUPPLIES AND SERVICES","IT HARDWARE & SOFTWARE COSTS","4116","P118868-SERVICE-Mimecast - Large file Send Facility",5/12/2022 00:00:00,"265575",38,"IQ0022","IQUAL",28/11/2022 00:00:00,25/12/2022 00:00:00,"P09-2023"
"R&B","INFORMATION TECHNOLOGY","SUPPLIES AND SERVICES","IT HARDWARE & SOFTWARE COSTS","4116","P118868-SERVICE-Mimecast S1 Email Filitering Service",5/12/2022 00:00:00,"265575",700,"IQ0022","IQUAL",28/11/2022 00:00:00,25/12/2022 00:00:00,"P09-2023"
"R&B","INFORMATION TECHNOLOGY","SUPPLIES AND SERVICES","IT HARDWARE & SOFTWARE COSTS","4116","P120242-SERVICE-Datto RMM Device Licence, quantity 220, unit",5/12/2022 00:00:00,"266703",418,"IQ0022","IQUAL",28/11/2022 00:00:00,25/12/2022 00:00:00,"P09-2023"
"R&B","INFORMATION TECHNOLOGY","SUPPLIES AND SERVICES","IT HARDWARE & SOFTWARE COSTS","4116","P120242-SERVICE-Mimecast Add On Large File, quantity 10, unit",5/12/2022 00:00:00,"266703",38,"IQ0022","IQUAL",28/11/2022 00:00:00,25/12/2022 00:00:00,"P09-2023"
"R&B","INFORMATION TECHNOLOGY","SUPPLIES AND SERVICES","IT HARDWARE & SOFTWARE COSTS","4116","P120242-SERVICE-Cloud Backup & Recovery, quantity 20.00, unti",5/12/2022 00:00:00,"266703",35,"IQ0022","IQUAL",28/11/2022 00:00:00,25/12/2022 00:00:00,"P09-2023"
"R&B","INFORMATION TECHNOLOGY","SUPPLIES AND SERVICES","IT HARDWARE & SOFTWARE COSTS","4116","P120242-SERVICE-Mimecast S1 Email Filtering, quantity 350, un",5/12/2022 00:00:00,"266703",700,"IQ0022","IQUAL",28/11/2022 00:00:00,25/12/2022 00:00:00,"P09-2023"
"R&B","INFORMATION TECHNOLOGY","SUPPLIES AND SERVICES","IT HARDWARE & SOFTWARE COSTS","4116","P119666-SERVICE-Mimecast Large File Send Facility",5/12/2022 00:00:00,"267735",438,"IQ0022","IQUAL",28/11/2022 00:00:00,25/12/2022 00:00:00,"P09-2023"
"R&B","INFORMATION TECHNOLOGY","SUPPLIES AND SERVICES","IT HARDWARE & SOFTWARE COSTS","4116","P119973-SERVICE-Mimecast Software & Support - 200 Mailboxes -",5/12/2022 00:00:00,"268547",891,"IQ0022","IQUAL",28/11/2022 00:00:00,25/12/2022 00:00:00,"P09-2023"
"R&B","INFORMATION TECHNOLOGY","SUPPLIES AND SERVICES","IT HARDWARE & SOFTWARE COSTS","4116","P120239-SERVICE-Datto RMM Device Licence, quantity 220, unit",5/12/2022 00:00:00,"269178",418,"IQ0022","IQUAL",28/11/2022 00:00:00,25/12/2022 00:00:00,"P09-2023"
"R&B","INFORMATION TECHNOLOGY","SUPPLIES AND SERVICES","IT HARDWARE & SOFTWARE COSTS","4116","P120239-SERVICE-Cloud Backup & Recovery, quantity 20, unit pr",5/12/2022 00:00:00,"269178",35,"IQ0022","IQUAL",28/11/2022 00:00:00,25/12/2022 00:00:00,"P09-2023"
"R&B","INFORMATION TECHNOLOGY","SUPPLIES AND SERVICES","IT HARDWARE & SOFTWARE COSTS","4116","P120239-SERVICE-Mimecast S1, Email Filtering service per Mail",5/12/2022 00:00:00,"269178",400,"IQ0022","IQUAL",28/11/2022 00:00:00,25/12/2022 00:00:00,"P09-2023"
"R&B","INFORMATION TECHNOLOGY","SUPPLIES AND SERVICES","IT HARDWARE & SOFTWARE COSTS","4116","P120239-SERVICE-Mimecast - Add ON Large File Send. quantity 1",5/12/2022 00:00:00,"269178",38,"IQ0022","IQUAL",28/11/2022 00:00:00,25/12/2022 00:00:00,"P09-2023"
,"LEE VALLEY MARINA SPRINGFIELD","SUPPLIES AND SERVICES","IT HARDWARE & SOFTWARE COSTS","4116","KONICA MINOLTA BUSINESS SOLUTI",6/12/2022 00:00:00,"269113",43.8,"KO0071","KONICA MINOLTA BUSINESS SOLUTIONS ( UK) LTD",28/11/2022 00:00:00,25/12/2022 00:00:00,"P09-2023"
,"LEE VALLEY MARINA SPRINGFIELD","SUPPLIES AND SERVICES","IT HARDWARE & SOFTWARE COSTS","4116","P120336-SERVICE-Annual Service Maintenance Fee Dec",20/12/2022 00:00:00,"269398",139.26,"WI0209","WIFI SPARK LIMITED",28/11/2022 00:00:00,25/12/2022 00:00:00,"P09-2023"
,"LEE VALLEY MARINA SPRINGFIELD","SUPPLIES AND SERVICES","IT HARDWARE & SOFTWARE COSTS","4116","ZEN INTERNET LTD",19/12/2022 00:00:00,"269590",38,"ZE0007","ZEN INTERNET LTD",28/11/2022 00:00:00,25/12/2022 00:00:00,"P09-2023"
,"LEE VALLEY MARINA STANSTEAD","SUPPLIES AND SERVICES","IT HARDWARE & SOFTWARE COSTS","4116","P120336-SERVICE-Annual Service Maintenance Fee Dec",20/12/2022 00:00:00,"269398",218.36,"WI0209","WIFI SPARK LIMITED",28/11/2022 00:00:00,25/12/2022 00:00:00,"P09-2023"
,"LEE VALLEY MARINA STANSTEAD","SUPPLIES AND SERVICES","IT HARDWARE & SOFTWARE COSTS","4116","ZEN INTERNET LTD",19/12/2022 00:00:00,"269589",31.32,"ZE0007","ZEN INTERNET LTD",28/11/2022 00:00:00,25/12/2022 00:00:00,"P09-2023"
,"LEE VALLEY CAMPSITE","SUPPLIES AND SERVICES","IT HARDWARE & SOFTWARE COSTS","4116","P120336-SERVICE-Annual Service Maintenance Fee Dec",20/12/2022 00:00:00,"269398",218.92,"WI0209","WIFI SPARK LIMITED",28/11/2022 00:00:00,25/12/2022 00:00:00,"P09-2023"
,"LEE VALLEY CARAVAN PARK","SUPPLIES AND SERVICES","IT HARDWARE & SOFTWARE COSTS","4116","P120336-SERVICE-Annual Service Maintenance Fee Dec",20/12/2022 00:00:00,"269398",310.65,"WI0209","WIFI SPARK LIMITED",28/11/2022 00:00:00,25/12/2022 00:00:00,"P09-2023"
,"LEE VALLEY CARAVAN PARK","SUPPLIES AND SERVICES","IT HARDWARE & SOFTWARE COSTS","4116","P120335-SERVICE-Fibre Connection Dec 22",19/12/2022 00:00:00,"269430",835,"PP0200","PPSNET LIMITED",28/11/2022 00:00:00,25/12/2022 00:00:00,"P09-2023"
,"LV LEISURE CENTRE CAMPSITE","SUPPLIES AND SERVICES","IT HARDWARE & SOFTWARE COSTS","4116","P120336-SERVICE-Annual Service Maintenance Fee Dec",20/12/2022 00:00:00,"269398",163.42,"WI0209","WIFI SPARK LIMITED",28/11/2022 00:00:00,25/12/2022 00:00:00,"P09-2023"
"R&B","INFORMATION TECHNOLOGY","SUPPLIES AND SERVICES","IT MAINTENANCE AGREEMENTS","4119","P120324-SERVICE-TeamViewer Annual Sub",14/12/2022 00:00:00,"269564",1054.42,"TE0645","TEAMVIEWER",28/11/2022 00:00:00,25/12/2022 00:00:00,"P09-2023"
"R&B","INFORMATION TECHNOLOGY","SUPPLIES AND SERVICES","IT MAINTENANCE AGREEMENTS","4119","P120413-SERVICE-Annual Maintenance Contract cooling equipment",20/12/2022 00:00:00,"269798",380,"HE0071","HERTS COOLING LIMITED",28/11/2022 00:00:00,25/12/2022 00:00:00,"P09-2023"
,"LEE VALLEY MARINA SPRINGFIELD","SUPPLIES AND SERVICES","IT MAINTENANCE AGREEMENTS","4119","P120246-SERVICE-Support & Data Nov 22-Mar 23",5/12/2022 00:00:00,"269314",160.53,"CY0653","CYBERTILL",28/11/2022 00:00:00,25/12/2022 00:00:00,"P09-2023"
,"LEE VALLEY CAMPSITE","SUPPLIES AND SERVICES","IT MAINTENANCE AGREEMENTS","4119","P119809-SERVICE-Monthly Subscrption Nov 22 - Mar 23",19/12/2022 00:00:00,"269577",145.5,"NE0218","NETGUIDES LIMITED",28/11/2022 00:00:00,25/12/2022 00:00:00,"P09-2023"
,"LEE VALLEY CARAVAN PARK","SUPPLIES AND SERVICES","IT MAINTENANCE AGREEMENTS","4119","P119809-SERVICE-Monthly Subscriptions Nov 22 - Mar 23",19/12/2022 00:00:00,"269577",145.5,"NE0218","NETGUIDES LIMITED",28/11/2022 00:00:00,25/12/2022 00:00:00,"P09-2023"
"P&V","ALMOST WILD CAMPSITE","SUPPLIES AND SERVICES","IT MAINTENANCE AGREEMENTS","4119","P119809-SERVICE-Monthly Subscrption Nov 22 - Mar 23",19/12/2022 00:00:00,"269577",145.5,"NE0218","NETGUIDES LIMITED",28/11/2022 00:00:00,25/12/2022 00:00:00,"P09-2023"
,"LV LEISURE CENTRE CAMPSITE","SUPPLIES AND SERVICES","IT MAINTENANCE AGREEMENTS","4119","P119809-SERVICE-Monthly Subscrption Nov 22 - Mar 23",19/12/2022 00:00:00,"269577",145.5,"NE0218","NETGUIDES LIMITED",28/11/2022 00:00:00,25/12/2022 00:00:00,"P09-2023"
,"LV LEISURE CENTRE GOLF COURSE","SUPPLIES AND SERVICES","IT MAINTENANCE AGREEMENTS","4119","P120374-SERVICE-Digitickets Services November 2022",21/12/2022 00:00:00,"269555",427.51,"DI0304","DIGITAL TICKETING SYSTEMS LTD (DIGITICKETS)",28/11/2022 00:00:00,25/12/2022 00:00:00,"P09-2023"
,"LEE VALLEY CARAVAN PARK","SUPPLIES AND SERVICES","MATERIALS (GROUNDS MAINT)","4125","CAPSER",5/12/2022 00:00:00,"269308",110,"MO0041","CAPSER",28/11/2022 00:00:00,25/12/2022 00:00:00,"P09-2023"
,"LEE VALLEY CARAVAN PARK","SUPPLIES AND SERVICES","MATERIALS (GROUNDS MAINT)","4125","P120193-SERVICE-13m fence nr gas tank & bungalow",5/12/2022 00:00:00,"269308",910,"MO0041","CAPSER",28/11/2022 00:00:00,25/12/2022 00:00:00,"P09-2023"
,"LEE VALLEY CARAVAN PARK","SUPPLIES AND SERVICES","MATERIALS (GROUNDS MAINT)","4125","CAPSER",5/12/2022 00:00:00,"269308",-910,"MO0041","CAPSER",28/11/2022 00:00:00,25/12/2022 00:00:00,"P09-2023"
,"LEE VALLEY CARAVAN PARK","SUPPLIES AND SERVICES","MATERIALS (GROUNDS MAINT)","4125","CAPSER",5/12/2022 00:00:00,"269308",800,"MO0041","CAPSER",28/11/2022 00:00:00,25/12/2022 00:00:00,"P09-2023"
,"LEE VALLEY CARAVAN PARK","SUPPLIES AND SERVICES","MATERIALS (GROUNDS MAINT)","4125","P120196-SERVICE-hot tub base, stand and gate",5/12/2022 00:00:00,"269311",1030,"MO0041","CAPSER",28/11/2022 00:00:00,25/12/2022 00:00:00,"P09-2023"
,"LEE VALLEY CARAVAN PARK","SUPPLIES AND SERVICES","MATERIALS (GROUNDS MAINT)","4125","CAPSER",5/12/2022 00:00:00,"269311",-1030,"MO0041","CAPSER",28/11/2022 00:00:00,25/12/2022 00:00:00,"P09-2023"
,"LEE VALLEY CARAVAN PARK","SUPPLIES AND SERVICES","MATERIALS (GROUNDS MAINT)","4125","CAPSER",5/12/2022 00:00:00,"269311",280,"MO0041","CAPSER",28/11/2022 00:00:00,25/12/2022 00:00:00,"P09-2023"
,"LEE VALLEY CARAVAN PARK","SUPPLIES AND SERVICES","MATERIALS (GROUNDS MAINT)","4125","CAPSER",5/12/2022 00:00:00,"269311",750,"MO0041","CAPSER",28/11/2022 00:00:00,25/12/2022 00:00:00,"P09-2023"
,"LEE VALLEY MARINA SPRINGFIELD","SUPPLIES AND SERVICES","MATERIALS (TOOLS & PLANT)","4127","P120301-SERVICE-Makita B04555 Palm Sander",19/12/2022 00:00:00,"269594",59.99,"IN0011","INDUSTRIAL TOOL SUPPLIES (LONDON) LTD",28/11/2022 00:00:00,25/12/2022 00:00:00,"P09-2023"
,"LEE VALLEY MARINA SPRINGFIELD","SUPPLIES AND SERVICES","MATERIALS (TOOLS & PLANT)","4127","P120024-SERVICE-LEV testing & inspection",19/12/2022 00:00:00,"269604",730,"CL0435","CLEAR THE AIR",28/11/2022 00:00:00,25/12/2022 00:00:00,"P09-2023"
,"STANSTEAD RECHARGEABLE WORKS","SUPPLIES AND SERVICES","MATERIALS (TOOLS & PLANT)","4127","P120222-SERVICE-screwfix workshop items",5/12/2022 00:00:00,"269327",607.18,"SC0057","SCREWFIX DIRECT LTD",28/11/2022 00:00:00,25/12/2022 00:00:00,"P09-2023"
,"STANSTEAD RECHARGEABLE WORKS","SUPPLIES AND SERVICES","MATERIALS (TOOLS & PLANT)","4127","P120209-SERVICE-grease for crane",14/12/2022 00:00:00,"269410",133.89,"MI0200","MIDLAND CHANDLERS LIMITED",28/11/2022 00:00:00,25/12/2022 00:00:00,"P09-2023"
,"STANSTEAD RECHARGEABLE WORKS","SUPPLIES AND SERVICES","MATERIALS (TOOLS & PLANT)","4127","P120304-SERVICE-crowlands",14/12/2022 00:00:00,"269451",397.8,"CR0183","CROWLAND CRANES LTD",28/11/2022 00:00:00,25/12/2022 00:00:00,"P09-2023"
,"STANSTEAD RECHARGEABLE WORKS","SUPPLIES AND SERVICES","MATERIALS (TOOLS & PLANT)","4127","P120304-SERVICE-blue crane annual service",14/12/2022 00:00:00,"269451",1989,"CR0183","CROWLAND CRANES LTD",28/11/2022 00:00:00,25/12/2022 00:00:00,"P09-2023"
,"LEE VALLEY MARINA SPRINGFIELD","SUPPLIES AND SERVICES","MATERIALS (ENG OTHER)","4130","P120208-SERVICE-xceldisc5ct 125mmx1.0mm X 2",5/12/2022 00:00:00,"269290",100,"EL0281","ELTHAM WELDING SUPPLIES LIMITED",28/11/2022 00:00:00,25/12/2022 00:00:00,"P09-2023"
,"LEE VALLEY MARINA SPRINGFIELD","SUPPLIES AND SERVICES","MATERIALS (ENG OTHER)","4130","P120208-SERVICE-0700000800 Esab Sentinel A50 X 1",5/12/2022 00:00:00,"269290",279.85,"EL0281","ELTHAM WELDING SUPPLIES LIMITED",28/11/2022 00:00:00,25/12/2022 00:00:00,"P09-2023"
,"LEE VALLEY MARINA SPRINGFIELD","SUPPLIES AND SERVICES","MATERIALS (ENG OTHER)","4130","P120208-SERVICE-XCELDISC5G 125MMX6MM  X2",5/12/2022 00:00:00,"269290",63,"EL0281","ELTHAM WELDING SUPPLIES LIMITED",28/11/2022 00:00:00,25/12/2022 00:00:00,"P09-2023"
,"STANSTEAD RECHARGEABLE WORKS","SUPPLIES AND SERVICES","MATERIALS (ENG OTHER)","4130","P120202-SERVICE-anodes",5/12/2022 00:00:00,"269204",552.13,"MI0200","MIDLAND CHANDLERS LIMITED",28/11/2022 00:00:00,25/12/2022 00:00:00,"P09-2023"
,"STANSTEAD RECHARGEABLE WORKS","SUPPLIES AND SERVICES","MATERIALS (ENG OTHER)","4130","P120202-SERVICE-anodes",5/12/2022 00:00:00,"269209",2.96,"MI0200","MIDLAND CHANDLERS LIMITED",28/11/2022 00:00:00,25/12/2022 00:00:00,"P09-2023"
,"STANSTEAD RECHARGEABLE WORKS","SUPPLIES AND SERVICES","MATERIALS (ENG OTHER)","4130","P120202-SERVICE-anodes",5/12/2022 00:00:00,"269297",24.84,"MI0200","MIDLAND CHANDLERS LIMITED",28/11/2022 00:00:00,25/12/2022 00:00:00,"P09-2023"
,"STANSTEAD RECHARGEABLE WORKS","SUPPLIES AND SERVICES","MATERIALS (ENG OTHER)","4130","P120300-SERVICE-stern gear and oil",14/12/2022 00:00:00,"269561",205.13,"MI0200","MIDLAND CHANDLERS LIMITED",28/11/2022 00:00:00,25/12/2022 00:00:00,"P09-2023"
,"LEE VALLEY CARAVAN PARK","SUPPLIES AND SERVICES","MATERIALS (MEDICAL)","4132","P120198-SERVICE-2 eye stations and eye wash",5/12/2022 00:00:00,"269174",36.35,"FI0215","VALUE PRODUCTS LTD",28/11/2022 00:00:00,25/12/2022 00:00:00,"P09-2023"
"P&V","LEE VALLEY FARM HOLYFIELDHALL","SUPPLIES AND SERVICES","FEED","4133","P120189-SERVICE-Nutrimol",5/12/2022 00:00:00,"269131",2973.12,"BO0246","FOR FARMERS UK LTD",28/11/2022 00:00:00,25/12/2022 00:00:00,"P09-2023"
"P&V","LEE VALLEY FARM HOLYFIELDHALL","SUPPLIES AND SERVICES","FEED","4133","P120276-SERVICE-Boosterlac",7/12/2022 00:00:00,"269170",1703,"BO0246","FOR FARMERS UK LTD",28/11/2022 00:00:00,25/12/2022 00:00:00,"P09-2023"
"P&V","LEE VALLEY FARM HOLYFIELDHALL","SUPPLIES AND SERVICES","FEED","4133","P120278-SERVICE-Optima/Translac/Prime Rearer",7/12/2022 00:00:00,"269323",12651.32,"BO0246","FOR FARMERS UK LTD",28/11/2022 00:00:00,25/12/2022 00:00:00,"P09-2023"
"P&V","LEE VALLEY FARM HOLYFIELDHALL","SUPPLIES AND SERVICES","FEED","4133","P120381-SERVICE-Rolled Barley",19/12/2022 00:00:00,"269578",5308.56,"PR0228","PROTEIN FEEDS LIMITED",28/11/2022 00:00:00,25/12/2022 00:00:00,"P09-2023"
"P&V","LEE VALLEY FARM HOLYFIELDHALL","SUPPLIES AND SERVICES","FEED","4133","P120382-SERVICE-Selcoplus",19/12/2022 00:00:00,"269602",4878.6,"BO0246","FOR FARMERS UK LTD",28/11/2022 00:00:00,25/12/2022 00:00:00,"P09-2023"
"P&V","LEE VALLEY FARM HOLYFIELDHALL","SUPPLIES AND SERVICES","FEED","4133","P120379-SERVICE-Barley & Oat Straw",19/12/2022 00:00:00,"269783",2736,"GR0040","J & E GRAHAM",28/11/2022 00:00:00,25/12/2022 00:00:00,"P09-2023"
"P&V","LEE VALLEY FARM HOLYFIELDHALL","SUPPLIES AND SERVICES","FERTILIZER","4137","P120308-SERVICE-Fertilizers",14/12/2022 00:00:00,"269520",31557,"HA0013","HARLOW AGRICULTURAL MERCHANTS",28/11/2022 00:00:00,25/12/2022 00:00:00,"P09-2023"
"P&V","LEE VALLEY FARM HOLYFIELDHALL","SUPPLIES AND SERVICES","DAIRY SUNDRIES","4138","P117612-SERVICE-Dairy Sundries",14/12/2022 00:00:00,"269393",17.3,"FA0099","FARM & COUNTRY SUPPLIES LTD",28/11/2022 00:00:00,25/12/2022 00:00:00,"P09-2023"
"P&V","LEE VALLEY FARM HOLYFIELDHALL","SUPPLIES AND SERVICES","DAIRY SUNDRIES","4138","P119870-SERVICE-Animal Removal",21/12/2022 00:00:00,"269773",265,"MA0074","W MARTIN & SON LIMITED",28/11/2022 00:00:00,25/12/2022 00:00:00,"P09-2023"
,"LEE VALLEY CARAVAN PARK","SUPPLIES AND SERVICES","MISCELLANEOUS CARAVAN COSTS","4174","P120260-SERVICE-Key safes, shelves for Peaky pods",6/12/2022 00:00:00,"269291",122.68,"BQ0164","TRADE UK ACCOUNT",28/11/2022 00:00:00,25/12/2022 00:00:00,"P09-2023"
,"LEE VALLEY CARAVAN PARK","SUPPLIES AND SERVICES","MISCELLANEOUS CARAVAN COSTS","4174","CAPSER",5/12/2022 00:00:00,"269310",800,"MO0041","CAPSER",28/11/2022 00:00:00,25/12/2022 00:00:00,"P09-2023"
,"LEE VALLEY CARAVAN PARK","SUPPLIES AND SERVICES","MISCELLANEOUS CARAVAN COSTS","4174","CAPSER",5/12/2022 00:00:00,"269310",-1100,"MO0041","CAPSER",28/11/2022 00:00:00,25/12/2022 00:00:00,"P09-2023"
,"LEE VALLEY CARAVAN PARK","SUPPLIES AND SERVICES","MISCELLANEOUS CARAVAN COSTS","4174","CAPSER",5/12/2022 00:00:00,"269310",300,"MO0041","CAPSER",28/11/2022 00:00:00,25/12/2022 00:00:00,"P09-2023"
,"LEE VALLEY CARAVAN PARK","SUPPLIES AND SERVICES","MISCELLANEOUS CARAVAN COSTS","4174","P120195-SERVICE-Trench to new caravan",5/12/2022 00:00:00,"269310",1100,"MO0041","CAPSER",28/11/2022 00:00:00,25/12/2022 00:00:00,"P09-2023"
,"LEE VALLEY CARAVAN PARK","SUPPLIES AND SERVICES","MISCELLANEOUS CARAVAN COSTS","4174","P120414-SERVICE-Replace ceiling panel & secure heaters in PP",21/12/2022 00:00:00,"269808",80,"BR0018","BRADSHAW ELECTRICAL LIMITED",28/11/2022 00:00:00,25/12/2022 00:00:00,"P09-2023"
"CEO","PR/COMMUNICATIONS","SUPPLIES AND SERVICES","CLOTHING & UNIFORMS","4225","P119888-SERVICE-Name badges x 37 + P&P",15/12/2022 00:00:00,"269102",272,"RE0055","RECOGNITION EXPRESS THAMES VALLEY",28/11/2022 00:00:00,25/12/2022 00:00:00,"P09-2023"
,"LEE VALLEY MARINA SPRINGFIELD","SUPPLIES AND SERVICES","CLOTHING & UNIFORMS","4225","P120086-SERVICE-To supply the following uniform",14/12/2022 00:00:00,"268943",485.5,"DI0017","DIRECT BOOT & SHOE SUPPLIES",28/11/2022 00:00:00,25/12/2022 00:00:00,"P09-2023"
,"LEE VALLEY CAMPSITE","SUPPLIES AND SERVICES","CLOTHING & UNIFORMS","4225","P120326-SERVICE-Uniform Sewardstone",21/12/2022 00:00:00,"269781",266,"DI0017","DIRECT BOOT & SHOE SUPPLIES",28/11/2022 00:00:00,25/12/2022 00:00:00,"P09-2023"
,"LEE VALLEY CARAVAN PARK","SUPPLIES AND SERVICES","CLOTHING & UNIFORMS","4225","P120326-SERVICE-Uniform Dobbs Weir",21/12/2022 00:00:00,"269781",234,"DI0017","DIRECT BOOT & SHOE SUPPLIES",28/11/2022 00:00:00,25/12/2022 00:00:00,"P09-2023"
"P&V","RIVER LEE COUNTRY PARK","SUPPLIES AND SERVICES","CLOTHING & UNIFORMS","4225","P119655-SERVICE-1x Husqvarna Chainsaw Boots - size 9.5",7/12/2022 00:00:00,"269210",74.15,"JO0109","F R JONES & SON",28/11/2022 00:00:00,25/12/2022 00:00:00,"P09-2023"
"CEO","CHIEF EXECUTIVE","SUPPLIES AND SERVICES","OFFICE EXPENSES","4311","P120180-SERVICE-3 x HPCH562EE Black Cartrdiges",7/12/2022 00:00:00,"269404",59.76,"TH0008","JKL SOLUTIONS LTD",28/11/2022 00:00:00,25/12/2022 00:00:00,"P09-2023"
"CEO","CHIEF EXECUTIVE","SUPPLIES AND SERVICES","OFFICE EXPENSES","4311","P120180-SERVICE-3 x HPCH562EE Colour Cartridges",7/12/2022 00:00:00,"269404",83.55,"TH0008","JKL SOLUTIONS LTD",28/11/2022 00:00:00,25/12/2022 00:00:00,"P09-2023"
"R&B","DEMOCRATIC REPRESENTATION & MA","SUPPLIES AND SERVICES","OFFICE EXPENSES","4311","P120306-SERVICE-DL Envelopes (KF0300)",15/12/2022 00:00:00,"269560",27.83,"TH0008","JKL SOLUTIONS LTD",28/11/2022 00:00:00,25/12/2022 00:00:00,"P09-2023"
"R&B","DEMOCRATIC REPRESENTATION & MA","SUPPLIES AND SERVICES","OFFICE EXPENSES","4311","P120306-SERVICE-C5 Envelopes (JDL26039)",15/12/2022 00:00:00,"269560",35.12,"TH0008","JKL SOLUTIONS LTD",28/11/2022 00:00:00,25/12/2022 00:00:00,"P09-2023"
"R&B","DEMOCRATIC REPRESENTATION & MA","SUPPLIES AND SERVICES","OFFICE EXPENSES","4311","P120306-SERVICE-C4 Envelopes (J26339)",15/12/2022 00:00:00,"269560",45.69,"TH0008","JKL SOLUTIONS LTD",28/11/2022 00:00:00,25/12/2022 00:00:00,"P09-2023"
,"LEE VALLEY MARINA STANSTEAD","SUPPLIES AND SERVICES","OFFICE EXPENSES","4311","P120360-SERVICE-Confidential shredding Stanstead Marina",15/12/2022 00:00:00,"269312",77,"CS0287","CURTIS SECURITY SHREDDING LTD",28/11/2022 00:00:00,25/12/2022 00:00:00,"P09-2023"
,"LEE VALLEY MARINA STANSTEAD","SUPPLIES AND SERVICES","OFFICE EXPENSES","4311","P120312-SERVICE-stationery brown strung tags (chand)",15/12/2022 00:00:00,"269591",18.22,"TH0008","JKL SOLUTIONS LTD",28/11/2022 00:00:00,25/12/2022 00:00:00,"P09-2023"
"P&V","YOUTH AND SCHOOLS","SUPPLIES AND SERVICES","OFFICE EXPENSES","4311","REPAIR ZIP FOR CLOTHING",14/12/2022 00:00:00,"269576",8,"FI0001","DIRECTOR OF FINANCE - CASH",28/11/2022 00:00:00,25/12/2022 00:00:00,"P09-2023"
"P&V","YOUTH AND SCHOOLS","SUPPLIES AND SERVICES","OFFICE EXPENSES","4311","BLACK BANDS",14/12/2022 00:00:00,"269576",3.73,"FI0001","DIRECTOR OF FINANCE - CASH",28/11/2022 00:00:00,25/12/2022 00:00:00,"P09-2023"
"R&B","INFORMATION TECHNOLOGY","SUPPLIES AND SERVICES","PHOTOCOPYING","4314","KONICA MINOLTA BUSINESS SOLUTI",19/12/2022 00:00:00,"269424",1479.66,"KO0071","KONICA MINOLTA BUSINESS SOLUTIONS ( UK) LTD",28/11/2022 00:00:00,25/12/2022 00:00:00,"P09-2023"
"R&B","INFORMATION TECHNOLOGY","SUPPLIES AND SERVICES","PHOTOCOPYING","4314","KONICA MINOLTA BUSINESS SOLUTI",21/12/2022 00:00:00,"269813",559.3,"KO0071","KONICA MINOLTA BUSINESS SOLUTIONS ( UK) LTD",28/11/2022 00:00:00,25/12/2022 00:00:00,"P09-2023"
"P&V","LEE VALLEY FARM HOLYFIELDHALL","SUPPLIES AND SERVICES","SUBSCRIPTIONS","4334","P117608-SERVICE-Subs",19/12/2022 00:00:00,"269545",390.98,"NA0005","NATIONAL MILK RECORDS PLC",28/11/2022 00:00:00,25/12/2022 00:00:00,"P09-2023"
"P&V","MYDDELTON HOUSE","SUPPLIES AND SERVICES","POSTAGE & MAILING","4445","PITNEY BOWES PURCHASE POWER",21/12/2022 00:00:00,"269736",1.69,"PI0021","PITNEY BOWES PURCHASE POWER",28/11/2022 00:00:00,25/12/2022 00:00:00,"P09-2023"
"R&B","REVENUE SUSPENSE (AUTHORITY)","SUPPLIES AND SERVICES","TELEPHONES (OFFICE)","4481","DECEMBER 2022",19/12/2022 00:00:00,"269557",2061.96,"ID0002","DAISY COMMUNICATIONS LTD",28/11/2022 00:00:00,25/12/2022 00:00:00,"P09-2023"
"R&B","REVENUE SUSPENSE (AUTHORITY)","SUPPLIES AND SERVICES","TELEPHONES (MOBILE)","4484","NOVEMBER 2022",19/12/2022 00:00:00,"269565",687.74,"GA0432","GAMMA TELECOM LTD",28/11/2022 00:00:00,25/12/2022 00:00:00,"P09-2023"
"R&B","REVENUE SUSPENSE (AUTHORITY)","SUPPLIES AND SERVICES","TELEPHONES (MOBILE)","4484","NOVEMBER 2022",19/12/2022 00:00:00,"269565",1128.4,"GA0432","GAMMA TELECOM LTD",28/11/2022 00:00:00,25/12/2022 00:00:00,"P09-2023"
"P&V","RIVER LEE COUNTRY PARK","SUPPLIES AND SERVICES","VOLUNTEERS EXPENSES","4506","VOLUNTEER REFRESHMENTS",21/12/2022 00:00:00,"269830",2,"FI0001","DIRECTOR OF FINANCE - CASH",28/11/2022 00:00:00,25/12/2022 00:00:00,"P09-2023"
"P&V","RIVER LEE COUNTRY PARK","SUPPLIES AND SERVICES","VOLUNTEERS EXPENSES","4506","VOLUNTEER REFRESHMENTS",21/12/2022 00:00:00,"269830",16.11,"FI0001","DIRECTOR OF FINANCE - CASH",28/11/2022 00:00:00,25/12/2022 00:00:00,"P09-2023"
"P&V","RIVER LEE COUNTRY PARK","SUPPLIES AND SERVICES","VOLUNTEERS EXPENSES","4506","VOLUNTEER REFRESHMENTS",21/12/2022 00:00:00,"269830",7.35,"FI0001","DIRECTOR OF FINANCE - CASH",28/11/2022 00:00:00,25/12/2022 00:00:00,"P09-2023"
"P&V","RIVER LEE COUNTRY PARK","INTERNAL HOSPITALITY","INTERNAL HOSPITALITY","4507","INTERNAL HOSPITALITY (OFFICE REFRESHMENTS)",21/12/2022 00:00:00,"269830",3.8,"FI0001","DIRECTOR OF FINANCE - CASH",28/11/2022 00:00:00,25/12/2022 00:00:00,"P09-2023"
"P&V","RIVER LEE COUNTRY PARK","INTERNAL HOSPITALITY","INTERNAL HOSPITALITY","4507","INTERNAL HOSPITALITY (OFFICE REFRESHMENTS)",21/12/2022 00:00:00,"269830",1.78,"FI0001","DIRECTOR OF FINANCE - CASH",28/11/2022 00:00:00,25/12/2022 00:00:00,"P09-2023"
,"LEE VALLEY CAMPSITE","SUPPLIES AND SERVICES","MARKETING","4603","P120296-SERVICE-BBQ & DOG Signs",14/12/2022 00:00:00,"269403",400,"SL0528","SLAM SIGNS LTD",28/11/2022 00:00:00,25/12/2022 00:00:00,"P09-2023"
,"LEE VALLEY CAMPSITE","SUPPLIES AND SERVICES","MARKETING","4603","P119889-SERVICE-Woodland Animals",21/12/2022 00:00:00,"269817",200,"CA0754","CRAFTS ET AL",28/11/2022 00:00:00,25/12/2022 00:00:00,"P09-2023"
,"LEE VALLEY MARINA SPRINGFIELD","SUPPLIES AND SERVICES","MERCHANT PROCESSING CHARGES","4641","WORLDPAY",5/12/2022 00:00:00,"269326",30,"WO0338","WORLDPAY",28/11/2022 00:00:00,25/12/2022 00:00:00,"P09-2023"
,"LEE VALLEY MARINA SPRINGFIELD","SUPPLIES AND SERVICES","MERCHANT PROCESSING CHARGES","4641","P120337-SERVICE-Cash Collection Nov",19/12/2022 00:00:00,"269599",75,"BD0529","BDI SECURITIES",28/11/2022 00:00:00,25/12/2022 00:00:00,"P09-2023"
,"LEE VALLEY MARINA STANSTEAD","SUPPLIES AND SERVICES","MERCHANT PROCESSING CHARGES","4641","WORLDPAY",5/12/2022 00:00:00,"269326",30,"WO0338","WORLDPAY",28/11/2022 00:00:00,25/12/2022 00:00:00,"P09-2023"
"R&B","FINANCE & RESOURCES MANAGEMENT","SUPPLIES AND SERVICES","DEBT RECOVERY FEES","4646","P117729-SERVICE-DEBT RECOVERY FEES 2022/2023",21/12/2022 00:00:00,"269799",43,"LE0069","LEGAL RECOVERIES AND COLLECTIONS LIMITED",28/11/2022 00:00:00,25/12/2022 00:00:00,"P09-2023"
"P&V","MYDDELTON HOUSE","SUPPLIES AND SERVICES","SECURITY","4650","George F",14/12/2022 00:00:00,"268935",320,"KE0023","KENDALL & SONS LIMITED",28/11/2022 00:00:00,25/12/2022 00:00:00,"P09-2023"
"P&V","MYDDELTON HOUSE","SUPPLIES AND SERVICES","SECURITY","4650","P120303-SERVICE-Replace Locks After Break-in",14/12/2022 00:00:00,"268935",470,"KE0023","KENDALL & SONS LIMITED",28/11/2022 00:00:00,25/12/2022 00:00:00,"P09-2023"
"P&V","MYDDELTON HOUSE","SUPPLIES AND SERVICES","SECURITY","4650","George F",14/12/2022 00:00:00,"268935",150,"KE0023","KENDALL & SONS LIMITED",28/11/2022 00:00:00,25/12/2022 00:00:00,"P09-2023"
"P&V","MYDDELTON HOUSE","SUPPLIES AND SERVICES","SECURITY","4650","George F",14/12/2022 00:00:00,"268935",-470,"KE0023","KENDALL & SONS LIMITED",28/11/2022 00:00:00,25/12/2022 00:00:00,"P09-2023"
,"LEE VALLEY MARINA STANSTEAD","SUPPLIES AND SERVICES","SECURITY","4650","P120167-SERVICE-call out to quot repair & recommission gate",5/12/2022 00:00:00,"269108",145,"AI0262","AIS ( ADVANCED INTEGRATED SECURITY)",28/11/2022 00:00:00,25/12/2022 00:00:00,"P09-2023"
,"LEE VALLEY MARINA STANSTEAD","SUPPLIES AND SERVICES","SECURITY","4650","P120167-SERVICE-call out to quot repair & recommission gate",5/12/2022 00:00:00,"269110",-72.5,"AI0262","AIS ( ADVANCED INTEGRATED SECURITY)",28/11/2022 00:00:00,25/12/2022 00:00:00,"P09-2023"
,"LEE VALLEY MARINA STANSTEAD","SUPPLIES AND SERVICES","SECURITY","4650","P120225-SERVICE-replaced contact in workshop",5/12/2022 00:00:00,"269168",98,"CH0088","CHUBB FIRE & SECURITY",28/11/2022 00:00:00,25/12/2022 00:00:00,"P09-2023"
,"LEE VALLEY MARINA STANSTEAD","SUPPLIES AND SERVICES","SECURITY","4650","P120043-SERVICE-photocells, maglocks, brackets, motor, cables",14/12/2022 00:00:00,"269550",1959.67,"AI0262","AIS ( ADVANCED INTEGRATED SECURITY)",28/11/2022 00:00:00,25/12/2022 00:00:00,"P09-2023"
"P&V","NORTH AREA RANGERS","SUPPLIES AND SERVICES","SECURITY","4650","P118180-SERVICE-Security - North of Park",20/12/2022 00:00:00,"269820",3979.44,"PA0059","PARKGUARD LTD",28/11/2022 00:00:00,25/12/2022 00:00:00,"P09-2023"
"P&V","NORTH AREA RANGERS","SUPPLIES AND SERVICES","SECURITY","4650","P118180-SERVICE-Security - North of Park",20/12/2022 00:00:00,"269821",7334.4,"PA0059","PARKGUARD LTD",28/11/2022 00:00:00,25/12/2022 00:00:00,"P09-2023"
"P&V","ABBEY GARDENS","SUPPLIES AND SERVICES","SECURITY","4650","P118180-SERVICE-Security - North of Park",20/12/2022 00:00:00,"269820",131.59,"PA0059","PARKGUARD LTD",28/11/2022 00:00:00,25/12/2022 00:00:00,"P09-2023"
"P&V","FORMER LV LIDO SITE","SUPPLIES AND SERVICES","SECURITY","4650","P118180-SERVICE-Security - North of Park",20/12/2022 00:00:00,"269820",1200,"PA0059","PARKGUARD LTD",28/11/2022 00:00:00,25/12/2022 00:00:00,"P09-2023"
"CEO","LVLC SERVICE CHARGE","SUPPLIES AND SERVICES","SECURITY","4650","P120299-SERVICE-Security",14/12/2022 00:00:00,"269340",2876.4,"SA0626","SAFESITE SECURITY SOLUTIONS LTD",28/11/2022 00:00:00,25/12/2022 00:00:00,"P09-2023"
"CEO","LVLC SERVICE CHARGE","SUPPLIES AND SERVICES","SECURITY","4650","P119848-SERVICE-1 Hour Parkguard Patrol at Picketts Lock Adde",19/12/2022 00:00:00,"269597",816.53,"PA0059","PARKGUARD LTD",28/11/2022 00:00:00,25/12/2022 00:00:00,"P09-2023"
"R&B","PERFORMANCE MANAGEMENT","SUPPLIES AND SERVICES","OFFSITE ARCHIVED STORAGE","4667","P120360-SERVICE-Confidential shredding trust papers",15/12/2022 00:00:00,"269312",66.5,"CS0287","CURTIS SECURITY SHREDDING LTD",28/11/2022 00:00:00,25/12/2022 00:00:00,"P09-2023"
"R&B","PERFORMANCE MANAGEMENT","SUPPLIES AND SERVICES","OFFSITE ARCHIVED STORAGE","4667","P120293-SERVICE-Off site archive storage November 2022",7/12/2022 00:00:00,"269419",444.07,"DA0154","RESTORE PLC",28/11/2022 00:00:00,25/12/2022 00:00:00,"P09-2023"
,"LEE VALLEY CAMPSITE","SUPPLIES AND SERVICES","ENTERTAINMENT & OTHER LICENCES","4711","P120430-SERVICE-TV Licence",21/12/2022 00:00:00,"269833",159,"TV0065","TV LICENSING",28/11/2022 00:00:00,25/12/2022 00:00:00,"P09-2023"
,"LV LEISURE CENTRE CAMPSITE","SUPPLIES AND SERVICES","ENTERTAINMENT & OTHER LICENCES","4711","P120404-SERVICE-TV Licensing",21/12/2022 00:00:00,"269823",159,"TV0065","TV LICENSING",28/11/2022 00:00:00,25/12/2022 00:00:00,"P09-2023"
"P&V","LEE VALLEY FARM HOLYFIELDHALL","THIRD PARTY PAYMENTS","VETERINARY SERVICES","4718","P120307-SERVICE-Vets",14/12/2022 00:00:00,"269369",1977.22,"HA0443","HAMPDEN VETERINARY HOSPITAL",28/11/2022 00:00:00,25/12/2022 00:00:00,"P09-2023"
"P&V","YOUTH AND SCHOOLS","SUPPLIES AND SERVICES","ACTIVITIES (SCHOOLS)","4725","P120244-SERVICE-Delivery",7/12/2022 00:00:00,"269415",3.76,"NH0175","NHBS",28/11/2022 00:00:00,25/12/2022 00:00:00,"P09-2023"
"P&V","YOUTH AND SCHOOLS","SUPPLIES AND SERVICES","ACTIVITIES (SCHOOLS)","4725","P120244-SERVICE-6 x 175974 Bug Box Magnifying Pot",7/12/2022 00:00:00,"269415",27.48,"NH0175","NHBS",28/11/2022 00:00:00,25/12/2022 00:00:00,"P09-2023"
"P&V","YOUTH AND SCHOOLS","SUPPLIES AND SERVICES","ACTIVITIES (SCHOOLS)","4725","P120244-SERVICE-14  x 185095 9 Pocket Round Sample Specimen T",7/12/2022 00:00:00,"269415",78.79,"NH0175","NHBS",28/11/2022 00:00:00,25/12/2022 00:00:00,"P09-2023"
"P&V","YOUTH AND SCHOOLS","SUPPLIES AND SERVICES","ACTIVITIES (SCHOOLS)","4725","WATER",14/12/2022 00:00:00,"269576",1.29,"FI0001","DIRECTOR OF FINANCE - CASH",28/11/2022 00:00:00,25/12/2022 00:00:00,"P09-2023"
"P&V","YOUTH AND SCHOOLS","SUPPLIES AND SERVICES","ACTIVITIES (SCHOOLS)","4725","VEGETABLES",14/12/2022 00:00:00,"269576",5.7,"FI0001","DIRECTOR OF FINANCE - CASH",28/11/2022 00:00:00,25/12/2022 00:00:00,"P09-2023"
"P&V","MYDDLETON HSE HERITAGE CENTRE","SUPPLIES AND SERVICES","NET CATERING PURCHASES","4777","P120051-SERVICE-food/drinks tearooms nov 22",30/11/2022 00:00:00,"268998",-17.59,"360001","BIDFOOD",28/11/2022 00:00:00,25/12/2022 00:00:00,"P09-2023"
"P&V","MYDDLETON HSE HERITAGE CENTRE","SUPPLIES AND SERVICES","NET CATERING PURCHASES","4777","BIDFOOD",30/11/2022 00:00:00,"269139",-190.75,"360001","BIDFOOD",28/11/2022 00:00:00,25/12/2022 00:00:00,"P09-2023"
"P&V","MYDDLETON HSE HERITAGE CENTRE","SUPPLIES AND SERVICES","NET CATERING PURCHASES","4777","BIDFOOD",30/11/2022 00:00:00,"269139",140.32,"360001","BIDFOOD",28/11/2022 00:00:00,25/12/2022 00:00:00,"P09-2023"
"P&V","MYDDLETON HSE HERITAGE CENTRE","SUPPLIES AND SERVICES","NET CATERING PURCHASES","4777","BIDFOOD",30/11/2022 00:00:00,"269139",50.43,"360001","BIDFOOD",28/11/2022 00:00:00,25/12/2022 00:00:00,"P09-2023"
"P&V","MYDDLETON HSE HERITAGE CENTRE","SUPPLIES AND SERVICES","NET CATERING PURCHASES","4777","P120051-SERVICE-food/drinks tearooms nov 22",30/11/2022 00:00:00,"269139",190.75,"360001","BIDFOOD",28/11/2022 00:00:00,25/12/2022 00:00:00,"P09-2023"
"P&V","MYDDLETON HSE HERITAGE CENTRE","SUPPLIES AND SERVICES","NET CATERING PURCHASES","4777","BIDFOOD",30/11/2022 00:00:00,"269195",-411.96,"360001","BIDFOOD",28/11/2022 00:00:00,25/12/2022 00:00:00,"P09-2023"
"P&V","MYDDLETON HSE HERITAGE CENTRE","SUPPLIES AND SERVICES","NET CATERING PURCHASES","4777","P120051-SERVICE-food/drinks tearooms nov 22",30/11/2022 00:00:00,"269195",411.96,"360001","BIDFOOD",28/11/2022 00:00:00,25/12/2022 00:00:00,"P09-2023"
"P&V","MYDDLETON HSE HERITAGE CENTRE","SUPPLIES AND SERVICES","NET CATERING PURCHASES","4777","BIDFOOD",30/11/2022 00:00:00,"269195",9.85,"360001","BIDFOOD",28/11/2022 00:00:00,25/12/2022 00:00:00,"P09-2023"
"P&V","MYDDLETON HSE HERITAGE CENTRE","SUPPLIES AND SERVICES","NET CATERING PURCHASES","4777","BIDFOOD",30/11/2022 00:00:00,"269195",402.11,"360001","BIDFOOD",28/11/2022 00:00:00,25/12/2022 00:00:00,"P09-2023"
"P&V","MYDDLETON HSE HERITAGE CENTRE","SUPPLIES AND SERVICES","NET CATERING PURCHASES","4777","BIDFOOD",14/12/2022 00:00:00,"269319",39.48,"360001","BIDFOOD",28/11/2022 00:00:00,25/12/2022 00:00:00,"P09-2023"
"P&V","MYDDLETON HSE HERITAGE CENTRE","SUPPLIES AND SERVICES","NET CATERING PURCHASES","4777","P120231-SERVICE-Food & Drink order week com 28.11.22",14/12/2022 00:00:00,"269319",321.18,"360001","BIDFOOD",28/11/2022 00:00:00,25/12/2022 00:00:00,"P09-2023"
"P&V","MYDDLETON HSE HERITAGE CENTRE","SUPPLIES AND SERVICES","NET CATERING PURCHASES","4777","BIDFOOD",14/12/2022 00:00:00,"269319",-321.18,"360001","BIDFOOD",28/11/2022 00:00:00,25/12/2022 00:00:00,"P09-2023"
"P&V","MYDDLETON HSE HERITAGE CENTRE","SUPPLIES AND SERVICES","NET CATERING PURCHASES","4777","BIDFOOD",14/12/2022 00:00:00,"269319",281.7,"360001","BIDFOOD",28/11/2022 00:00:00,25/12/2022 00:00:00,"P09-2023"
"P&V","MYDDLETON HSE HERITAGE CENTRE","SUPPLIES AND SERVICES","NET CATERING PURCHASES","4777","P120184-SERVICE-Coffee & Hot chocolate order wk com 21 Nov",14/12/2022 00:00:00,"269333",138,"TU0194","TUDOR TEA & COFFEE",28/11/2022 00:00:00,25/12/2022 00:00:00,"P09-2023"
,"LEE VALLEY MARINA SPRINGFIELD","SUPPLIES AND SERVICES","TRADING AC - EXTERNAL PURCHASE","4875","P118241-SERVICE-Chandlery Stock",7/12/2022 00:00:00,"264954",-70,"SM0664","KG SMITH & SON",28/11/2022 00:00:00,25/12/2022 00:00:00,"P09-2023"
,"LEE VALLEY MARINA SPRINGFIELD","SUPPLIES AND SERVICES","TRADING AC - EXTERNAL PURCHASE","4875","P119943-SERVICE-Chandlery Stock (orders for customers/stock",30/11/2022 00:00:00,"269199",-189.35,"AS0036","ASAP SUPPLIES",28/11/2022 00:00:00,25/12/2022 00:00:00,"P09-2023"
,"LEE VALLEY MARINA SPRINGFIELD","SUPPLIES AND SERVICES","TRADING AC - EXTERNAL PURCHASE","4875","P120197-SERVICE-Chandlery Stock (various)",5/12/2022 00:00:00,"269205",564.74,"MI0200","MIDLAND CHANDLERS LIMITED",28/11/2022 00:00:00,25/12/2022 00:00:00,"P09-2023"
,"LEE VALLEY MARINA SPRINGFIELD","SUPPLIES AND SERVICES","TRADING AC - EXTERNAL PURCHASE","4875","P120207-SERVICE-Chandlery Stock 218856",5/12/2022 00:00:00,"269207",154.31,"AS0036","ASAP SUPPLIES",28/11/2022 00:00:00,25/12/2022 00:00:00,"P09-2023"
,"LEE VALLEY MARINA SPRINGFIELD","SUPPLIES AND SERVICES","TRADING AC - EXTERNAL PURCHASE","4875","P120210-SERVICE-Chandlery Stock  922891",5/12/2022 00:00:00,"269208",214.66,"MI0200","MIDLAND CHANDLERS LIMITED",28/11/2022 00:00:00,25/12/2022 00:00:00,"P09-2023"
,"LEE VALLEY MARINA SPRINGFIELD","SUPPLIES AND SERVICES","TRADING AC - EXTERNAL PURCHASE","4875","KG SMITH & SON",5/12/2022 00:00:00,"269331",-1763.96,"SM0664","KG SMITH & SON",28/11/2022 00:00:00,25/12/2022 00:00:00,"P09-2023"
,"LEE VALLEY MARINA SPRINGFIELD","SUPPLIES AND SERVICES","TRADING AC - EXTERNAL PURCHASE","4875","P120064-SERVICE-Coal and Gas",5/12/2022 00:00:00,"269331",34.54,"SM0664","KG SMITH & SON",28/11/2022 00:00:00,25/12/2022 00:00:00,"P09-2023"
,"LEE VALLEY MARINA SPRINGFIELD","SUPPLIES AND SERVICES","TRADING AC - EXTERNAL PURCHASE","4875","P120064-SERVICE-Chandlery Stock Gas",5/12/2022 00:00:00,"269331",1763.96,"SM0664","KG SMITH & SON",28/11/2022 00:00:00,25/12/2022 00:00:00,"P09-2023"
,"LEE VALLEY MARINA SPRINGFIELD","SUPPLIES AND SERVICES","TRADING AC - EXTERNAL PURCHASE","4875","KG SMITH & SON",5/12/2022 00:00:00,"269331",468,"SM0664","KG SMITH & SON",28/11/2022 00:00:00,25/12/2022 00:00:00,"P09-2023"
,"LEE VALLEY MARINA SPRINGFIELD","SUPPLIES AND SERVICES","TRADING AC - EXTERNAL PURCHASE","4875","KG SMITH & SON",5/12/2022 00:00:00,"269331",1295.96,"SM0664","KG SMITH & SON",28/11/2022 00:00:00,25/12/2022 00:00:00,"P09-2023"
,"LEE VALLEY MARINA SPRINGFIELD","SUPPLIES AND SERVICES","TRADING AC - EXTERNAL PURCHASE","4875","P120062-SERVICE-Hardwood Logs",7/12/2022 00:00:00,"269359",225,"HA0371","HARTS OF OAK",28/11/2022 00:00:00,25/12/2022 00:00:00,"P09-2023"
,"LEE VALLEY MARINA SPRINGFIELD","SUPPLIES AND SERVICES","TRADING AC - EXTERNAL PURCHASE","4875","P120197-SERVICE-Chandlery Stock (various)",7/12/2022 00:00:00,"269409",25.7,"MI0200","MIDLAND CHANDLERS LIMITED",28/11/2022 00:00:00,25/12/2022 00:00:00,"P09-2023"
,"LEE VALLEY MARINA SPRINGFIELD","SUPPLIES AND SERVICES","TRADING AC - EXTERNAL PURCHASE","4875","P120049-SERVICE-Chandlery Stock  tools, rollers etc",7/12/2022 00:00:00,"269420",349.69,"CE0510","CENTURION EUROPE LIMITED",28/11/2022 00:00:00,25/12/2022 00:00:00,"P09-2023"
,"LEE VALLEY MARINA SPRINGFIELD","SUPPLIES AND SERVICES","TRADING AC - EXTERNAL PURCHASE","4875","P120256-SERVICE-Chandlery Stock  924282",14/12/2022 00:00:00,"269423",517.49,"MI0200","MIDLAND CHANDLERS LIMITED",28/11/2022 00:00:00,25/12/2022 00:00:00,"P09-2023"
,"LEE VALLEY MARINA SPRINGFIELD","SUPPLIES AND SERVICES","TRADING AC - EXTERNAL PURCHASE","4875","P120256-SERVICE-Chandlery Stock  924282",14/12/2022 00:00:00,"269432",20.73,"MI0200","MIDLAND CHANDLERS LIMITED",28/11/2022 00:00:00,25/12/2022 00:00:00,"P09-2023"
,"LEE VALLEY MARINA SPRINGFIELD","SUPPLIES AND SERVICES","TRADING AC - EXTERNAL PURCHASE","4875","P120309-SERVICE-Chandlery Stock - customer purchase",14/12/2022 00:00:00,"269527",323.18,"MI0200","MIDLAND CHANDLERS LIMITED",28/11/2022 00:00:00,25/12/2022 00:00:00,"P09-2023"
,"LEE VALLEY MARINA SPRINGFIELD","SUPPLIES AND SERVICES","TRADING AC - EXTERNAL PURCHASE","4875","KG SMITH & SON",14/12/2022 00:00:00,"269575",505.5,"SM0664","KG SMITH & SON",28/11/2022 00:00:00,25/12/2022 00:00:00,"P09-2023"
,"LEE VALLEY MARINA SPRINGFIELD","SUPPLIES AND SERVICES","TRADING AC - EXTERNAL PURCHASE","4875","KG SMITH & SON",14/12/2022 00:00:00,"269575",1850,"SM0664","KG SMITH & SON",28/11/2022 00:00:00,25/12/2022 00:00:00,"P09-2023"
,"LEE VALLEY MARINA SPRINGFIELD","SUPPLIES AND SERVICES","TRADING AC - EXTERNAL PURCHASE","4875","KG SMITH & SON",14/12/2022 00:00:00,"269575",-2355.5,"SM0664","KG SMITH & SON",28/11/2022 00:00:00,25/12/2022 00:00:00,"P09-2023"
,"LEE VALLEY MARINA SPRINGFIELD","SUPPLIES AND SERVICES","TRADING AC - EXTERNAL PURCHASE","4875","P120240-SERVICE-Coal and Gas",14/12/2022 00:00:00,"269575",2355.5,"SM0664","KG SMITH & SON",28/11/2022 00:00:00,25/12/2022 00:00:00,"P09-2023"
,"LEE VALLEY MARINA SPRINGFIELD","SUPPLIES AND SERVICES","TRADING AC - EXTERNAL PURCHASE","4875","P120340-SERVICE-Chandlery Stock  plumbing and electric parts",15/12/2022 00:00:00,"269614",407.53,"AQ0033","AQUAFAX LIMITED",28/11/2022 00:00:00,25/12/2022 00:00:00,"P09-2023"
,"LEE VALLEY MARINA SPRINGFIELD","SUPPLIES AND SERVICES","TRADING AC - EXTERNAL PURCHASE","4875","P120357-SERVICE-Chandlery Stock  926430",20/12/2022 00:00:00,"269734",659.47,"MI0200","MIDLAND CHANDLERS LIMITED",28/11/2022 00:00:00,25/12/2022 00:00:00,"P09-2023"
,"LEE VALLEY MARINA SPRINGFIELD","SUPPLIES AND SERVICES","TRADING AC - EXTERNAL PURCHASE","4875","P120323-SERVICE-Chandlery Stock - Logs",20/12/2022 00:00:00,"269780",260,"HA0371","HARTS OF OAK",28/11/2022 00:00:00,25/12/2022 00:00:00,"P09-2023"
,"STANSTEAD RECHARGEABLE WORKS","SUPPLIES AND SERVICES","TRADING AC - EXTERNAL PURCHASE","4875","P119719-SERVICE-chandlery stock",19/12/2022 00:00:00,"267960",446.73,"EL0376","ELSAN LTD",28/11/2022 00:00:00,25/12/2022 00:00:00,"P09-2023"
,"STANSTEAD RECHARGEABLE WORKS","SUPPLIES AND SERVICES","TRADING AC - EXTERNAL PURCHASE","4875","P119860-SERVICE-chandlery stock",5/12/2022 00:00:00,"268545",26.96,"AQ0033","AQUAFAX LIMITED",28/11/2022 00:00:00,25/12/2022 00:00:00,"P09-2023"
,"STANSTEAD RECHARGEABLE WORKS","SUPPLIES AND SERVICES","TRADING AC - EXTERNAL PURCHASE","4875","P119681-SERVICE-aquafax chandlery Oct 22 items",5/12/2022 00:00:00,"269104",37.76,"AQ0033","AQUAFAX LIMITED",28/11/2022 00:00:00,25/12/2022 00:00:00,"P09-2023"
,"STANSTEAD RECHARGEABLE WORKS","SUPPLIES AND SERVICES","TRADING AC - EXTERNAL PURCHASE","4875","P120183-SERVICE-customer order",5/12/2022 00:00:00,"269173",13.25,"EP0353","E P BARRUS LTD",28/11/2022 00:00:00,25/12/2022 00:00:00,"P09-2023"
,"STANSTEAD RECHARGEABLE WORKS","SUPPLIES AND SERVICES","TRADING AC - EXTERNAL PURCHASE","4875","P120202-SERVICE-chandlery stock",5/12/2022 00:00:00,"269204",1355.75,"MI0200","MIDLAND CHANDLERS LIMITED",28/11/2022 00:00:00,25/12/2022 00:00:00,"P09-2023"
,"STANSTEAD RECHARGEABLE WORKS","SUPPLIES AND SERVICES","TRADING AC - EXTERNAL PURCHASE","4875","P120199-SERVICE-2200l red diesel @ 96.75ppl",5/12/2022 00:00:00,"269302",2128.5,"SP0543","SPEEDY FUELS LIMITED",28/11/2022 00:00:00,25/12/2022 00:00:00,"P09-2023"
,"STANSTEAD RECHARGEABLE WORKS","SUPPLIES AND SERVICES","TRADING AC - EXTERNAL PURCHASE","4875","P120185-SERVICE- chandlery stock",5/12/2022 00:00:00,"269321",484.53,"CE0510","CENTURION EUROPE LIMITED",28/11/2022 00:00:00,25/12/2022 00:00:00,"P09-2023"
,"STANSTEAD RECHARGEABLE WORKS","SUPPLIES AND SERVICES","TRADING AC - EXTERNAL PURCHASE","4875","P120060-SERVICE-Chandlery Gas Nov 22",5/12/2022 00:00:00,"269332",1128,"SM0664","KG SMITH & SON",28/11/2022 00:00:00,25/12/2022 00:00:00,"P09-2023"
,"STANSTEAD RECHARGEABLE WORKS","SUPPLIES AND SERVICES","TRADING AC - EXTERNAL PURCHASE","4875","P120092-SERVICE-chandlery stock Nov 22",5/12/2022 00:00:00,"269334",152.55,"CA0660","CALFIRE SPARELINE LIMITED",28/11/2022 00:00:00,25/12/2022 00:00:00,"P09-2023"
,"STANSTEAD RECHARGEABLE WORKS","SUPPLIES AND SERVICES","TRADING AC - EXTERNAL PURCHASE","4875","P120091-SERVICE-Chandlery stock Nov 22",14/12/2022 00:00:00,"269388",15.52,"AQ0033","AQUAFAX LIMITED",28/11/2022 00:00:00,25/12/2022 00:00:00,"P09-2023"
,"STANSTEAD RECHARGEABLE WORKS","SUPPLIES AND SERVICES","TRADING AC - EXTERNAL PURCHASE","4875","P120265-SERVICE-logs for chandlery dec 22",14/12/2022 00:00:00,"269412",655,"HA0371","HARTS OF OAK",28/11/2022 00:00:00,25/12/2022 00:00:00,"P09-2023"
,"STANSTEAD RECHARGEABLE WORKS","SUPPLIES AND SERVICES","TRADING AC - EXTERNAL PURCHASE","4875","P120224-SERVICE-coal",14/12/2022 00:00:00,"269436",3783.7,"SM0664","KG SMITH & SON",28/11/2022 00:00:00,25/12/2022 00:00:00,"P09-2023"
,"STANSTEAD RECHARGEABLE WORKS","SUPPLIES AND SERVICES","TRADING AC - EXTERNAL PURCHASE","4875","P120284-SERVICE-chandlery stock",14/12/2022 00:00:00,"269521",920.77,"MI0200","MIDLAND CHANDLERS LIMITED",28/11/2022 00:00:00,25/12/2022 00:00:00,"P09-2023"
,"STANSTEAD RECHARGEABLE WORKS","SUPPLIES AND SERVICES","TRADING AC - EXTERNAL PURCHASE","4875","P120321-SERVICE-chandlery stock",19/12/2022 00:00:00,"269585",344.17,"MI0200","MIDLAND CHANDLERS LIMITED",28/11/2022 00:00:00,25/12/2022 00:00:00,"P09-2023"
,"STANSTEAD RECHARGEABLE WORKS","SUPPLIES AND SERVICES","TRADING AC - EXTERNAL PURCHASE","4875","P120347-SERVICE-chandlery stock",19/12/2022 00:00:00,"269615",1245.03,"MI0200","MIDLAND CHANDLERS LIMITED",28/11/2022 00:00:00,25/12/2022 00:00:00,"P09-2023"
,"STANSTEAD RECHARGEABLE WORKS","SUPPLIES AND SERVICES","TRADING AC - EXTERNAL PURCHASE","4875","P120347-SERVICE-chandlery stock",19/12/2022 00:00:00,"269616",54.97,"MI0200","MIDLAND CHANDLERS LIMITED",28/11/2022 00:00:00,25/12/2022 00:00:00,"P09-2023"
,"STANSTEAD RECHARGEABLE WORKS","SUPPLIES AND SERVICES","TRADING AC - EXTERNAL PURCHASE","4875","P120351-SERVICE-fuel filters",19/12/2022 00:00:00,"269735",28.05,"EP0353","E P BARRUS LTD",28/11/2022 00:00:00,25/12/2022 00:00:00,"P09-2023"
"P&V","WILDLIFE DISCOVERY CENTRE","SUPPLIES AND SERVICES","TRADING AC - EXTERNAL PURCHASE","4875","BAGS FOR DUCK FOOD (WDC SALES)",21/12/2022 00:00:00,"269830",3.29,"FI0001","DIRECTOR OF FINANCE - CASH",28/11/2022 00:00:00,25/12/2022 00:00:00,"P09-2023"
"P&V","WILDLIFE DISCOVERY CENTRE","SUPPLIES AND SERVICES","TRADING AC - EXTERNAL PURCHASE","4875","HOT CHOC(WDC SALES)",21/12/2022 00:00:00,"269830",15.98,"FI0001","DIRECTOR OF FINANCE - CASH",28/11/2022 00:00:00,25/12/2022 00:00:00,"P09-2023"
,"LV LEISURE CENTRE CAMPSITE","SUPPLIES AND SERVICES","TRADING AC - EXTERNAL PURCHASE","4875","RIJO 42 INGREDIENTS LIMITED",6/12/2022 00:00:00,"269300",338.03,"RI0176","RIJO 42 INGREDIENTS LIMITED",28/11/2022 00:00:00,25/12/2022 00:00:00,"P09-2023"
,"LV LEISURE CENTRE CAMPSITE","SUPPLIES AND SERVICES","TRADING AC - EXTERNAL PURCHASE","4875","P120249-SERVICE-Coffee supplies",6/12/2022 00:00:00,"269300",516.32,"RI0176","RIJO 42 INGREDIENTS LIMITED",28/11/2022 00:00:00,25/12/2022 00:00:00,"P09-2023"
,"LV LEISURE CENTRE CAMPSITE","SUPPLIES AND SERVICES","TRADING AC - EXTERNAL PURCHASE","4875","RIJO 42 INGREDIENTS LIMITED",6/12/2022 00:00:00,"269300",178.29,"RI0176","RIJO 42 INGREDIENTS LIMITED",28/11/2022 00:00:00,25/12/2022 00:00:00,"P09-2023"
,"LV LEISURE CENTRE CAMPSITE","SUPPLIES AND SERVICES","TRADING AC - EXTERNAL PURCHASE","4875","RIJO 42 INGREDIENTS LIMITED",6/12/2022 00:00:00,"269300",-516.32,"RI0176","RIJO 42 INGREDIENTS LIMITED",28/11/2022 00:00:00,25/12/2022 00:00:00,"P09-2023"
,"LV LEISURE CENTRE GOLF COURSE","SUPPLIES AND SERVICES","TRADING AC - EXTERNAL PURCHASE","4875","P120065-SERVICE-Golf course Stock",5/12/2022 00:00:00,"269212",633.24,"GR0144","BARRY GRIFFITHS",28/11/2022 00:00:00,25/12/2022 00:00:00,"P09-2023"
,"LV LEISURE CENTRE CAMPSITE","SUPPLIES AND SERVICES","TRAVEL CARDS","4876","P119643-SERVICE-200 x Child Travel Cards",8/12/2022 00:00:00,"269442",1298.5,"PA0003","TRANSPORT TRADING LIMITED",28/11/2022 00:00:00,25/12/2022 00:00:00,"P09-2023"
,"LV LEISURE CENTRE CAMPSITE","SUPPLIES AND SERVICES","TRAVEL CARDS","4876","P119643-SERVICE-300 x Adult Travel Cards",8/12/2022 00:00:00,"269442",3888,"PA0003","TRANSPORT TRADING LIMITED",28/11/2022 00:00:00,25/12/2022 00:00:00,"P09-2023"
,"LEE VALLEY CAMPSITE","SUPPLIES AND SERVICES","BOTTLED GAS","4877","P119823-SERVICE-Gas Cylinder stock order",14/12/2022 00:00:00,"269449",736.95,"FL0147","FLOGAS BRITAIN LIMITED",28/11/2022 00:00:00,25/12/2022 00:00:00,"P09-2023"
"CEO","CHIEF EXECUTIVE","SUPPLIES AND SERVICES","UNRECONCILED COMPANY CARD EXP","4880","P ANDREWS - DEC 2022 CCARD STATEMENT",7/12/2022 00:00:00,"269364",580.2,"NA0007","NATWEST CARD CENTRE",28/11/2022 00:00:00,25/12/2022 00:00:00,"P09-2023"
"P&V","MYDDELTON HOUSE","SUPPLIES AND SERVICES","UNRECONCILED COMPANY CARD EXP","4880","G FLAVIEN  - DEC 2022 CCARD STATEMENT",7/12/2022 00:00:00,"269364",992.66,"NA0007","NATWEST CARD CENTRE",28/11/2022 00:00:00,25/12/2022 00:00:00,"P09-2023"
"CEO","PR/COMMUNICATIONS","SUPPLIES AND SERVICES","UNRECONCILED COMPANY CARD EXP","4880","S BROMBERG  - DEC 2022 CCARD STATEMENT",7/12/2022 00:00:00,"269364",83.78,"NA0007","NATWEST CARD CENTRE",28/11/2022 00:00:00,25/12/2022 00:00:00,"P09-2023"
"R&B","DEMOCRATIC REPRESENTATION & MA","SUPPLIES AND SERVICES","UNRECONCILED COMPANY CARD EXP","4880","S BERTSCHIN  - DEC 2022 CCARD STATEMENT",7/12/2022 00:00:00,"269364",392.8,"NA0007","NATWEST CARD CENTRE",28/11/2022 00:00:00,25/12/2022 00:00:00,"P09-2023"
"R&B","FINANCE & RESOURCES MANAGEMENT","SUPPLIES AND SERVICES","UNRECONCILED COMPANY CARD EXP","4880","L READ  - DEC 2022 CCARD STATEMENT",7/12/2022 00:00:00,"269364",292.5,"NA0007","NATWEST CARD CENTRE",28/11/2022 00:00:00,25/12/2022 00:00:00,"P09-2023"
"R&B","INFORMATION TECHNOLOGY","SUPPLIES AND SERVICES","UNRECONCILED COMPANY CARD EXP","4880","S CLARK  - DEC 2022 CCARD STATEMENT",7/12/2022 00:00:00,"269364",245.69,"NA0007","NATWEST CARD CENTRE",28/11/2022 00:00:00,25/12/2022 00:00:00,"P09-2023"
,"LEE VALLEY MARINA SPRINGFIELD","SUPPLIES AND SERVICES","UNRECONCILED COMPANY CARD EXP","4880","T BEAN  - DEC 2022 CCARD STATEMENT",7/12/2022 00:00:00,"269364",129,"NA0007","NATWEST CARD CENTRE",28/11/2022 00:00:00,25/12/2022 00:00:00,"P09-2023"
,"LEE VALLEY MARINA SPRINGFIELD","SUPPLIES AND SERVICES","UNRECONCILED COMPANY CARD EXP","4880","L SCOTT  - DEC 2022 CCARD STATEMENT",7/12/2022 00:00:00,"269364",284.87,"NA0007","NATWEST CARD CENTRE",28/11/2022 00:00:00,25/12/2022 00:00:00,"P09-2023"
,"LEE VALLEY MARINA STANSTEAD","SUPPLIES AND SERVICES","UNRECONCILED COMPANY CARD EXP","4880","C BAKER  - DEC 2022 CCARD STATEMENT",7/12/2022 00:00:00,"269364",405.17,"NA0007","NATWEST CARD CENTRE",28/11/2022 00:00:00,25/12/2022 00:00:00,"P09-2023"
,"LEE VALLEY CAMPSITE","SUPPLIES AND SERVICES","UNRECONCILED COMPANY CARD EXP","4880","C CARTER  - DEC 2022 CCARD STATEMENT",7/12/2022 00:00:00,"269364",134.95,"NA0007","NATWEST CARD CENTRE",28/11/2022 00:00:00,25/12/2022 00:00:00,"P09-2023"
,"LEE VALLEY CARAVAN PARK","SUPPLIES AND SERVICES","UNRECONCILED COMPANY CARD EXP","4880","I RUSSELL  - DEC 2022 CCARD STATEMENT",7/12/2022 00:00:00,"269364",3374.56,"NA0007","NATWEST CARD CENTRE",28/11/2022 00:00:00,25/12/2022 00:00:00,"P09-2023"
"P&V","YOUTH AND SCHOOLS","SUPPLIES AND SERVICES","UNRECONCILED COMPANY CARD EXP","4880","K WHEELER  - DEC 2022 CCARD STATEMENT",7/12/2022 00:00:00,"269364",19.48,"NA0007","NATWEST CARD CENTRE",28/11/2022 00:00:00,25/12/2022 00:00:00,"P09-2023"
"P&V","MYDDELTON HOUSE GARDENS","SUPPLIES AND SERVICES","UNRECONCILED COMPANY CARD EXP","4880","R HARMES  - DEC 2022 CCARD STATEMENT",7/12/2022 00:00:00,"269364",452.99,"NA0007","NATWEST CARD CENTRE",28/11/2022 00:00:00,25/12/2022 00:00:00,"P09-2023"
"P&V","MYDDLETON HSE HERITAGE CENTRE","SUPPLIES AND SERVICES","UNRECONCILED COMPANY CARD EXP","4880","E NOAKO-AGGREY  - DEC 2022 CCARD STATEMENT",7/12/2022 00:00:00,"269364",9.99,"NA0007","NATWEST CARD CENTRE",28/11/2022 00:00:00,25/12/2022 00:00:00,"P09-2023"
"P&V","SOUTH AREA RANGERS","SUPPLIES AND SERVICES","UNRECONCILED COMPANY CARD EXP","4880","G HODDINOTT  - DEC 2022 CCARD STATEMENT",7/12/2022 00:00:00,"269364",252,"NA0007","NATWEST CARD CENTRE",28/11/2022 00:00:00,25/12/2022 00:00:00,"P09-2023"
"P&V","OPERATIONAL MANAGEMENT (L&E)","SUPPLIES AND SERVICES","UNRECONCILED COMPANY CARD EXP","4880","J HETHERINGTON  - DEC 2022 CCARD STATEMENT",7/12/2022 00:00:00,"269364",450,"NA0007","NATWEST CARD CENTRE",28/11/2022 00:00:00,25/12/2022 00:00:00,"P09-2023"
"P&V","POLICY & PERFORMANCE (L&E)","SUPPLIES AND SERVICES","UNRECONCILED COMPANY CARD EXP","4880","A SACKETT  - DEC 2022 CCARD STATEMENT",7/12/2022 00:00:00,"269364",190.71,"NA0007","NATWEST CARD CENTRE",28/11/2022 00:00:00,25/12/2022 00:00:00,"P09-2023"
"CEO","COMMERCIAL ACCOMMODATION","SUPPLIES AND SERVICES","OTHER EXPENSES","4899","P117468-SERVICE-Land Registry Fees",7/12/2022 00:00:00,"269411",6,"HM0032","HM LAND REGISTRY",28/11/2022 00:00:00,25/12/2022 00:00:00,"P09-2023"
"CEO","COMMERCIAL ACCOMMODATION","SUPPLIES AND SERVICES","OTHER EXPENSES","4899","P117468-SERVICE-Land Registry Fees",14/12/2022 00:00:00,"269568",6,"HM0032","HM LAND REGISTRY",28/11/2022 00:00:00,25/12/2022 00:00:00,"P09-2023"
"CEO","LEGAL SERVICES","SUPPLIES AND SERVICES","OTHER EXPENSES","4899","Mrs J Jackson",5/12/2022 00:00:00,"269335",0,"KE0104","KENNEDYS",28/11/2022 00:00:00,25/12/2022 00:00:00,"P09-2023"
"CEO","COMMONWEALTH GAMES 2022","SUPPLIES AND SERVICES","OTHER EXPENSES","4899","P119376-SERVICE-CWG - replacement section of blue netting",7/12/2022 00:00:00,"269406",2125,"ST0483","STAN LIMITED",28/11/2022 00:00:00,25/12/2022 00:00:00,"P09-2023"
,"LEE VALLEY MARINA SPRINGFIELD","SUPPLIES AND SERVICES","OTHER EXPENSES","4899","P117494-SERVICE-Sewage pit pipework Excavation",14/12/2022 00:00:00,"269523",780,"RE0094","REACT 2 IT (BUILDING & REFURBISHMENT) LTD",28/11/2022 00:00:00,25/12/2022 00:00:00,"P09-2023"
"P&V","LEE VALLEY FARM HOLYFIELDHALL","SUPPLIES AND SERVICES","OTHER EXPENSES","4899","P120277-SERVICE-Cattle to Market",7/12/2022 00:00:00,"269289",650,"RF0315","R F STAVELEY LTD",28/11/2022 00:00:00,25/12/2022 00:00:00,"P09-2023"
"P&V","LEE VALLEY FARM HOLYFIELDHALL","SUPPLIES AND SERVICES","OTHER EXPENSES","4899","P120279-SERVICE-Boiler in Staff Static Caravan",14/12/2022 00:00:00,"269429",1760,"SO0400","SOUTHERN GREEN SERVICES LIMITED",28/11/2022 00:00:00,25/12/2022 00:00:00,"P09-2023"
,"LEE VALLEY CAMPSITE","SUPPLIES AND SERVICES","OTHER EXPENSES","4899","CAPSER",21/12/2022 00:00:00,"269725",7000,"MO0041","CAPSER",28/11/2022 00:00:00,25/12/2022 00:00:00,"P09-2023"
,"LEE VALLEY CAMPSITE","SUPPLIES AND SERVICES","OTHER EXPENSES","4899","CAPSER",21/12/2022 00:00:00,"269725",1915,"MO0041","CAPSER",28/11/2022 00:00:00,25/12/2022 00:00:00,"P09-2023"
,"LEE VALLEY CAMPSITE","SUPPLIES AND SERVICES","OTHER EXPENSES","4899","P120286-SERVICE-C219",21/12/2022 00:00:00,"269725",8915,"MO0041","CAPSER",28/11/2022 00:00:00,25/12/2022 00:00:00,"P09-2023"
,"LEE VALLEY CAMPSITE","SUPPLIES AND SERVICES","OTHER EXPENSES","4899","CAPSER",21/12/2022 00:00:00,"269725",-8915,"MO0041","CAPSER",28/11/2022 00:00:00,25/12/2022 00:00:00,"P09-2023"
,"LEE VALLEY CARAVAN PARK","SUPPLIES AND SERVICES","OTHER EXPENSES","4899","P120285-SERVICE-C220",21/12/2022 00:00:00,"269724",10025,"MO0041","CAPSER",28/11/2022 00:00:00,25/12/2022 00:00:00,"P09-2023"
,"LEE VALLEY CARAVAN PARK","SUPPLIES AND SERVICES","OTHER EXPENSES","4899","CAPSER",21/12/2022 00:00:00,"269724",8000,"MO0041","CAPSER",28/11/2022 00:00:00,25/12/2022 00:00:00,"P09-2023"
,"LEE VALLEY CARAVAN PARK","SUPPLIES AND SERVICES","OTHER EXPENSES","4899","CAPSER",21/12/2022 00:00:00,"269724",2025,"MO0041","CAPSER",28/11/2022 00:00:00,25/12/2022 00:00:00,"P09-2023"
,"LEE VALLEY CARAVAN PARK","SUPPLIES AND SERVICES","OTHER EXPENSES","4899","CAPSER",21/12/2022 00:00:00,"269724",-10025,"MO0041","CAPSER",28/11/2022 00:00:00,25/12/2022 00:00:00,"P09-2023"
"P&V","SOUTH AREA RANGERS","SUPPLIES AND SERVICES","OTHER EXPENSES","4899","P119348-SERVICE-2x Tickets London in Bloom Awards Ceremony",7/12/2022 00:00:00,"269399",40,"LO0329","LONDON IN BLOOM",28/11/2022 00:00:00,25/12/2022 00:00:00,"P09-2023"
"P&V","COMMUNITY ACCESS FUND","SUPPLIES AND SERVICES","OTHER EXPENSES","4899","P120267-SERVICE-St Johns CAF coach 13.12.22",6/12/2022 00:00:00,"269325",695,"CH0745","CHALFONT COACHES OF HARROW LTD",28/11/2022 00:00:00,25/12/2022 00:00:00,"P09-2023"
"P&V","AWARDS AND ACCREDITATIONS","SUPPLIES AND SERVICES","OTHER EXPENSES","4899","P119433-SERVICE-Velo - Quest assessment December 2022",14/12/2022 00:00:00,"269528",1450,"4G0455","4GLOBAL CONSULTING LIMITED",28/11/2022 00:00:00,25/12/2022 00:00:00,"P09-2023"
"P&V","AWARDS AND ACCREDITATIONS","SUPPLIES AND SERVICES","OTHER EXPENSES","4899","P118414-SERVICE-Mystery Vists and Quality Audits",15/12/2022 00:00:00,"269595",1125,"RI0053","RIGHT DIRECTIONS (MANAGEMENT) LTD",28/11/2022 00:00:00,25/12/2022 00:00:00,"P09-2023"
"P&V","ASSET PROTECTION, MAINT, DEVEL","CAPITAL EXPENDITURE","CAPITAL EXPENDITURE","4990","P120129-SERVICE-LVWWC Expansion of Conference room",14/12/2022 00:00:00,"268887",75755.91,"CA0508","CARMELCREST LTD",28/11/2022 00:00:00,25/12/2022 00:00:00,"P09-2023"
"P&V","ASSET PROTECTION, MAINT, DEVEL","CAPITAL EXPENDITURE","CAPITAL EXPENDITURE","4990","P119621-SERVICE-Remove ACM on Tiles at Dobbs Weir Bunglow",5/12/2022 00:00:00,"269211",4715,"DE0322","DECONTAMINATE (UK) LTD",28/11/2022 00:00:00,25/12/2022 00:00:00,"P09-2023"
"P&V","ASSET PROTECTION, MAINT, DEVEL","CAPITAL EXPENDITURE","CAPITAL EXPENDITURE","4990","P119571-SERVICE-Label Meters at White Water Centre",5/12/2022 00:00:00,"269316",400,"GI0137","R & P GIBBS LIMITED",28/11/2022 00:00:00,25/12/2022 00:00:00,"P09-2023"
"P&V","ASSET PROTECTION, MAINT, DEVEL","CAPITAL EXPENDITURE","CAPITAL EXPENDITURE","4990","P119647-SERVICE-Three Mills - Cut & Collect  (Ped Mowers Only",5/12/2022 00:00:00,"269348",834.01,"GL0214","GLENDALE GROUNDS MANAGEMENT LIMITED",28/11/2022 00:00:00,25/12/2022 00:00:00,"P09-2023"
"P&V","ASSET PROTECTION, MAINT, DEVEL","CAPITAL EXPENDITURE","CAPITAL EXPENDITURE","4990","P120037-SERVICE-Repairs Front Door White Wtaer Centre",14/12/2022 00:00:00,"269421",2914,"GU0198","GUARDIAN INDUSTRIAL DOORS LIMITED",28/11/2022 00:00:00,25/12/2022 00:00:00,"P09-2023"
"P&V","ASSET PROTECTION, MAINT, DEVEL","CAPITAL EXPENDITURE","CAPITAL EXPENDITURE","4990","P119826-SERVICE-Velo Remove loose Slugs and dispose off, Clea",14/12/2022 00:00:00,"269524",790,"RE0094","REACT 2 IT (BUILDING & REFURBISHMENT) LTD",28/11/2022 00:00:00,25/12/2022 00:00:00,"P09-2023"
"P&V","ASSET PROTECTION, MAINT, DEVEL","CAPITAL EXPENDITURE","CAPITAL EXPENDITURE","4990","P120212-SERVICE-Velo - Attend site with Carpenter to meet Mik",14/12/2022 00:00:00,"269525",320,"RE0094","REACT 2 IT (BUILDING & REFURBISHMENT) LTD",28/11/2022 00:00:00,25/12/2022 00:00:00,"P09-2023"
"P&V","ASSET PROTECTION, MAINT, DEVEL","CAPITAL EXPENDITURE","CAPITAL EXPENDITURE","4990","P119926-SERVICE-Velo Software, Staircase & Pods Commissioning",14/12/2022 00:00:00,"269567",3080,"PH0319","SIGNIFY COMMERCIAL UK LIMITED (PHILIPS LIGHTI",28/11/2022 00:00:00,25/12/2022 00:00:00,"P09-2023"
"P&V","ASSET PROTECTION, MAINT, DEVEL","CAPITAL EXPENDITURE","CAPITAL EXPENDITURE","4990","P120211-SERVICE-Velo - Attend site on an emergency basis with",15/12/2022 00:00:00,"269641",700,"RE0094","REACT 2 IT (BUILDING & REFURBISHMENT) LTD",28/11/2022 00:00:00,25/12/2022 00:00:00,"P09-2023"
"P&V","ASSET PROTECTION, MAINT, DEVEL","CAPITAL EXPENDITURE","CAPITAL EXPENDITURE","4990","P119077-SERVICE-Refurb Toilets at Old Mill & Meadows",20/12/2022 00:00:00,"269642",3980,"RE0094","REACT 2 IT (BUILDING & REFURBISHMENT) LTD",28/11/2022 00:00:00,25/12/2022 00:00:00,"P09-2023"
"P&V","ASSET PROTECTION, MAINT, DEVEL","CAPITAL EXPENDITURE","CAPITAL EXPENDITURE","4990","P119077-SERVICE-Refurb Toilets at Old Mill & Meadows",20/12/2022 00:00:00,"269642",460,"RE0094","REACT 2 IT (BUILDING & REFURBISHMENT) LTD",28/11/2022 00:00:00,25/12/2022 00:00:00,"P09-2023"
"P&V","ASSET PROTECTION, MAINT, DEVEL","CAPITAL EXPENDITURE","CAPITAL EXPENDITURE","4990","P119077-SERVICE-Refurb Toilets at Old Mill & Meadows",20/12/2022 00:00:00,"269642",960,"RE0094","REACT 2 IT (BUILDING & REFURBISHMENT) LTD",28/11/2022 00:00:00,25/12/2022 00:00:00,"P09-2023"
"P&V","ASSET PROTECTION, MAINT, DEVEL","CAPITAL EXPENDITURE","CAPITAL EXPENDITURE","4990","CAPSER",15/12/2022 00:00:00,"269643",-2450,"MO0041","CAPSER",28/11/2022 00:00:00,25/12/2022 00:00:00,"P09-2023"
"P&V","ASSET PROTECTION, MAINT, DEVEL","CAPITAL EXPENDITURE","CAPITAL EXPENDITURE","4990","CAPSER",15/12/2022 00:00:00,"269643",2000,"MO0041","CAPSER",28/11/2022 00:00:00,25/12/2022 00:00:00,"P09-2023"
"P&V","ASSET PROTECTION, MAINT, DEVEL","CAPITAL EXPENDITURE","CAPITAL EXPENDITURE","4990","P120273-SERVICE-Demolish and rebuild of Bridge N028 Dobbs Wei",15/12/2022 00:00:00,"269643",2450,"MO0041","CAPSER",28/11/2022 00:00:00,25/12/2022 00:00:00,"P09-2023"
"P&V","ASSET PROTECTION, MAINT, DEVEL","CAPITAL EXPENDITURE","CAPITAL EXPENDITURE","4990","CAPSER",15/12/2022 00:00:00,"269643",450,"MO0041","CAPSER",28/11/2022 00:00:00,25/12/2022 00:00:00,"P09-2023"
"P&V","ASSET PROTECTION, MAINT, DEVEL","CAPITAL EXPENDITURE","CAPITAL EXPENDITURE","4990","CAPSER",15/12/2022 00:00:00,"269644",350,"MO0041","CAPSER",28/11/2022 00:00:00,25/12/2022 00:00:00,"P09-2023"
"P&V","ASSET PROTECTION, MAINT, DEVEL","CAPITAL EXPENDITURE","CAPITAL EXPENDITURE","4990","CAPSER",15/12/2022 00:00:00,"269644",600,"MO0041","CAPSER",28/11/2022 00:00:00,25/12/2022 00:00:00,"P09-2023"
"P&V","ASSET PROTECTION, MAINT, DEVEL","CAPITAL EXPENDITURE","CAPITAL EXPENDITURE","4990","P120290-SERVICE-Myddelton House Car Park repairs",15/12/2022 00:00:00,"269644",950,"MO0041","CAPSER",28/11/2022 00:00:00,25/12/2022 00:00:00,"P09-2023"
"P&V","ASSET PROTECTION, MAINT, DEVEL","CAPITAL EXPENDITURE","CAPITAL EXPENDITURE","4990","CAPSER",15/12/2022 00:00:00,"269644",-950,"MO0041","CAPSER",28/11/2022 00:00:00,25/12/2022 00:00:00,"P09-2023"
"P&V","ASSET PROTECTION, MAINT, DEVEL","CAPITAL EXPENDITURE","CAPITAL EXPENDITURE","4990","P120085-SERVICE-HTC -Time clocks & controls at HTC car park",20/12/2022 00:00:00,"269802",830,"BR0018","BRADSHAW ELECTRICAL LIMITED",28/11/2022 00:00:00,25/12/2022 00:00:00,"P09-2023"
"R&B","INFORMATION TECHNOLOGY","CAPITAL EXPENDITURE","CAPITAL EXPENDITURE","4990","P109980-SERVICE-Esri plus year to main contract",6/12/2022 00:00:00,"269298",59872,"ES0361","ESRI (UK) LTD",28/11/2022 00:00:00,25/12/2022 00:00:00,"P09-2023"
,"LEE VALLEY CAMPSITE","CAPITAL EXPENDITURE","CAPITAL EXPENDITURE","4990","P120288-SERVICE-Sewardstone � Trenching and Ducting",15/12/2022 00:00:00,"269722",3500,"MO0041","CAPSER",28/11/2022 00:00:00,25/12/2022 00:00:00,"P09-2023"
,"LEE VALLEY CAMPSITE","CAPITAL EXPENDITURE","CAPITAL EXPENDITURE","4990","CAPSER",15/12/2022 00:00:00,"269722",-3500,"MO0041","CAPSER",28/11/2022 00:00:00,25/12/2022 00:00:00,"P09-2023"
,"LEE VALLEY CAMPSITE","CAPITAL EXPENDITURE","CAPITAL EXPENDITURE","4990","CAPSER",15/12/2022 00:00:00,"269722",600,"MO0041","CAPSER",28/11/2022 00:00:00,25/12/2022 00:00:00,"P09-2023"
,"LEE VALLEY CAMPSITE","CAPITAL EXPENDITURE","CAPITAL EXPENDITURE","4990","CAPSER",15/12/2022 00:00:00,"269722",2900,"MO0041","CAPSER",28/11/2022 00:00:00,25/12/2022 00:00:00,"P09-2023"
,"LEE VALLEY CARAVAN PARK","CAPITAL EXPENDITURE","CAPITAL EXPENDITURE","4990","CAPSER",15/12/2022 00:00:00,"269721",4750,"MO0041","CAPSER",28/11/2022 00:00:00,25/12/2022 00:00:00,"P09-2023"
,"LEE VALLEY CARAVAN PARK","CAPITAL EXPENDITURE","CAPITAL EXPENDITURE","4990","P120287-SERVICE-Dobbs Weir - Trenching and Ducting in associa",15/12/2022 00:00:00,"269721",5500,"MO0041","CAPSER",28/11/2022 00:00:00,25/12/2022 00:00:00,"P09-2023"
,"LEE VALLEY CARAVAN PARK","CAPITAL EXPENDITURE","CAPITAL EXPENDITURE","4990","CAPSER",15/12/2022 00:00:00,"269721",-5500,"MO0041","CAPSER",28/11/2022 00:00:00,25/12/2022 00:00:00,"P09-2023"
,"LEE VALLEY CARAVAN PARK","CAPITAL EXPENDITURE","CAPITAL EXPENDITURE","4990","CAPSER",15/12/2022 00:00:00,"269721",750,"MO0041","CAPSER",28/11/2022 00:00:00,25/12/2022 00:00:00,"P09-2023"
"P&V","EAST INDIA DOCK AND BOW CREEK","CAPITAL EXPENDITURE","CAPITAL EXPENDITURE","4990","P118828-SERVICE-East India Dock Basin Project - Pre Applicati",5/12/2022 00:00:00,"269214",335.5,"MA0488","MARINE MANAGEMENT ORGANISATION",28/11/2022 00:00:00,25/12/2022 00:00:00,"P09-2023"
"P&V","EAST INDIA DOCK AND BOW CREEK","CAPITAL EXPENDITURE","CAPITAL EXPENDITURE","4990","P118828-SERVICE-East India Dock Basin Project - Pre Applicati",5/12/2022 00:00:00,"269215",427,"MA0488","MARINE MANAGEMENT ORGANISATION",28/11/2022 00:00:00,25/12/2022 00:00:00,"P09-2023"
"P&V","EAST INDIA DOCK AND BOW CREEK","CAPITAL EXPENDITURE","CAPITAL EXPENDITURE","4990","P117437-SERVICE-East India Dock Basin Works",15/12/2022 00:00:00,"269612",4700,"HA0116","HASKONING UK LTD",28/11/2022 00:00:00,25/12/2022 00:00:00,"P09-2023"
"P&V","BIODIVERSITY ACTION PLAN","CAPITAL EXPENDITURE","CAPITAL EXPENDITURE","4990","P120161-SERVICE-Delivery to Holyfield Hall Farm, Stubbins Hal",6/12/2022 00:00:00,"269303",65,"EN0170","WILDCARE LTD",28/11/2022 00:00:00,25/12/2022 00:00:00,"P09-2023"
"P&V","BIODIVERSITY ACTION PLAN","CAPITAL EXPENDITURE","CAPITAL EXPENDITURE","4990","P120161-SERVICE-10303 Wildcare Outdoor Barn Owl Box x 4",6/12/2022 00:00:00,"269303",763.8,"EN0170","WILDCARE LTD",28/11/2022 00:00:00,25/12/2022 00:00:00,"P09-2023"
"P&V","BIODIVERSITY ACTION PLAN","CAPITAL EXPENDITURE","CAPITAL EXPENDITURE","4990","P120162-SERVICE-Delivery on a Pallet to Holyfield Hall Farm,",20/12/2022 00:00:00,"269796",54,"FI0164","FILCRIS LIMITED",28/11/2022 00:00:00,25/12/2022 00:00:00,"P09-2023"
"P&V","BIODIVERSITY ACTION PLAN","CAPITAL EXPENDITURE","CAPITAL EXPENDITURE","4990","P120162-SERVICE-OTTERHOLTFP - Flat Pack Otter Holt Kit",20/12/2022 00:00:00,"269796",291.5,"FI0164","FILCRIS LIMITED",28/11/2022 00:00:00,25/12/2022 00:00:00,"P09-2023"
,"LEE VALLEY ICE CENTRE","CAPITAL EXPENDITURE","CAPITAL EXPENDITURE","4990","P120283-SERVICE-Ice Centre project as per interim cert 17",14/12/2022 00:00:00,"269299",1270492.24,"BU0634","BUCKINGHAM GROUP CONTRACTING LIMITED",28/11/2022 00:00:00,25/12/2022 00:00:00,"P09-2023"
"P&V","EVENTS MANAGEMENT (PR)","THIRD PARTY PAYMENTS","MAJOR EVENTS (EXPENDITURE)","5102","P120147-SERVICE-Additional site visit to sign of the cable ca",14/12/2022 00:00:00,"269392",400,"EX0288","USEFUL SIMPLE GROUP LTD",28/11/2022 00:00:00,25/12/2022 00:00:00,"P09-2023"
"P&V","EVENTS MANAGEMENT (PR)","THIRD PARTY PAYMENTS","MAJOR EVENTS (EXPENDITURE)","5102","P120147-SERVICE-Consultancy work completed with regards to ju",14/12/2022 00:00:00,"269392",2900,"EX0288","USEFUL SIMPLE GROUP LTD",28/11/2022 00:00:00,25/12/2022 00:00:00,"P09-2023"
"P&V","EVENTS MANAGEMENT (PR)","THIRD PARTY PAYMENTS","MAJOR EVENTS (EXPENDITURE)","5102","P120271-SERVICE-2 x Batteries",14/12/2022 00:00:00,"269443",12.96,"LO0465","LONDON GATE SOLUTIONS LTD",28/11/2022 00:00:00,25/12/2022 00:00:00,"P09-2023"
"P&V","EVENTS MANAGEMENT (PR)","THIRD PARTY PAYMENTS","MAJOR EVENTS (EXPENDITURE)","5102","P120271-SERVICE-Call out for the customer journey gate to be",14/12/2022 00:00:00,"269443",175,"LO0465","LONDON GATE SOLUTIONS LTD",28/11/2022 00:00:00,25/12/2022 00:00:00,"P09-2023"
"P&V","EVENTS MANAGEMENT (PR)","THIRD PARTY PAYMENTS","MAJOR EVENTS (EXPENDITURE)","5102","P120214-SERVICE-Track Champions League Cleaning",14/12/2022 00:00:00,"269556",7442.77,"JA0178","JAK JAK LTD",28/11/2022 00:00:00,25/12/2022 00:00:00,"P09-2023"
"P&V","EVENTS MANAGEMENT (PR)","THIRD PARTY PAYMENTS","MAJOR EVENTS (EXPENDITURE)","5102","P120215-SERVICE-Velo TCL Security",14/12/2022 00:00:00,"269571",25475.25,"WI0227","WISE SECURITY SERVICES",28/11/2022 00:00:00,25/12/2022 00:00:00,"P09-2023"
"P&V","EVENTS MANAGEMENT (PR)","THIRD PARTY PAYMENTS","MAJOR EVENTS (EXPENDITURE)","5102","P120216-SERVICE-Velo TCL Security",14/12/2022 00:00:00,"269572",25475.25,"WI0227","WISE SECURITY SERVICES",28/11/2022 00:00:00,25/12/2022 00:00:00,"P09-2023"
"P&V","EVENTS MANAGEMENT (PR)","THIRD PARTY PAYMENTS","MAJOR EVENTS (EXPENDITURE)","5102","P120358-SERVICE-Venue hire fee for the TCL event on the 2nd a",20/12/2022 00:00:00,"269790",39687.92,"GR0097","GREENWICH LEISURE LTD",28/11/2022 00:00:00,25/12/2022 00:00:00,"P09-2023"
"CEO","PR/COMMUNICATIONS","THIRD PARTY PAYMENTS","CONSULTANTS (GENERAL)","5110","P118107-SERVICE-Communications Support for 2022-23",20/12/2022 00:00:00,"269554",2898,"LO0024","LONDON COMMUNICATIONS AGENCY LTD",28/11/2022 00:00:00,25/12/2022 00:00:00,"P09-2023"
"P&V","ASSET PROTECTION, MAINT, DEVEL","THIRD PARTY PAYMENTS","CONSULTANTS (GENERAL)","5110","P119410-SERVICE-Ground investigation works associated",6/12/2022 00:00:00,"269346",4049,"DU0321","DUNELM GEOTECHNICAL & ENVIRONMENTAL lTD",28/11/2022 00:00:00,25/12/2022 00:00:00,"P09-2023"
"P&V","ASSET PROTECTION, MAINT, DEVEL","THIRD PARTY PAYMENTS","CONSULTANTS (GENERAL)","5110","P120371-SERVICE-Bridge S071 Gabions -Velo Park",15/12/2022 00:00:00,"269728",4362.5,"EX0288","USEFUL SIMPLE GROUP LTD",28/11/2022 00:00:00,25/12/2022 00:00:00,"P09-2023"
"R&B","INTERNAL AUDIT/HEALTH & SAFETY","THIRD PARTY PAYMENTS","CONSULTANTS (GENERAL)","5110","P120397-SERVICE-Audit days",20/12/2022 00:00:00,"269771",2316.75,"CR0543","CROYDON CORPORATE DEBT RECOVERY SERVICE",28/11/2022 00:00:00,25/12/2022 00:00:00,"P09-2023"
"CEO","LEGAL SERVICES","THIRD PARTY PAYMENTS","CONSULTANTS (GENERAL)","5110","P120227-SERVICE-Dispute with Trust",5/12/2022 00:00:00,"269294",2398,"WO0344","WOMBLE BOND DICKINSON (UK) LLP",28/11/2022 00:00:00,25/12/2022 00:00:00,"P09-2023"
"CEO","LEGAL SERVICES","THIRD PARTY PAYMENTS","CONSULTANTS (GENERAL)","5110","P120228-SERVICE-GLL Advice",5/12/2022 00:00:00,"269295",942.5,"WO0344","WOMBLE BOND DICKINSON (UK) LLP",28/11/2022 00:00:00,25/12/2022 00:00:00,"P09-2023"
"CEO","LEGAL SERVICES","THIRD PARTY PAYMENTS","CONSULTANTS (GENERAL)","5110","P120257-SERVICE-Licence to Alter Three Mills Studio",7/12/2022 00:00:00,"269374",485.9,"WO0344","WOMBLE BOND DICKINSON (UK) LLP",28/11/2022 00:00:00,25/12/2022 00:00:00,"P09-2023"
"CEO","LEGAL SERVICES","THIRD PARTY PAYMENTS","CONSULTANTS (GENERAL)","5110","P120258-SERVICE-Disposal of Mile & Langley Nursery",7/12/2022 00:00:00,"269375",2128.3,"WO0344","WOMBLE BOND DICKINSON (UK) LLP",28/11/2022 00:00:00,25/12/2022 00:00:00,"P09-2023"
"CEO","LEGAL SERVICES","THIRD PARTY PAYMENTS","CONSULTANTS (GENERAL)","5110","P120259-SERVICE-New Lease for Moorings at Rye House",7/12/2022 00:00:00,"269376",1312.6,"WO0344","WOMBLE BOND DICKINSON (UK) LLP",28/11/2022 00:00:00,25/12/2022 00:00:00,"P09-2023"
"P&V","LEE VALLEY FARM HOLYFIELDHALL","THIRD PARTY PAYMENTS","CONTRACTORS","5118","P120274-SERVICE-Hedge Cutting - Netherhall Common",6/12/2022 00:00:00,"269363",510,"GR0128","MR R J GRIFFIN",28/11/2022 00:00:00,25/12/2022 00:00:00,"P09-2023"
"P&V","POLICY & PERFORMANCE (L&E)","THIRD PARTY PAYMENTS","CONSULTANTS (HEALTH & SAFETY)","5123","P119861-SERVICE-Annual Health and Safety contract Yr1",5/12/2022 00:00:00,"269193",11458.33,"RI0053","RIGHT DIRECTIONS (MANAGEMENT) LTD",28/11/2022 00:00:00,25/12/2022 00:00:00,"P09-2023"
"R&B","BALANCE SHEET (AUTHORITY)","CREDITORS","EMPLOYEES INCOME TAX","6701","PAYE",14/12/2022 00:00:00,"269538",86937.05,"HM0368","HMRC",28/11/2022 00:00:00,25/12/2022 00:00:00,"P09-2023"
"R&B","BALANCE SHEET (AUTHORITY)","CREDITORS","EMPLOYEES NATIONAL INSURANCE","6702","PAYE",14/12/2022 00:00:00,"269538",39126.81,"HM0368","HMRC",28/11/2022 00:00:00,25/12/2022 00:00:00,"P09-2023"
"R&B","BALANCE SHEET (AUTHORITY)","CREDITORS","EMPLOYERS NATIONAL INSURANCE","6704","PAYE",14/12/2022 00:00:00,"269538",62034.88,"HM0368","HMRC",28/11/2022 00:00:00,25/12/2022 00:00:00,"P09-2023"
"R&B","BALANCE SHEET (AUTHORITY)","CREDITORS","EMPLOYEES PENSION LGPS","6706","EMPLOYEE CONTRIBUTIONS",14/12/2022 00:00:00,"269539",37067.19,"LO0334","LONDON PENSION FUND OPERATIONAL ACCOUNT",28/11/2022 00:00:00,25/12/2022 00:00:00,"P09-2023"
"R&B","BALANCE SHEET (AUTHORITY)","CREDITORS","EMPLOYEES PENSION LGPS","6706","AVC CONBTRIBUTIONS",14/12/2022 00:00:00,"269541",125,"LO0455","LOCAL GOVERNMENT AVC DEPARTMENT",28/11/2022 00:00:00,25/12/2022 00:00:00,"P09-2023"
"R&B","BALANCE SHEET (AUTHORITY)","CREDITORS","EMPLOYERS PENSION LGPS","6707","EMPLOYER CONTRIBUTIONS",14/12/2022 00:00:00,"269539",78515.56,"LO0334","LONDON PENSION FUND OPERATIONAL ACCOUNT",28/11/2022 00:00:00,25/12/2022 00:00:00,"P09-2023"
"R&B","BALANCE SHEET (AUTHORITY)","CREDITORS","EMPLOYEES STUDENT LOANS","6709","PAYE",14/12/2022 00:00:00,"269538",3584,"HM0368","HMRC",28/11/2022 00:00:00,25/12/2022 00:00:00,"P09-2023"
"R&B","BALANCE SHEET (AUTHORITY)","CREDITORS","EMPLOYEES AEO/DEO","6710","ATTACHMENT OIF EARNINGS",14/12/2022 00:00:00,"269547",418.85,"DE0325","DEPARTMENT FOR WORKS AND PENSIONS",28/11/2022 00:00:00,25/12/2022 00:00:00,"P09-2023"
"R&B","BALANCE SHEET (AUTHORITY)","CREDITORS","EMPLOYEES AEO/DEO","6710","ATTACHMENT OF EARNINGS",14/12/2022 00:00:00,"269549",191.66,"DE0309","DEPARTMENT FOR WORK & PENSIONS",28/11/2022 00:00:00,25/12/2022 00:00:00,"P09-2023"
"R&B","BALANCE SHEET (AUTHORITY)","CREDITORS","EMPLOYEES UNION SUBSCRIPTIONS","6711","MEMBERSHIP FEES",14/12/2022 00:00:00,"269540",57,"UN0002","UNISON Greater London Region",28/11/2022 00:00:00,25/12/2022 00:00:00,"P09-2023"
"R&B","BALANCE SHEET (AUTHORITY)","CREDITORS","CONSTRUCTION INDUSTRY SCHEME","6721","R G JOYCE",30/11/2022 00:00:00,"269257",-220,"JO0019","R G JOYCE",28/11/2022 00:00:00,25/12/2022 00:00:00,"P09-2023"
"R&B","BALANCE SHEET (AUTHORITY)","CREDITORS","CONSTRUCTION INDUSTRY SCHEME","6721","R G JOYCE",7/12/2022 00:00:00,"269489",-190,"JO0019","R G JOYCE",28/11/2022 00:00:00,25/12/2022 00:00:00,"P09-2023"
"R&B","BALANCE SHEET (AUTHORITY)","CREDITORS","CONSTRUCTION INDUSTRY SCHEME","6721","KENDALL & SONS LIMITED",7/12/2022 00:00:00,"269493",-264.4,"KE0023","KENDALL & SONS LIMITED",28/11/2022 00:00:00,25/12/2022 00:00:00,"P09-2023"
"R&B","BALANCE SHEET (AUTHORITY)","CREDITORS","CONSTRUCTION INDUSTRY SCHEME","6721","CAPSER",7/12/2022 00:00:00,"269502",-168,"MO0041","CAPSER",28/11/2022 00:00:00,25/12/2022 00:00:00,"P09-2023"
"R&B","BALANCE SHEET (AUTHORITY)","CREDITORS","CONSTRUCTION INDUSTRY SCHEME","6721","06/11/22 - 05/12/22 CASPER",14/12/2022 00:00:00,"269647",310,"IN0016","INLAND REVENUE ONLY 948/L1005",28/11/2022 00:00:00,25/12/2022 00:00:00,"P09-2023"
"R&B","BALANCE SHEET (AUTHORITY)","CREDITORS","CONSTRUCTION INDUSTRY SCHEME","6721","06/11/22 - 05/12/22 KENDALLS",14/12/2022 00:00:00,"269647",8.4,"IN0016","INLAND REVENUE ONLY 948/L1005",28/11/2022 00:00:00,25/12/2022 00:00:00,"P09-2023"
"R&B","BALANCE SHEET (AUTHORITY)","CREDITORS","CONSTRUCTION INDUSTRY SCHEME","6721","06/11/22 - 05/12/22 JOYCE",14/12/2022 00:00:00,"269647",810,"IN0016","INLAND REVENUE ONLY 948/L1005",28/11/2022 00:00:00,25/12/2022 00:00:00,"P09-2023"
"R&B","BALANCE SHEET (AUTHORITY)","CREDITORS","CONSTRUCTION INDUSTRY SCHEME","6721","KENDALL & SONS LIMITED",14/12/2022 00:00:00,"269693",-568.4,"KE0023","KENDALL & SONS LIMITED",28/11/2022 00:00:00,25/12/2022 00:00:00,"P09-2023"
"R&B","BALANCE SHEET (AUTHORITY)","CREDITORS","CONSTRUCTION INDUSTRY SCHEME","6721","R G JOYCE",21/12/2022 00:00:00,"269925",-40,"JO0019","R G JOYCE",28/11/2022 00:00:00,25/12/2022 00:00:00,"P09-2023"
"R&B","BALANCE SHEET (AUTHORITY)","CREDITORS","CONSTRUCTION INDUSTRY SCHEME","6721","CAPSER",21/12/2022 00:00:00,"269942",-1218,"MO0041","CAPSER",28/11/2022 00:00:00,25/12/2022 00:00:00,"P09-2023"
,"STANSTEAD RECHARGEABLE WORKS","INCOME","RECHARGEABLE WORK","9390","Blacking @Stanstead 31/05/22",14/12/2022 00:00:00,"269385",83.33,"LY0480","ALEXANDRA LYONS",28/11/2022 00:00:00,25/12/2022 00:00:00,"P09-2023"
"P&V","CAR PARK INCOME","INCOME","CAR PARKING INCOME","9730","PARKINGEYE LIMITED",19/12/2022 00:00:00,"269618",-63.5,"PA0372","PARKINGEYE LIMITED",28/11/2022 00:00:00,25/12/2022 00:00:00,"P09-2023"
"P&V","CAR PARK INCOME","INCOME","CAR PARKING INCOME","9730","PARKINGEYE LIMITED",19/12/2022 00:00:00,"269619",-41,"PA0372","PARKINGEYE LIMITED",28/11/2022 00:00:00,25/12/2022 00:00:00,"P09-2023"
"P&V","CAR PARK INCOME","INCOME","CAR PARKING INCOME","9730","PARKINGEYE LIMITED",19/12/2022 00:00:00,"269620",-36,"PA0372","PARKINGEYE LIMITED",28/11/2022 00:00:00,25/12/2022 00:00:00,"P09-2023"
"P&V","CAR PARK INCOME","INCOME","CAR PARKING INCOME","9730","PARKINGEYE LIMITED",19/12/2022 00:00:00,"269621",-65,"PA0372","PARKINGEYE LIMITED",28/11/2022 00:00:00,25/12/2022 00:00:00,"P09-2023"
"P&V","CAR PARK INCOME","INCOME","CAR PARKING INCOME","9730","PARKINGEYE LIMITED",20/12/2022 00:00:00,"269622",-99.2,"PA0372","PARKINGEYE LIMITED",28/11/2022 00:00:00,25/12/2022 00:00:00,"P09-2023"
"P&V","CAR PARK INCOME","INCOME","CAR PARKING INCOME","9730","PARKINGEYE LIMITED",19/12/2022 00:00:00,"269623",-61.25,"PA0372","PARKINGEYE LIMITED",28/11/2022 00:00:00,25/12/2022 00:00:00,"P09-2023"
"P&V","CAR PARK INCOME","INCOME","CAR PARKING INCOME","9730","PARKINGEYE LIMITED",19/12/2022 00:00:00,"269624",-59.34,"PA0372","PARKINGEYE LIMITED",28/11/2022 00:00:00,25/12/2022 00:00:00,"P09-2023"
"P&V","CAR PARK INCOME","INCOME","CAR PARKING INCOME","9730","PARKINGEYE LIMITED",19/12/2022 00:00:00,"269626",-165.83,"PA0372","PARKINGEYE LIMITED",28/11/2022 00:00:00,25/12/2022 00:00:00,"P09-2023"
"P&V","CAR PARK INCOME","INCOME","CAR PARKING INCOME","9730","P120362-SERVICE-P&D Recharge Pindar - Nov 2022",20/12/2022 00:00:00,"269627",16.26,"PA0372","PARKINGEYE LIMITED",28/11/2022 00:00:00,25/12/2022 00:00:00,"P09-2023"
"P&V","CAR PARK INCOME","INCOME","CAR PARKING INCOME","9730","P120362-SERVICE-P&D Recharge WAG - Nov 2022",20/12/2022 00:00:00,"269627",17.88,"PA0372","PARKINGEYE LIMITED",28/11/2022 00:00:00,25/12/2022 00:00:00,"P09-2023"
"P&V","CAR PARK INCOME","INCOME","CAR PARKING INCOME","9730","P120362-SERVICE-P&D Recharge FG - Nov 2022",20/12/2022 00:00:00,"269627",18.06,"PA0372","PARKINGEYE LIMITED",28/11/2022 00:00:00,25/12/2022 00:00:00,"P09-2023"
"P&V","CAR PARK INCOME","INCOME","CAR PARKING INCOME","9730","P120362-SERVICE-P&D Recharge CA110656 -  Nov 2022",20/12/2022 00:00:00,"269627",8.04,"PA0372","PARKINGEYE LIMITED",28/11/2022 00:00:00,25/12/2022 00:00:00,"P09-2023"
"P&V","CAR PARK INCOME","INCOME","CAR PARKING INCOME","9730","P120362-SERVICE-P&D Recharge CMM - Nov 2022",20/12/2022 00:00:00,"269627",2.76,"PA0372","PARKINGEYE LIMITED",28/11/2022 00:00:00,25/12/2022 00:00:00,"P09-2023"
"P&V","CAR PARK INCOME","INCOME","CAR PARKING INCOME","9730","P120362-SERVICE-P&D Recharge OM&M - Nov 2022",20/12/2022 00:00:00,"269627",0.18,"PA0372","PARKINGEYE LIMITED",28/11/2022 00:00:00,25/12/2022 00:00:00,"P09-2023"
"P&V","CAR PARK INCOME","INCOME","CAR PARKING INCOME","9730","P120362-SERVICE-P&D Recharge GPP - Nov 2022",20/12/2022 00:00:00,"269627",33.48,"PA0372","PARKINGEYE LIMITED",28/11/2022 00:00:00,25/12/2022 00:00:00,"P09-2023"
"P&V","CAR PARK INCOME","INCOME","CAR PARKING INCOME","9730","P120362-SERVICE-Paid Parking Tickets Used - FG - Nov 2022",19/12/2022 00:00:00,"269628",1.9,"PA0372","PARKINGEYE LIMITED",28/11/2022 00:00:00,25/12/2022 00:00:00,"P09-2023"
"P&V","CAR PARK INCOME","INCOME","CAR PARKING INCOME","9730","P120362-SERVICE-Paid Parking Tickets Used - WAG - Nov 2022",19/12/2022 00:00:00,"269628",1.87,"PA0372","PARKINGEYE LIMITED",28/11/2022 00:00:00,25/12/2022 00:00:00,"P09-2023"
"P&V","CAR PARK INCOME","INCOME","CAR PARKING INCOME","9730","P120362-SERVICE-Paid Parking Tickets Used - CMM - Nov 2022",19/12/2022 00:00:00,"269628",0.28,"PA0372","PARKINGEYE LIMITED",28/11/2022 00:00:00,25/12/2022 00:00:00,"P09-2023"
"P&V","CAR PARK INCOME","INCOME","CAR PARKING INCOME","9730","P120362-SERVICE-Paid Parking Tickets Used - GPP - Nov 2022",19/12/2022 00:00:00,"269628",3.45,"PA0372","PARKINGEYE LIMITED",28/11/2022 00:00:00,25/12/2022 00:00:00,"P09-2023"
